Publisher Label,Publisher URI,Body Name,Service Area Categorisation,Service Division Categorisation,Expenses Type,Date,Transaction Number,Amount,Capital or Revenue,Supplier Name,Merchant Category
Peterborough,http://opendatacommunities.org/id/unitary-authority/peterborough,Peterborough City Council,Children's & Education Services - Education,Other School -related Education Functions,Supplies and Services,01/05/2013 00:00,513533,26666.66,REVENUE,Wilds Lodge School,
Peterborough,http://opendatacommunities.org/id/unitary-authority/peterborough,Peterborough City Council,Planning Services,Economic Development,Employees,01/05/2013 00:00,517633,1209.6,REVENUE,The Synergy Group,
Peterborough,http://opendatacommunities.org/id/unitary-authority/peterborough,Peterborough City Council,Adult Social Care,Adult Mental Health,Third Party Payments,01/05/2013 00:00,523880,108447.16,REVENUE,Cambs & P'boro NHS Foundation Trust,
Peterborough,http://opendatacommunities.org/id/unitary-authority/peterborough,Peterborough City Council,Children's & Education Services - Education,Other School -related Education Functions,More than one Expenses Type,01/05/2013 00:00,531303,46230,REVENUE,Oracle Care Ltd (Region 2),
Peterborough,http://opendatacommunities.org/id/unitary-authority/peterborough,Peterborough City Council,Highways and Transport Services,"Transport planning, policy and strategy",Transport,01/05/2013 00:00,534300,6483.42,REVENUE,Atkins Limited,
Peterborough,http://opendatacommunities.org/id/unitary-authority/peterborough,Peterborough City Council,Adult Social Care,Adult Physical Disability & Sensory Impairment,Supplies and Services,01/05/2013 00:00,538757,-597.6,REVENUE,Optelec Ltd,
Peterborough,http://opendatacommunities.org/id/unitary-authority/peterborough,Peterborough City Council,Housing Services,Private Sector Housing Renewal,Supplies and Services,01/05/2013 00:00,539590,963.9,REVENUE,Jones Heating Ltd,
Peterborough,http://opendatacommunities.org/id/unitary-authority/peterborough,Peterborough City Council,Highways and Transport Services,"Transport planning, policy and strategy",Transport,01/05/2013 00:00,539671,1992,REVENUE,Atkins Limited,
Peterborough,http://opendatacommunities.org/id/unitary-authority/peterborough,Peterborough City Council,Adult Social Care,More than one Service Division,Employees,01/05/2013 00:00,539803,1407.6,REVENUE,Venn Group Ltd,
Peterborough,http://opendatacommunities.org/id/unitary-authority/peterborough,Peterborough City Council,Support Services,Support Services,Employees,01/05/2013 00:00,539805,870.13,REVENUE,Venn Group Ltd,
Peterborough,http://opendatacommunities.org/id/unitary-authority/peterborough,Peterborough City Council,Children's & Education Services - Children's Social Care,Other Children's & Families Services,Employees,01/05/2013 00:00,539808,1912.55,REVENUE,Venn Group Ltd,
Peterborough,http://opendatacommunities.org/id/unitary-authority/peterborough,Peterborough City Council,Children's & Education Services - Children's Social Care,Family Support Services,Employees,01/05/2013 00:00,539824,1728,REVENUE,SW Locums Ltd,
Peterborough,http://opendatacommunities.org/id/unitary-authority/peterborough,Peterborough City Council,Children's & Education Services - Children's Social Care,Children's Services - Commissioning and Social Work,Employees,01/05/2013 00:00,539827,1728,REVENUE,SW Locums Ltd,
Peterborough,http://opendatacommunities.org/id/unitary-authority/peterborough,Peterborough City Council,Children's & Education Services - Children's Social Care,Children Looked After,Supplies and Services - Transfer Payments,01/05/2013 00:00,539834,3484,REVENUE,Lincolns Care Ltd,
Peterborough,http://opendatacommunities.org/id/unitary-authority/peterborough,Peterborough City Council,Children's & Education Services - Children's Social Care,Children Looked After,Supplies and Services - Transfer Payments,01/05/2013 00:00,539838,3484,REVENUE,Lincolns Care Ltd,
Peterborough,http://opendatacommunities.org/id/unitary-authority/peterborough,Peterborough City Council,Housing Services,Private Sector Housing Renewal,Supplies and Services,01/05/2013 00:00,539863,3631.82,REVENUE,Optimum Plumbing & Heating Ltd,
Peterborough,http://opendatacommunities.org/id/unitary-authority/peterborough,Peterborough City Council,Adult Social Care,Older People,Supplies and Services,01/05/2013 00:00,540033,780,REVENUE,The Mobility Equipment Company,
Peterborough,http://opendatacommunities.org/id/unitary-authority/peterborough,Peterborough City Council,Corporate & Democratic Core,Corporate Management,Supplies and Services,01/05/2013 00:00,540188,16846.8,REVENUE,PricewaterhouseCoopers LLP,
Peterborough,http://opendatacommunities.org/id/unitary-authority/peterborough,Peterborough City Council,Support Services,Support Services,Supplies and Services,01/05/2013 00:00,540208,51084.06,REVENUE,Danwood Group Limited,
Peterborough,http://opendatacommunities.org/id/unitary-authority/peterborough,Peterborough City Council,Planning Services,Economic Development,Employees,01/05/2013 00:00,540287,1382.4,REVENUE,The Synergy Group,
Peterborough,http://opendatacommunities.org/id/unitary-authority/peterborough,Peterborough City Council,Highways and Transport Services,Traffic management & Road Safety,Employees,01/05/2013 00:00,540289,1087.8,REVENUE,The Synergy Group,
Peterborough,http://opendatacommunities.org/id/unitary-authority/peterborough,Peterborough City Council,Planning Services,Economic Development,Employees,01/05/2013 00:00,540291,1391.88,REVENUE,The Synergy Group,
Peterborough,http://opendatacommunities.org/id/unitary-authority/peterborough,Peterborough City Council,Planning Services,Planning Policy,Employees,01/05/2013 00:00,540292,1222.87,REVENUE,The Synergy Group,
Peterborough,http://opendatacommunities.org/id/unitary-authority/peterborough,Peterborough City Council,Environmental and Regulatory Services,Community Safety (CCTV),Employees,01/05/2013 00:00,540294,576,REVENUE,The Synergy Group,
Peterborough,http://opendatacommunities.org/id/unitary-authority/peterborough,Peterborough City Council,Planning Services,Planning Policy,Employees,01/05/2013 00:00,540295,1252.39,REVENUE,The Synergy Group,
Peterborough,http://opendatacommunities.org/id/unitary-authority/peterborough,Peterborough City Council,Environmental and Regulatory Services,Regulatory services,Employees,01/05/2013 00:00,540296,907.28,REVENUE,The Synergy Group,
Peterborough,http://opendatacommunities.org/id/unitary-authority/peterborough,Peterborough City Council,Planning Services,Economic Development,Employees,01/05/2013 00:00,540297,1201.48,REVENUE,The Synergy Group,
Peterborough,http://opendatacommunities.org/id/unitary-authority/peterborough,Peterborough City Council,Children's & Education Services - Education,Other School -related Education Functions,More than one Expenses Type,01/05/2013 00:00,540316,5385.12,REVENUE,Kirkstone House School,
Peterborough,http://opendatacommunities.org/id/unitary-authority/peterborough,Peterborough City Council,Support Services,Support Services,Supplies and Services,01/05/2013 00:00,540520,8230.72,REVENUE,Civica UK Limited,
Peterborough,http://opendatacommunities.org/id/unitary-authority/peterborough,Peterborough City Council,Children's & Education Services - Children's Social Care,Children Looked After,Supplies and Services,01/05/2013 00:00,540550,602.66,REVENUE,Walter Clarke EFG,
Peterborough,http://opendatacommunities.org/id/unitary-authority/peterborough,Peterborough City Council,Highways and Transport Services,"Transport planning, policy and strategy",Supplies and Services,01/05/2013 00:00,540561,3570,REVENUE,Hammerson Operations Ltd,
Peterborough,http://opendatacommunities.org/id/unitary-authority/peterborough,Peterborough City Council,Highways and Transport Services,Parking Services,Supplies and Services,01/05/2013 00:00,540563,11697,REVENUE,Imperial Civil Enforcement Solutions,
Peterborough,http://opendatacommunities.org/id/unitary-authority/peterborough,Peterborough City Council,Highways and Transport Services,Traffic management & Road Safety,Supplies and Services,01/05/2013 00:00,540568,5949.6,REVENUE,VIX ACIS Ltd,
Peterborough,http://opendatacommunities.org/id/unitary-authority/peterborough,Peterborough City Council,Children's & Education Services - Children's Social Care,Youth Justice,Supplies and Services,01/05/2013 00:00,540579,3692.31,REVENUE,The Froglife Trust,
Peterborough,http://opendatacommunities.org/id/unitary-authority/peterborough,Peterborough City Council,Housing Services,Private Sector Housing Renewal,Supplies and Services,01/05/2013 00:00,540583,571.2,REVENUE,Rawheat Heating & Plumbing Eng.,
Peterborough,http://opendatacommunities.org/id/unitary-authority/peterborough,Peterborough City Council,Highways and Transport Services,Public Transport,Supplies and Services,01/05/2013 00:00,540614,2529.58,REVENUE,Statutory Payment of Concessionary Fares to Bus Provider,
Peterborough,http://opendatacommunities.org/id/unitary-authority/peterborough,Peterborough City Council,Highways and Transport Services,"Transport planning, policy and strategy",Employees,01/05/2013 00:00,541421,1044,REVENUE,Randstad CPE,
Peterborough,http://opendatacommunities.org/id/unitary-authority/peterborough,Peterborough City Council,Environmental and Regulatory Services,Flood Defence & Land Drainage,Supplies and Services,01/05/2013 00:00,541536,10055.28,REVENUE,L A Jackson,
Peterborough,http://opendatacommunities.org/id/unitary-authority/peterborough,Peterborough City Council,More than one Service Area Category,More than one Service Division,Supplies and Services,01/05/2013 00:00,541541,2413.94,REVENUE,TNT Post London Ltd,
Peterborough,http://opendatacommunities.org/id/unitary-authority/peterborough,Peterborough City Council,Support Services,Support Services,Premises,01/05/2013 00:00,541572,1837.18,REVENUE,Beebys Ltd,
Peterborough,http://opendatacommunities.org/id/unitary-authority/peterborough,Peterborough City Council,More than one Service Area Category,More than one Service Division,Supplies and Services,01/05/2013 00:00,541573,522.48,REVENUE,TNT Post London Ltd,
Peterborough,http://opendatacommunities.org/id/unitary-authority/peterborough,Peterborough City Council,Children's & Education Services - Children's Social Care,Children Looked After,Supplies and Services,01/05/2013 00:00,541575,742.54,REVENUE,Excell Network Solutions Ltd,
Peterborough,http://opendatacommunities.org/id/unitary-authority/peterborough,Peterborough City Council,Children's & Education Services - Education,Other School -related Education Functions,Supplies and Services,01/05/2013 00:00,541576,7200,REVENUE,Tribal Education Ltd,
Peterborough,http://opendatacommunities.org/id/unitary-authority/peterborough,Peterborough City Council,Environmental and Regulatory Services,Flood Defence & Land Drainage,Supplies and Services,01/05/2013 00:00,541579,3120,REVENUE,Philip G Wright Excavator Hire,
Peterborough,http://opendatacommunities.org/id/unitary-authority/peterborough,Peterborough City Council,Environmental and Regulatory Services,Community Safety (CCTV),Supplies and Services,01/05/2013 00:00,541591,7917.84,REVENUE,Quadrant Security Group Ltd,
Peterborough,http://opendatacommunities.org/id/unitary-authority/peterborough,Peterborough City Council,Support Services,Support Services,Supplies and Services,01/05/2013 00:00,541644,639.82,REVENUE,Rossendales C B Ltd,
Peterborough,http://opendatacommunities.org/id/unitary-authority/peterborough,Peterborough City Council,Children's & Education Services - Children's Social Care,Children's Services - Commissioning and Social Work,Employees,01/05/2013 00:00,542242,1267.02,REVENUE,Sanctuary Personnel Ltd,
Peterborough,http://opendatacommunities.org/id/unitary-authority/peterborough,Peterborough City Council,Children's & Education Services - Children's Social Care,Children's Services - Commissioning and Social Work,Employees,01/05/2013 00:00,542252,1261.3,REVENUE,Sanctuary Personnel Ltd,
Peterborough,http://opendatacommunities.org/id/unitary-authority/peterborough,Peterborough City Council,Adult Social Care,Older People,Supplies and Services,01/05/2013 00:00,542258,3644,REVENUE,Bandrum Nursing Home Ltd,
Peterborough,http://opendatacommunities.org/id/unitary-authority/peterborough,Peterborough City Council,Children's & Education Services - Children's Social Care,Family Support Services,Employees,01/05/2013 00:00,542262,1224,REVENUE,Sanctuary Personnel Ltd,
Peterborough,http://opendatacommunities.org/id/unitary-authority/peterborough,Peterborough City Council,Children's & Education Services - Children's Social Care,Children's Services - Commissioning and Social Work,Employees,01/05/2013 00:00,542266,918,REVENUE,Sanctuary Personnel Ltd,
Peterborough,http://opendatacommunities.org/id/unitary-authority/peterborough,Peterborough City Council,Children's & Education Services - Children's Social Care,Family Support Services,Employees,01/05/2013 00:00,542274,1746.18,REVENUE,Sanctuary Personnel Ltd,
Peterborough,http://opendatacommunities.org/id/unitary-authority/peterborough,Peterborough City Council,Adult Social Care,Older People,Employees,01/05/2013 00:00,542277,1480.2,REVENUE,Caritas Recruitment,
Peterborough,http://opendatacommunities.org/id/unitary-authority/peterborough,Peterborough City Council,Children's & Education Services - Children's Social Care,Children Looked After,Employees,01/05/2013 00:00,542280,1723.68,REVENUE,Sanctuary Personnel Ltd,
Peterborough,http://opendatacommunities.org/id/unitary-authority/peterborough,Peterborough City Council,Children's & Education Services - Children's Social Care,Children Looked After,Employees,01/05/2013 00:00,542283,1529.14,REVENUE,Sanctuary Personnel Ltd,
Peterborough,http://opendatacommunities.org/id/unitary-authority/peterborough,Peterborough City Council,Children's & Education Services - Children's Social Care,Children's Services - Commissioning and Social Work,Employees,01/05/2013 00:00,542286,1260,REVENUE,Sanctuary Personnel Ltd,
Peterborough,http://opendatacommunities.org/id/unitary-authority/peterborough,Peterborough City Council,Children's & Education Services - Children's Social Care,Children's Services - Commissioning and Social Work,Employees,01/05/2013 00:00,542289,1260,REVENUE,Sanctuary Personnel Ltd,
Peterborough,http://opendatacommunities.org/id/unitary-authority/peterborough,Peterborough City Council,Children's & Education Services - Children's Social Care,Children Looked After,Employees,01/05/2013 00:00,542291,648.72,REVENUE,Blue Arrow Ltd,
Peterborough,http://opendatacommunities.org/id/unitary-authority/peterborough,Peterborough City Council,Adult Social Care,Older People,Employees,01/05/2013 00:00,542441,1449,REVENUE,Caritas Recruitment,
Peterborough,http://opendatacommunities.org/id/unitary-authority/peterborough,Peterborough City Council,Children's & Education Services - Children's Social Care,Other Children's & Families Services,Supplies and Services,01/05/2013 00:00,542463,1539,REVENUE,"Cartlidge, Dr P H T",
Peterborough,http://opendatacommunities.org/id/unitary-authority/peterborough,Peterborough City Council,Adult Social Care,Older People,Supplies and Services,01/05/2013 00:00,542549,919.6,REVENUE,Hales Group Ltd,
Peterborough,http://opendatacommunities.org/id/unitary-authority/peterborough,Peterborough City Council,Children's & Education Services - Education,Other School -related Education Functions,Supplies and Services,01/05/2013 00:00,542613,4066.92,REVENUE,NCER CIC (National Consortium for Examination Results),
Peterborough,http://opendatacommunities.org/id/unitary-authority/peterborough,Peterborough City Council,Highways and Transport Services,"Transport planning, policy and strategy",Supplies and Services,01/05/2013 00:00,542623,617.4,REVENUE,Johnston Press Midlands Division,
Peterborough,http://opendatacommunities.org/id/unitary-authority/peterborough,Peterborough City Council,Planning Services,Development Control,Supplies and Services,01/05/2013 00:00,542646,527.9,REVENUE,Johnston Press Midlands Division,
Peterborough,http://opendatacommunities.org/id/unitary-authority/peterborough,Peterborough City Council,Adult Social Care,Older People,Supplies and Services,01/05/2013 00:00,542660,597.77,REVENUE,Hales Group Ltd,
Peterborough,http://opendatacommunities.org/id/unitary-authority/peterborough,Peterborough City Council,Children's & Education Services - Children's Social Care,Children Looked After,Employees,01/05/2013 00:00,542673,1108.8,REVENUE,Randstad Care Ltd,
Peterborough,http://opendatacommunities.org/id/unitary-authority/peterborough,Peterborough City Council,Adult Social Care,Older People,Supplies and Services,01/05/2013 00:00,542787,1042.92,REVENUE,Hales Group Ltd,
Peterborough,http://opendatacommunities.org/id/unitary-authority/peterborough,Peterborough City Council,Adult Social Care,Older People,Supplies and Services,01/05/2013 00:00,542828,1404.12,REVENUE,Hales Group Ltd,
Peterborough,http://opendatacommunities.org/id/unitary-authority/peterborough,Peterborough City Council,Adult Social Care,Older People,Supplies and Services,01/05/2013 00:00,542845,546.34,REVENUE,Hales Group Ltd,
Peterborough,http://opendatacommunities.org/id/unitary-authority/peterborough,Peterborough City Council,Adult Social Care,Older People,Supplies and Services,01/05/2013 00:00,542853,556.2,REVENUE,Hales Group Ltd,
Peterborough,http://opendatacommunities.org/id/unitary-authority/peterborough,Peterborough City Council,Adult Social Care,Older People,Supplies and Services,01/05/2013 00:00,542860,1223.09,REVENUE,Hales Group Ltd,
Peterborough,http://opendatacommunities.org/id/unitary-authority/peterborough,Peterborough City Council,Adult Social Care,Older People,Supplies and Services,01/05/2013 00:00,542867,813.6,REVENUE,Hales Group Ltd,
Peterborough,http://opendatacommunities.org/id/unitary-authority/peterborough,Peterborough City Council,Adult Social Care,Older People,Supplies and Services,01/05/2013 00:00,542873,863.87,REVENUE,Hales Group Ltd,
Peterborough,http://opendatacommunities.org/id/unitary-authority/peterborough,Peterborough City Council,Adult Social Care,Older People,Supplies and Services,01/05/2013 00:00,543282,842.82,REVENUE,Hales Group Ltd,
Peterborough,http://opendatacommunities.org/id/unitary-authority/peterborough,Peterborough City Council,Adult Social Care,Older People,Supplies and Services,01/05/2013 00:00,543293,2481.61,REVENUE,Hales Group Ltd,
Peterborough,http://opendatacommunities.org/id/unitary-authority/peterborough,Peterborough City Council,Adult Social Care,Older People,Supplies and Services,01/05/2013 00:00,543339,1383.45,REVENUE,Hales Group Ltd,
Peterborough,http://opendatacommunities.org/id/unitary-authority/peterborough,Peterborough City Council,Adult Social Care,Older People,Supplies and Services,01/05/2013 00:00,543367,503.42,REVENUE,Hales Group Ltd,
Peterborough,http://opendatacommunities.org/id/unitary-authority/peterborough,Peterborough City Council,Adult Social Care,Older People,Supplies and Services,01/05/2013 00:00,543368,503.24,REVENUE,Hales Group Ltd,
Peterborough,http://opendatacommunities.org/id/unitary-authority/peterborough,Peterborough City Council,Adult Social Care,Older People,Supplies and Services,01/05/2013 00:00,543370,1169.19,REVENUE,Hales Group Ltd,
Peterborough,http://opendatacommunities.org/id/unitary-authority/peterborough,Peterborough City Council,Adult Social Care,Older People,Supplies and Services,01/05/2013 00:00,543408,1518.92,REVENUE,Hales Group Ltd,
Peterborough,http://opendatacommunities.org/id/unitary-authority/peterborough,Peterborough City Council,Planning Services,Environmental Initiatives,Supplies and Services,01/05/2013 00:00,543426,2872.8,REVENUE,Brintex Events,
Peterborough,http://opendatacommunities.org/id/unitary-authority/peterborough,Peterborough City Council,Adult Social Care,Older People,Supplies and Services,01/05/2013 00:00,543564,503.87,REVENUE,Hales Group Ltd,
Peterborough,http://opendatacommunities.org/id/unitary-authority/peterborough,Peterborough City Council,Adult Social Care,Older People,Supplies and Services,01/05/2013 00:00,543566,604.01,REVENUE,Hales Group Ltd,
Peterborough,http://opendatacommunities.org/id/unitary-authority/peterborough,Peterborough City Council,Highways and Transport Services,"Transport planning, policy and strategy",Employees,01/05/2013 00:00,543580,537.52,REVENUE,Reed Specialist Recruitment,
Peterborough,http://opendatacommunities.org/id/unitary-authority/peterborough,Peterborough City Council,Adult Social Care,Older People,Supplies and Services,01/05/2013 00:00,543607,520.97,REVENUE,Hales Group Ltd,
Peterborough,http://opendatacommunities.org/id/unitary-authority/peterborough,Peterborough City Council,Capital,Capital,Capital Pending Update to BS,01/05/2013 00:00,543771,177458.91,CAPITAL,Ringway Infrastructure Services,
Peterborough,http://opendatacommunities.org/id/unitary-authority/peterborough,Peterborough City Council,Adult Social Care,Older People,Supplies and Services,01/05/2013 00:00,543950,1071.32,REVENUE,Park Road Baptist Housing Association Ltd,
Peterborough,http://opendatacommunities.org/id/unitary-authority/peterborough,Peterborough City Council,Adult Social Care,Support Services & Management Costs,Employees,01/05/2013 00:00,543952,766.58,REVENUE,Service Care Solutions Ltd,
Peterborough,http://opendatacommunities.org/id/unitary-authority/peterborough,Peterborough City Council,Adult Social Care,Older People,Supplies and Services,01/05/2013 00:00,543961,838.76,REVENUE,Park Road Baptist Housing Association Ltd,
Peterborough,http://opendatacommunities.org/id/unitary-authority/peterborough,Peterborough City Council,Adult Social Care,Older People,Supplies and Services,01/05/2013 00:00,543967,1114.88,REVENUE,Park Road Baptist Housing Association Ltd,
Peterborough,http://opendatacommunities.org/id/unitary-authority/peterborough,Peterborough City Council,Adult Social Care,Older People,Supplies and Services,01/05/2013 00:00,544007,1548.12,REVENUE,Park Road Baptist Housing Association Ltd,
Peterborough,http://opendatacommunities.org/id/unitary-authority/peterborough,Peterborough City Council,Adult Social Care,Older People,Supplies and Services,01/05/2013 00:00,544102,859.26,REVENUE,Hales Group Ltd,
Peterborough,http://opendatacommunities.org/id/unitary-authority/peterborough,Peterborough City Council,Adult Social Care,Older People,Supplies and Services,01/05/2013 00:00,544116,544.96,REVENUE,Hales Group Ltd,
Peterborough,http://opendatacommunities.org/id/unitary-authority/peterborough,Peterborough City Council,Children's & Education Services - Children's Social Care,Family Support Services,Supplies and Services,01/05/2013 00:00,544141,1929.6,REVENUE,P F S Builders & Contractors,
Peterborough,http://opendatacommunities.org/id/unitary-authority/peterborough,Peterborough City Council,Adult Social Care,Older People,Supplies and Services,01/05/2013 00:00,544180,692.55,REVENUE,Hales Group Ltd,
Peterborough,http://opendatacommunities.org/id/unitary-authority/peterborough,Peterborough City Council,Adult Social Care,Older People,Supplies and Services,01/05/2013 00:00,544363,850.18,REVENUE,Hales Group Ltd,
Peterborough,http://opendatacommunities.org/id/unitary-authority/peterborough,Peterborough City Council,Adult Social Care,Adult Learning Disabilities,Employees,01/05/2013 00:00,544383,691.2,REVENUE,City Resource Ltd,
Peterborough,http://opendatacommunities.org/id/unitary-authority/peterborough,Peterborough City Council,Adult Social Care,Older People,Third Party Payments,01/05/2013 00:00,544404,1449.66,REVENUE,CARIBBEAN GOLDEN AGE ASSOCIATION,
Peterborough,http://opendatacommunities.org/id/unitary-authority/peterborough,Peterborough City Council,Adult Social Care,Older People,Supplies and Services,01/05/2013 00:00,544501,1179.2,REVENUE,HC-ONE,
Peterborough,http://opendatacommunities.org/id/unitary-authority/peterborough,Peterborough City Council,Adult Social Care,Older People,Supplies and Services,01/05/2013 00:00,544517,1271.2,REVENUE,HC-ONE,
Peterborough,http://opendatacommunities.org/id/unitary-authority/peterborough,Peterborough City Council,Adult Social Care,Older People,Supplies and Services,01/05/2013 00:00,544529,1030.84,REVENUE,HC-ONE,
Peterborough,http://opendatacommunities.org/id/unitary-authority/peterborough,Peterborough City Council,Capital,Capital,Capital Pending Update to BS,01/05/2013 00:00,544565,122264.49,CAPITAL,Ringway Infrastructure Services,
Peterborough,http://opendatacommunities.org/id/unitary-authority/peterborough,Peterborough City Council,Highways and Transport Services,Structural Maintenance,Supplies and Services,01/05/2013 00:00,544647,2730,REVENUE,Jones Lang LaSalle,
Peterborough,http://opendatacommunities.org/id/unitary-authority/peterborough,Peterborough City Council,Adult Social Care,Older People,Supplies and Services,01/05/2013 00:00,544651,505.12,REVENUE,Hales Group Ltd,
Peterborough,http://opendatacommunities.org/id/unitary-authority/peterborough,Peterborough City Council,Adult Social Care,Older People,Supplies and Services,01/05/2013 00:00,544662,734.14,REVENUE,Hales Group Ltd,
Peterborough,http://opendatacommunities.org/id/unitary-authority/peterborough,Peterborough City Council,Adult Social Care,Older People,Supplies and Services,01/05/2013 00:00,544715,1144.77,REVENUE,Hales Group Ltd,
Peterborough,http://opendatacommunities.org/id/unitary-authority/peterborough,Peterborough City Council,Adult Social Care,Older People,Supplies and Services,01/05/2013 00:00,544728,692.5,REVENUE,Hales Group Ltd,
Peterborough,http://opendatacommunities.org/id/unitary-authority/peterborough,Peterborough City Council,Adult Social Care,Older People,Supplies and Services,01/05/2013 00:00,544729,1167.73,REVENUE,Hales Group Ltd,
Peterborough,http://opendatacommunities.org/id/unitary-authority/peterborough,Peterborough City Council,Adult Social Care,Older People,Supplies and Services,01/05/2013 00:00,544732,822.95,REVENUE,Hales Group Ltd,
Peterborough,http://opendatacommunities.org/id/unitary-authority/peterborough,Peterborough City Council,Adult Social Care,Older People,Supplies and Services,01/05/2013 00:00,544734,1138.69,REVENUE,Hales Group Ltd,
Peterborough,http://opendatacommunities.org/id/unitary-authority/peterborough,Peterborough City Council,Adult Social Care,Older People,Supplies and Services,01/05/2013 00:00,544784,639.77,REVENUE,Hales Group Ltd,
Peterborough,http://opendatacommunities.org/id/unitary-authority/peterborough,Peterborough City Council,Adult Social Care,Older People,Supplies and Services,01/05/2013 00:00,544786,844.53,REVENUE,Hales Group Ltd,
Peterborough,http://opendatacommunities.org/id/unitary-authority/peterborough,Peterborough City Council,Adult Social Care,Adult Learning Disabilities,Supplies and Services,01/05/2013 00:00,544817,566,REVENUE,Goldhay Arts,
Peterborough,http://opendatacommunities.org/id/unitary-authority/peterborough,Peterborough City Council,Adult Social Care,Adult Learning Disabilities,Supplies and Services,01/05/2013 00:00,544898,706,REVENUE,Goldhay Arts,
Peterborough,http://opendatacommunities.org/id/unitary-authority/peterborough,Peterborough City Council,Adult Social Care,Older People,Supplies and Services,01/05/2013 00:00,544900,521.77,REVENUE,Hales Group Ltd,
Peterborough,http://opendatacommunities.org/id/unitary-authority/peterborough,Peterborough City Council,Adult Social Care,Older People,Supplies and Services,01/05/2013 00:00,544924,802.26,REVENUE,Hales Group Ltd,
Peterborough,http://opendatacommunities.org/id/unitary-authority/peterborough,Peterborough City Council,Environmental and Regulatory Services,Community Safety (CCTV),Supplies and Services,01/05/2013 00:00,544952,705.17,REVENUE,British Telecom PLC,
Peterborough,http://opendatacommunities.org/id/unitary-authority/peterborough,Peterborough City Council,Adult Social Care,Older People,Supplies and Services,01/05/2013 00:00,544967,3068,REVENUE,Thera East Anglia,
Peterborough,http://opendatacommunities.org/id/unitary-authority/peterborough,Peterborough City Council,Adult Social Care,Older People,Supplies and Services,01/05/2013 00:00,544980,693.88,REVENUE,Hales Group Ltd,
Peterborough,http://opendatacommunities.org/id/unitary-authority/peterborough,Peterborough City Council,Adult Social Care,Older People,Supplies and Services,01/05/2013 00:00,545141,618.28,REVENUE,Hales Group Ltd,
Peterborough,http://opendatacommunities.org/id/unitary-authority/peterborough,Peterborough City Council,Adult Social Care,Older People,Supplies and Services,01/05/2013 00:00,545163,680.36,REVENUE,Hales Group Ltd,
Peterborough,http://opendatacommunities.org/id/unitary-authority/peterborough,Peterborough City Council,Adult Social Care,Older People,Supplies and Services,01/05/2013 00:00,545249,701.43,REVENUE,Hales Group Ltd,
Peterborough,http://opendatacommunities.org/id/unitary-authority/peterborough,Peterborough City Council,Adult Social Care,Older People,Supplies and Services,01/05/2013 00:00,545254,1756.22,REVENUE,Hales Group Ltd,
Peterborough,http://opendatacommunities.org/id/unitary-authority/peterborough,Peterborough City Council,Capital,Capital,Capital Pending Update to BS,01/05/2013 00:00,545356,144689.2,CAPITAL,Ringway Infrastructure Services,
Peterborough,http://opendatacommunities.org/id/unitary-authority/peterborough,Peterborough City Council,Adult Social Care,Adult Physical Disability & Sensory Impairment,Supplies and Services,01/05/2013 00:00,545500,2524,REVENUE,Optelec Ltd,
Peterborough,http://opendatacommunities.org/id/unitary-authority/peterborough,Peterborough City Council,Adult Social Care,More than one Service Division,Employees,01/05/2013 00:00,546231,696.6,REVENUE,Randstad Care Ltd,
Peterborough,http://opendatacommunities.org/id/unitary-authority/peterborough,Peterborough City Council,Adult Social Care,More than one Service Division,Employees,01/05/2013 00:00,546236,595.51,REVENUE,Randstad Care Ltd,
Peterborough,http://opendatacommunities.org/id/unitary-authority/peterborough,Peterborough City Council,Capital,Capital,Capital Pending Update to BS,01/05/2013 00:00,546301,6846,CAPITAL,Burmor Construction,
Peterborough,http://opendatacommunities.org/id/unitary-authority/peterborough,Peterborough City Council,Adult Social Care,Adult Learning Disabilities,Employees,01/05/2013 00:00,546354,1322.5,REVENUE,Randstad Care Ltd,
Peterborough,http://opendatacommunities.org/id/unitary-authority/peterborough,Peterborough City Council,Adult Social Care,Older People,Employees,01/05/2013 00:00,546363,1188,REVENUE,Caritas Recruitment,
Peterborough,http://opendatacommunities.org/id/unitary-authority/peterborough,Peterborough City Council,Adult Social Care,Adult Learning Disabilities,Fees and Charges,01/05/2013 00:00,546481,14723.92,REVENUE,WESTWARD HEALTH CARE,
Peterborough,http://opendatacommunities.org/id/unitary-authority/peterborough,Peterborough City Council,Adult Social Care,Adult Mental Health,Supplies and Services,01/05/2013 00:00,546514,19514.75,REVENUE,West Anglia Crossroads Ltd,
Peterborough,http://opendatacommunities.org/id/unitary-authority/peterborough,Peterborough City Council,Support Services,Support Services,Supplies and Services,01/05/2013 00:00,546857,700,REVENUE,HM Courts and Tribunals Service (HMCTS),
Peterborough,http://opendatacommunities.org/id/unitary-authority/peterborough,Peterborough City Council,Children's & Education Services - Children's Social Care,Other Children's & Families Services,Supplies and Services,01/05/2013 00:00,546859,700,REVENUE,HM Courts and Tribunals Service (HMCTS),
Peterborough,http://opendatacommunities.org/id/unitary-authority/peterborough,Peterborough City Council,More than one Service Area Category,More than one Service Division,Balance Sheet,01/05/2013 00:00,546867,5250,Balance Sheet,Redacted Personal Data,
Peterborough,http://opendatacommunities.org/id/unitary-authority/peterborough,Peterborough City Council,More than one Service Area Category,More than one Service Division,Balance Sheet,01/05/2013 00:00,546870,4750,Balance Sheet,Redacted Personal Data,
Peterborough,http://opendatacommunities.org/id/unitary-authority/peterborough,Peterborough City Council,Children's & Education Services - Children's Social Care,Other Children's & Families Services,Supplies and Services,01/05/2013 00:00,546880,3240,REVENUE,Office Depot UK Ltd,
Peterborough,http://opendatacommunities.org/id/unitary-authority/peterborough,Peterborough City Council,Capital,Capital,Capital Pending Update to BS,01/05/2013 00:00,546919,757514.06,CAPITAL,Birse Civils Limited,
Peterborough,http://opendatacommunities.org/id/unitary-authority/peterborough,Peterborough City Council,Capital,Capital,Capital Pending Update to BS,01/05/2013 00:00,546944,191437.96,CAPITAL,Birse Civils Limited,
Peterborough,http://opendatacommunities.org/id/unitary-authority/peterborough,Peterborough City Council,More than one Service Area Category,More than one Service Division,Balance Sheet,01/05/2013 00:00,546965,1437.86,Balance Sheet,Redacted Personal Data,
Peterborough,http://opendatacommunities.org/id/unitary-authority/peterborough,Peterborough City Council,Adult Social Care,Older People,Employees,01/05/2013 00:00,546987,1260,REVENUE,Caritas Recruitment,
Peterborough,http://opendatacommunities.org/id/unitary-authority/peterborough,Peterborough City Council,Children's & Education Services - Education,Other School -related Education Functions,Supplies and Services,01/05/2013 00:00,547664,762.59,REVENUE,Redbrick Properties,
Peterborough,http://opendatacommunities.org/id/unitary-authority/peterborough,Peterborough City Council,More than one Service Area Category,More than one Service Division,More than one Expenses Type,01/05/2013 00:00,547672,1770,"Mixture of Capital, Revenue and/or Balance Sheet",British Damp Proofing,
Peterborough,http://opendatacommunities.org/id/unitary-authority/peterborough,Peterborough City Council,More than one Service Area Category,More than one Service Division,More than one Expenses Type,01/05/2013 00:00,547675,3807,"Mixture of Capital, Revenue and/or Balance Sheet",Heating & Plumbing Services,
Peterborough,http://opendatacommunities.org/id/unitary-authority/peterborough,Peterborough City Council,Children's & Education Services - Education,Secondary,Premises,01/05/2013 00:00,547735,804,REVENUE,Chemgo Limited,
Peterborough,http://opendatacommunities.org/id/unitary-authority/peterborough,Peterborough City Council,Capital,Capital,Capital Pending Update to BS,01/05/2013 00:00,547748,29257.74,CAPITAL,Balfour Beatty Civil Engineering,
Peterborough,http://opendatacommunities.org/id/unitary-authority/peterborough,Peterborough City Council,Adult Social Care,Adult Learning Disabilities,Supplies and Services,01/05/2013 00:00,547906,11834.4,REVENUE,Linkage Community Trust Limited,
Peterborough,http://opendatacommunities.org/id/unitary-authority/peterborough,Peterborough City Council,Adult Social Care,Adult Mental Health,Third Party Payments,01/05/2013 00:00,547918,108447.16,REVENUE,Cambs & P'boro NHS Foundation Trust,
Peterborough,http://opendatacommunities.org/id/unitary-authority/peterborough,Peterborough City Council,Housing Services,Homelessness,Supplies and Services,01/05/2013 00:00,547920,600,REVENUE,Property Line,
Peterborough,http://opendatacommunities.org/id/unitary-authority/peterborough,Peterborough City Council,Children's & Education Services - Education,Early Years,Supplies and Services,01/05/2013 00:00,547921,10622.4,REVENUE,Bunny Tots Pre-School,
Peterborough,http://opendatacommunities.org/id/unitary-authority/peterborough,Peterborough City Council,Children's & Education Services - Education,Early Years,Supplies and Services,01/05/2013 00:00,547922,780,REVENUE,The Voyager Nursery,
Peterborough,http://opendatacommunities.org/id/unitary-authority/peterborough,Peterborough City Council,Housing Services,Homelessness,Supplies and Services,01/05/2013 00:00,547923,500,REVENUE,Renaissance Property Mngmnt,
Peterborough,http://opendatacommunities.org/id/unitary-authority/peterborough,Peterborough City Council,Children's & Education Services - Education,Early Years,Supplies and Services,01/05/2013 00:00,547927,780,REVENUE,West Town Playgroup,
Peterborough,http://opendatacommunities.org/id/unitary-authority/peterborough,Peterborough City Council,Children's & Education Services - Education,Early Years,Supplies and Services,01/05/2013 00:00,547928,5835.02,REVENUE,Sunflower Seed Pre-School,
Peterborough,http://opendatacommunities.org/id/unitary-authority/peterborough,Peterborough City Council,Deficit/(Surplus) on Trading Undertakings,Trading Account Surpluses & Deficits,Supplies and Services,01/05/2013 00:00,547930,722.4,REVENUE,BSi Management Systems,
Peterborough,http://opendatacommunities.org/id/unitary-authority/peterborough,Peterborough City Council,Children's & Education Services - Children's Social Care,Children's Services - Commissioning and Social Work,Supplies and Services,01/05/2013 00:00,547932,600,REVENUE,Diane Stevens Counselling Services,
Peterborough,http://opendatacommunities.org/id/unitary-authority/peterborough,Peterborough City Council,Planning Services,Economic Development,Third Party Payments,01/05/2013 00:00,547935,12840,REVENUE,Vivacity Culture and Leisure,
Peterborough,http://opendatacommunities.org/id/unitary-authority/peterborough,Peterborough City Council,Adult Social Care,Adult Learning Disabilities,Supplies and Services,01/05/2013 00:00,547937,12886.72,REVENUE,Positive Steps (Care Services) Ltd,
Peterborough,http://opendatacommunities.org/id/unitary-authority/peterborough,Peterborough City Council,Children's & Education Services - Children's Social Care,Children's Services - Commissioning and Social Work,Supplies and Services,01/05/2013 00:00,547944,869.4,REVENUE,Quayside Care Ltd,
Peterborough,http://opendatacommunities.org/id/unitary-authority/peterborough,Peterborough City Council,Sources of Finance,RSG,Third Party Payments,01/05/2013 00:00,547980,43386.84,REVENUE,Beds Pilgrims Housing Assn,
Peterborough,http://opendatacommunities.org/id/unitary-authority/peterborough,Peterborough City Council,More than one Service Area Category,More than one Service Division,Balance Sheet,01/05/2013 00:00,547998,900,Balance Sheet,Shaw Trust,
Peterborough,http://opendatacommunities.org/id/unitary-authority/peterborough,Peterborough City Council,Support Services,Support Services,Third Party Payments,01/05/2013 00:00,548131,884804.1,REVENUE,Serco Ltd,
Peterborough,http://opendatacommunities.org/id/unitary-authority/peterborough,Peterborough City Council,Support Services,Support Services,Supplies and Services,01/05/2013 00:00,548133,3590.4,REVENUE,Serco Ltd,
Peterborough,http://opendatacommunities.org/id/unitary-authority/peterborough,Peterborough City Council,Planning Services,Economic Development,Supplies and Services,01/05/2013 00:00,548135,709.2,REVENUE,Serco Ltd,
Peterborough,http://opendatacommunities.org/id/unitary-authority/peterborough,Peterborough City Council,Corporate & Democratic Core,Democratic Representation & Managemetn,Supplies and Services,01/05/2013 00:00,548142,754.2,REVENUE,Serco Ltd,
Peterborough,http://opendatacommunities.org/id/unitary-authority/peterborough,Peterborough City Council,More than one Service Area Category,More than one Service Division,Balance Sheet,01/05/2013 00:00,548143,794733.08,Balance Sheet,Teachers Pensions,
Peterborough,http://opendatacommunities.org/id/unitary-authority/peterborough,Peterborough City Council,Children's & Education Services - Children's Social Care,Children's Services - Commissioning and Social Work,Supplies and Services,01/05/2013 00:00,548160,1385.35,REVENUE,Busy Bees Day Nurseries Trading Ltd,
Peterborough,http://opendatacommunities.org/id/unitary-authority/peterborough,Peterborough City Council,Children's & Education Services - Children's Social Care,Children's Services - Commissioning and Social Work,Supplies and Services,01/05/2013 00:00,548162,958.75,REVENUE,Busy Bees Day Nurseries Trading Ltd,
Peterborough,http://opendatacommunities.org/id/unitary-authority/peterborough,Peterborough City Council,Highways and Transport Services,"Transport planning, policy and strategy",Transport,01/05/2013 00:00,548168,7195.04,REVENUE,Atkins Limited,
Peterborough,http://opendatacommunities.org/id/unitary-authority/peterborough,Peterborough City Council,Highways and Transport Services,"Transport planning, policy and strategy",Transport,01/05/2013 00:00,548171,2439.73,REVENUE,Atkins Limited,
Peterborough,http://opendatacommunities.org/id/unitary-authority/peterborough,Peterborough City Council,Housing Services,Homelessness,Supplies and Services,01/05/2013 00:00,548240,525,REVENUE,Redacted Personal Data,
Peterborough,http://opendatacommunities.org/id/unitary-authority/peterborough,Peterborough City Council,Housing Services,Homelessness,Supplies and Services,01/05/2013 00:00,548243,1200,REVENUE,Property Line,
Peterborough,http://opendatacommunities.org/id/unitary-authority/peterborough,Peterborough City Council,Highways and Transport Services,Structural Maintenance,Supplies and Services,01/05/2013 00:00,548245,102000,REVENUE,Ringway Infrastructure Services,
Peterborough,http://opendatacommunities.org/id/unitary-authority/peterborough,Peterborough City Council,Capital,Capital,Capital Pending Update to BS,01/05/2013 00:00,548247,115200,CAPITAL,Ringway Infrastructure Services,
Peterborough,http://opendatacommunities.org/id/unitary-authority/peterborough,Peterborough City Council,Capital,Capital,Capital Pending Update to BS,01/05/2013 00:00,548249,126915.44,CAPITAL,Ringway Infrastructure Services,
Peterborough,http://opendatacommunities.org/id/unitary-authority/peterborough,Peterborough City Council,More than one Service Area Category,More than one Service Division,Premises,01/05/2013 00:00,548255,6762.57,REVENUE,British Gas Business,
Peterborough,http://opendatacommunities.org/id/unitary-authority/peterborough,Peterborough City Council,More than one Service Area Category,More than one Service Division,Premises,01/05/2013 00:00,548258,2710.15,REVENUE,British Gas Business,
Peterborough,http://opendatacommunities.org/id/unitary-authority/peterborough,Peterborough City Council,More than one Service Area Category,More than one Service Division,Premises,01/05/2013 00:00,548261,1597.88,REVENUE,British Gas Business,
Peterborough,http://opendatacommunities.org/id/unitary-authority/peterborough,Peterborough City Council,Adult Social Care,Older People,More than one Expenses Type,01/05/2013 00:00,548270,2818.3,REVENUE,Fieldwork Admin Team (IMPREST),
Peterborough,http://opendatacommunities.org/id/unitary-authority/peterborough,Peterborough City Council,Children's & Education Services - Education,Early Years,Supplies and Services,03/05/2013 00:00,505729,726,REVENUE,Bundles of Fun Day Nursery,
Peterborough,http://opendatacommunities.org/id/unitary-authority/peterborough,Peterborough City Council,Children's & Education Services - Education,Other School -related Education Functions,Supplies and Services,03/05/2013 00:00,513481,26666.66,REVENUE,Wilds Lodge School,
Peterborough,http://opendatacommunities.org/id/unitary-authority/peterborough,Peterborough City Council,Housing Services,Supporting People,Third Party Payments,03/05/2013 00:00,534509,1777.8,REVENUE,Cambridgeshire Community Services,
Peterborough,http://opendatacommunities.org/id/unitary-authority/peterborough,Peterborough City Council,Housing Services,Private Sector Housing Renewal,Supplies and Services,03/05/2013 00:00,538248,935,REVENUE,Fletton Electrics Ltd,
Peterborough,http://opendatacommunities.org/id/unitary-authority/peterborough,Peterborough City Council,Housing Services,Private Sector Housing Renewal,Supplies and Services,03/05/2013 00:00,539042,1652.4,REVENUE,T G M Maintenance,
Peterborough,http://opendatacommunities.org/id/unitary-authority/peterborough,Peterborough City Council,Housing Services,Private Sector Housing Renewal,Supplies and Services,03/05/2013 00:00,544309,1130.5,REVENUE,Fletton Electrics Ltd,
Peterborough,http://opendatacommunities.org/id/unitary-authority/peterborough,Peterborough City Council,Housing Services,Homelessness,Supplies and Services,03/05/2013 00:00,546013,2700,REVENUE,City Church - Elim,
Peterborough,http://opendatacommunities.org/id/unitary-authority/peterborough,Peterborough City Council,Highways and Transport Services,Parking Services,Supplies and Services,03/05/2013 00:00,546199,913.14,REVENUE,BemroseBooth Ltd,
Peterborough,http://opendatacommunities.org/id/unitary-authority/peterborough,Peterborough City Council,Highways and Transport Services,Parking Services,Supplies and Services,03/05/2013 00:00,546252,-797.94,REVENUE,BemroseBooth Ltd,
Peterborough,http://opendatacommunities.org/id/unitary-authority/peterborough,Peterborough City Council,Environmental and Regulatory Services,Community Safety (CCTV),Supplies and Services,03/05/2013 00:00,546631,1406.8,REVENUE,Shopsafe,
Peterborough,http://opendatacommunities.org/id/unitary-authority/peterborough,Peterborough City Council,More than one Service Area Category,More than one Service Division,Balance Sheet,03/05/2013 00:00,547981,15213,Balance Sheet,Westleigh Developments Ltd,
Peterborough,http://opendatacommunities.org/id/unitary-authority/peterborough,Peterborough City Council,Children's & Education Services - Children's Social Care,Children Looked After,Supplies and Services - Transfer Payments,03/05/2013 00:00,548026,4150,REVENUE,Haven Foster Care Ltd,
Peterborough,http://opendatacommunities.org/id/unitary-authority/peterborough,Peterborough City Council,Deficit/(Surplus) on Trading Undertakings,Trading Account Surpluses & Deficits,Premises,03/05/2013 00:00,548050,1578.96,REVENUE,Eastern Shires Purchasing Organisation,
Peterborough,http://opendatacommunities.org/id/unitary-authority/peterborough,Peterborough City Council,Highways and Transport Services,Street Lighting,Premises,03/05/2013 00:00,548052,600.56,REVENUE,British Gas Business,
Peterborough,http://opendatacommunities.org/id/unitary-authority/peterborough,Peterborough City Council,Support Services,Support Services,Supplies and Services,03/05/2013 00:00,548130,11573.78,REVENUE,Serco Ltd,
Peterborough,http://opendatacommunities.org/id/unitary-authority/peterborough,Peterborough City Council,Support Services,Support Services,Premises,03/05/2013 00:00,548138,1029.9,REVENUE,Serco Ltd,
Peterborough,http://opendatacommunities.org/id/unitary-authority/peterborough,Peterborough City Council,Children's & Education Services - Children's Social Care,Other Children's & Families Services,Supplies and Services,03/05/2013 00:00,548146,509.8,REVENUE,Serco Ltd,
Peterborough,http://opendatacommunities.org/id/unitary-authority/peterborough,Peterborough City Council,Support Services,Support Services,Supplies and Services,03/05/2013 00:00,548184,439192.57,REVENUE,Serco Ltd,
Peterborough,http://opendatacommunities.org/id/unitary-authority/peterborough,Peterborough City Council,Children's & Education Services - Children's Social Care,More than one Service Division,Supplies and Services - Transfer Payments,03/05/2013 00:00,548238,16750,REVENUE,Oracle Care Ltd (Region 2),
Peterborough,http://opendatacommunities.org/id/unitary-authority/peterborough,Peterborough City Council,Children's & Education Services - Children's Social Care,Children Looked After,Supplies and Services - Transfer Payments,03/05/2013 00:00,548248,1918.84,REVENUE,PC Homes,
Peterborough,http://opendatacommunities.org/id/unitary-authority/peterborough,Peterborough City Council,Children's & Education Services - Children's Social Care,Children Looked After,Supplies and Services - Transfer Payments,03/05/2013 00:00,548250,1830.62,REVENUE,PC Homes,
Peterborough,http://opendatacommunities.org/id/unitary-authority/peterborough,Peterborough City Council,Deficit/(Surplus) on Trading Undertakings,Trading Account Surpluses & Deficits,Premises,03/05/2013 00:00,548262,838.93,REVENUE,British Gas Business,
Peterborough,http://opendatacommunities.org/id/unitary-authority/peterborough,Peterborough City Council,Children's & Education Services - Children's Social Care,More than one Service Division,Supplies and Services - Transfer Payments,03/05/2013 00:00,548338,39613,REVENUE,Chelfham Mill School Ltd,
Peterborough,http://opendatacommunities.org/id/unitary-authority/peterborough,Peterborough City Council,Corporate & Democratic Core,Democratic Representation & Managemetn,Supplies and Services,03/05/2013 00:00,548353,41048.74,REVENUE,Local Government Association,
Peterborough,http://opendatacommunities.org/id/unitary-authority/peterborough,Peterborough City Council,Environmental and Regulatory Services,"Cemetery, Crematorium & Mortuary Services",Premises,03/05/2013 00:00,548376,1151.76,REVENUE,"Strickland, Mr A M",
Peterborough,http://opendatacommunities.org/id/unitary-authority/peterborough,Peterborough City Council,Deficit/(Surplus) on Trading Undertakings,Trading Account Surpluses & Deficits,Supplies and Services,03/05/2013 00:00,548382,937.86,REVENUE,Barron Clark Castings Ltd,
Peterborough,http://opendatacommunities.org/id/unitary-authority/peterborough,Peterborough City Council,Children's & Education Services - Children's Social Care,Family Support Services,Employees,03/05/2013 00:00,548390,1692.96,REVENUE,Pulse,
Peterborough,http://opendatacommunities.org/id/unitary-authority/peterborough,Peterborough City Council,Deficit/(Surplus) on Trading Undertakings,Trading Account Surpluses & Deficits,Supplies and Services,03/05/2013 00:00,548396,758.4,REVENUE,Barron Clark Castings Ltd,
Peterborough,http://opendatacommunities.org/id/unitary-authority/peterborough,Peterborough City Council,Deficit/(Surplus) on Trading Undertakings,Trading Account Surpluses & Deficits,Supplies and Services,03/05/2013 00:00,548419,758.4,REVENUE,Barron Clark Castings Ltd,
Peterborough,http://opendatacommunities.org/id/unitary-authority/peterborough,Peterborough City Council,Deficit/(Surplus) on Trading Undertakings,Trading Account Surpluses & Deficits,Supplies and Services,03/05/2013 00:00,548421,618.98,REVENUE,Barron Clark Castings Ltd,
Peterborough,http://opendatacommunities.org/id/unitary-authority/peterborough,Peterborough City Council,Deficit/(Surplus) on Trading Undertakings,Trading Account Surpluses & Deficits,Supplies and Services,03/05/2013 00:00,548423,664.74,REVENUE,Barron Clark Castings Ltd,
Peterborough,http://opendatacommunities.org/id/unitary-authority/peterborough,Peterborough City Council,More than one Service Area Category,More than one Service Division,Balance Sheet,03/05/2013 00:00,548441,700.62,Balance Sheet,Rossendales C B Ltd,
Peterborough,http://opendatacommunities.org/id/unitary-authority/peterborough,Peterborough City Council,Adult Social Care,Older People,Employees,03/05/2013 00:00,548450,1491,REVENUE,Caritas Recruitment,
Peterborough,http://opendatacommunities.org/id/unitary-authority/peterborough,Peterborough City Council,Children's & Education Services - Education,Other School -related Education Functions,Transport,03/05/2013 00:00,548534,3705,REVENUE,Orton Community Transport Association Ltd,
Peterborough,http://opendatacommunities.org/id/unitary-authority/peterborough,Peterborough City Council,Children's & Education Services - Education,Other School -related Education Functions,Transport,03/05/2013 00:00,548535,3135,REVENUE,Orton Community Transport Association Ltd,
Peterborough,http://opendatacommunities.org/id/unitary-authority/peterborough,Peterborough City Council,Children's & Education Services - Education,Other School -related Education Functions,Transport,03/05/2013 00:00,548536,2029,REVENUE,Orton Community Transport Association Ltd,
Peterborough,http://opendatacommunities.org/id/unitary-authority/peterborough,Peterborough City Council,Children's & Education Services - Education,Other School -related Education Functions,Transport,03/05/2013 00:00,548537,4047,REVENUE,Orton Community Transport Association Ltd,
Peterborough,http://opendatacommunities.org/id/unitary-authority/peterborough,Peterborough City Council,Children's & Education Services - Education,Other School -related Education Functions,Transport,03/05/2013 00:00,548538,1238.18,REVENUE,Peterborough Cars,
Peterborough,http://opendatacommunities.org/id/unitary-authority/peterborough,Peterborough City Council,Children's & Education Services - Education,Other School -related Education Functions,Transport,03/05/2013 00:00,548539,996.08,REVENUE,Peterborough Cars,
Peterborough,http://opendatacommunities.org/id/unitary-authority/peterborough,Peterborough City Council,Children's & Education Services - Education,Other School -related Education Functions,Transport,03/05/2013 00:00,548540,1709.77,REVENUE,Peterborough Cars,
Peterborough,http://opendatacommunities.org/id/unitary-authority/peterborough,Peterborough City Council,Children's & Education Services - Education,Other School -related Education Functions,Transport,03/05/2013 00:00,548541,820.34,REVENUE,Peterborough Cars,
Peterborough,http://opendatacommunities.org/id/unitary-authority/peterborough,Peterborough City Council,Children's & Education Services - Education,Other School -related Education Functions,Transport,03/05/2013 00:00,548542,1293.36,REVENUE,Goldstar Cabs Ltd,
Peterborough,http://opendatacommunities.org/id/unitary-authority/peterborough,Peterborough City Council,Children's & Education Services - Education,Other School -related Education Functions,Transport,03/05/2013 00:00,548543,669.6,REVENUE,King Cabz,
Peterborough,http://opendatacommunities.org/id/unitary-authority/peterborough,Peterborough City Council,Children's & Education Services - Education,Other School -related Education Functions,Transport,03/05/2013 00:00,548544,1068,REVENUE,King Cabz,
Peterborough,http://opendatacommunities.org/id/unitary-authority/peterborough,Peterborough City Council,Children's & Education Services - Education,Other School -related Education Functions,Transport,03/05/2013 00:00,548545,828.66,REVENUE,King Cabz,
Peterborough,http://opendatacommunities.org/id/unitary-authority/peterborough,Peterborough City Council,Children's & Education Services - Education,Other School -related Education Functions,Transport,03/05/2013 00:00,548546,815.88,REVENUE,King Cabz,
Peterborough,http://opendatacommunities.org/id/unitary-authority/peterborough,Peterborough City Council,Children's & Education Services - Education,Other School -related Education Functions,Transport,03/05/2013 00:00,548547,934.68,REVENUE,King Cabz,
Peterborough,http://opendatacommunities.org/id/unitary-authority/peterborough,Peterborough City Council,Children's & Education Services - Education,Other School -related Education Functions,Transport,03/05/2013 00:00,548548,2708.83,REVENUE,May Gurney Fleet and Passenger Services,
Peterborough,http://opendatacommunities.org/id/unitary-authority/peterborough,Peterborough City Council,Children's & Education Services - Education,Other School -related Education Functions,Transport,03/05/2013 00:00,548549,2271.07,REVENUE,May Gurney Fleet and Passenger Services,
Peterborough,http://opendatacommunities.org/id/unitary-authority/peterborough,Peterborough City Council,Children's & Education Services - Education,Other School -related Education Functions,Transport,03/05/2013 00:00,548550,2593.31,REVENUE,May Gurney Fleet and Passenger Services,
Peterborough,http://opendatacommunities.org/id/unitary-authority/peterborough,Peterborough City Council,Children's & Education Services - Education,Other School -related Education Functions,Transport,03/05/2013 00:00,548551,2332.88,REVENUE,May Gurney Fleet and Passenger Services,
Peterborough,http://opendatacommunities.org/id/unitary-authority/peterborough,Peterborough City Council,Children's & Education Services - Education,Other School -related Education Functions,Transport,03/05/2013 00:00,548552,1125.6,REVENUE,Betta Cars,
Peterborough,http://opendatacommunities.org/id/unitary-authority/peterborough,Peterborough City Council,Children's & Education Services - Education,Other School -related Education Functions,Transport,03/05/2013 00:00,548553,798,REVENUE,Betta Cars,
Peterborough,http://opendatacommunities.org/id/unitary-authority/peterborough,Peterborough City Council,Children's & Education Services - Education,Other School -related Education Functions,Transport,03/05/2013 00:00,548554,1011.6,REVENUE,Betta Cars,
Peterborough,http://opendatacommunities.org/id/unitary-authority/peterborough,Peterborough City Council,Children's & Education Services - Education,Other School -related Education Functions,Transport,03/05/2013 00:00,548556,565.5,REVENUE,Betta Cars,
Peterborough,http://opendatacommunities.org/id/unitary-authority/peterborough,Peterborough City Council,Children's & Education Services - Education,Other School -related Education Functions,Transport,03/05/2013 00:00,548557,582,REVENUE,Betta Cars,
Peterborough,http://opendatacommunities.org/id/unitary-authority/peterborough,Peterborough City Council,Children's & Education Services - Education,Other School -related Education Functions,Transport,03/05/2013 00:00,548558,699.6,REVENUE,Betta Cars,
Peterborough,http://opendatacommunities.org/id/unitary-authority/peterborough,Peterborough City Council,Children's & Education Services - Education,Other School -related Education Functions,Transport,03/05/2013 00:00,548559,558,REVENUE,Betta Cars,
Peterborough,http://opendatacommunities.org/id/unitary-authority/peterborough,Peterborough City Council,Children's & Education Services - Education,Other School -related Education Functions,Transport,03/05/2013 00:00,548560,538.8,REVENUE,Betta Cars,
Peterborough,http://opendatacommunities.org/id/unitary-authority/peterborough,Peterborough City Council,Children's & Education Services - Education,Other School -related Education Functions,Transport,03/05/2013 00:00,548561,672.24,REVENUE,Betta Cars,
Peterborough,http://opendatacommunities.org/id/unitary-authority/peterborough,Peterborough City Council,Housing Services,Homelessness,Supplies and Services,03/05/2013 00:00,548596,500,REVENUE,Redacted Personal Data,
Peterborough,http://opendatacommunities.org/id/unitary-authority/peterborough,Peterborough City Council,Environmental and Regulatory Services,Regulatory services,Employees,08/05/2013 00:00,509571,2499.5,REVENUE,The Synergy Group,
Peterborough,http://opendatacommunities.org/id/unitary-authority/peterborough,Peterborough City Council,Adult Social Care,Adult Learning Disabilities,Employees,08/05/2013 00:00,511522,1132.7,REVENUE,Jark Healthcare,
Peterborough,http://opendatacommunities.org/id/unitary-authority/peterborough,Peterborough City Council,Adult Social Care,More than one Service Division,Supplies and Services,08/05/2013 00:00,512407,631.2,REVENUE,Applied Language Solutions,
Peterborough,http://opendatacommunities.org/id/unitary-authority/peterborough,Peterborough City Council,Adult Social Care,More than one Service Division,Supplies and Services,08/05/2013 00:00,512417,671.1,REVENUE,Applied Language Solutions,
Peterborough,http://opendatacommunities.org/id/unitary-authority/peterborough,Peterborough City Council,Support Services,Support Services,Supplies and Services,08/05/2013 00:00,512441,729,REVENUE,Applied Language Solutions,
Peterborough,http://opendatacommunities.org/id/unitary-authority/peterborough,Peterborough City Council,Adult Social Care,Older People,Third Party Payments,08/05/2013 00:00,528176,-2573.28,REVENUE,Sanctuary Personnel Ltd,
Peterborough,http://opendatacommunities.org/id/unitary-authority/peterborough,Peterborough City Council,Highways and Transport Services,Public Transport,Supplies and Services,08/05/2013 00:00,531887,1255.28,REVENUE,Unicard Ltd,
Peterborough,http://opendatacommunities.org/id/unitary-authority/peterborough,Peterborough City Council,Adult Social Care,Older People,Supplies and Services,08/05/2013 00:00,537756,964.6,REVENUE,BUPA Care  Homes,
Peterborough,http://opendatacommunities.org/id/unitary-authority/peterborough,Peterborough City Council,Housing Services,Homelessness,Supplies and Services,08/05/2013 00:00,539071,1800,REVENUE,Peterborough Citizens Advice Bureau,
Peterborough,http://opendatacommunities.org/id/unitary-authority/peterborough,Peterborough City Council,Adult Social Care,Older People,Supplies and Services,08/05/2013 00:00,539393,813.94,REVENUE,COMFORCARE SENIOR SERVICES,
Peterborough,http://opendatacommunities.org/id/unitary-authority/peterborough,Peterborough City Council,Adult Social Care,Older People,Supplies and Services,08/05/2013 00:00,539889,657.22,REVENUE,Housing 21,
Peterborough,http://opendatacommunities.org/id/unitary-authority/peterborough,Peterborough City Council,Support Services,Support Services,Employees,08/05/2013 00:00,540305,-1207.5,REVENUE,Venn Group Ltd,
Peterborough,http://opendatacommunities.org/id/unitary-authority/peterborough,Peterborough City Council,Children's & Education Services - Children's Social Care,Service Strategy,Third Party Payments,08/05/2013 00:00,540946,5333.34,REVENUE,DRINKSENSE,
Peterborough,http://opendatacommunities.org/id/unitary-authority/peterborough,Peterborough City Council,Children's & Education Services - Children's Social Care,Service Strategy,Third Party Payments,08/05/2013 00:00,540948,8489.27,REVENUE,DRINKSENSE,
Peterborough,http://opendatacommunities.org/id/unitary-authority/peterborough,Peterborough City Council,Housing Services,Private Sector Housing Renewal,Supplies and Services,08/05/2013 00:00,541423,614.25,REVENUE,Rawheat Heating & Plumbing Eng.,
Peterborough,http://opendatacommunities.org/id/unitary-authority/peterborough,Peterborough City Council,Housing Services,Private Sector Housing Renewal,Supplies and Services,08/05/2013 00:00,541424,652.8,REVENUE,Rawheat Heating & Plumbing Eng.,
Peterborough,http://opendatacommunities.org/id/unitary-authority/peterborough,Peterborough City Council,Children's & Education Services - Children's Social Care,Children Looked After,Supplies and Services - Transfer Payments,08/05/2013 00:00,541527,4034.43,REVENUE,Five Rivers,
Peterborough,http://opendatacommunities.org/id/unitary-authority/peterborough,Peterborough City Council,Capital,Capital,Capital Pending Update to BS,08/05/2013 00:00,541552,1872,CAPITAL,Hereward Stationers & Printers Ltd,
Peterborough,http://opendatacommunities.org/id/unitary-authority/peterborough,Peterborough City Council,Children's & Education Services - Education,Secondary,Supplies and Services,08/05/2013 00:00,541558,29148.24,REVENUE,IIC by Education (P'boro) Ltd,
Peterborough,http://opendatacommunities.org/id/unitary-authority/peterborough,Peterborough City Council,Support Services,Support Services,Supplies and Services,08/05/2013 00:00,541582,1200,REVENUE,Hammerson Operations Ltd,
Peterborough,http://opendatacommunities.org/id/unitary-authority/peterborough,Peterborough City Council,Children's & Education Services - Children's Social Care,Family Support Services,Employees,08/05/2013 00:00,541586,1354.37,REVENUE,Pulse,
Peterborough,http://opendatacommunities.org/id/unitary-authority/peterborough,Peterborough City Council,Central Services to the Public,Elections,Supplies and Services,08/05/2013 00:00,541593,2517,REVENUE,Association of Electoral Administrators,
Peterborough,http://opendatacommunities.org/id/unitary-authority/peterborough,Peterborough City Council,Cultural and Related Services,Recreation & Sport,Supplies and Services,08/05/2013 00:00,541594,720,REVENUE,RMIS Ltd,
Peterborough,http://opendatacommunities.org/id/unitary-authority/peterborough,Peterborough City Council,Children's & Education Services - Children's Social Care,Family Support Services,Employees,08/05/2013 00:00,541657,1188,REVENUE,SWP Consulting,
Peterborough,http://opendatacommunities.org/id/unitary-authority/peterborough,Peterborough City Council,Support Services,Support Services,Supplies and Services,08/05/2013 00:00,541662,49500,REVENUE,Triaster Ltd,
Peterborough,http://opendatacommunities.org/id/unitary-authority/peterborough,Peterborough City Council,Children's & Education Services - Children's Social Care,Children Looked After,Supplies and Services,08/05/2013 00:00,541667,5794.75,REVENUE,DRINKSENSE,
Peterborough,http://opendatacommunities.org/id/unitary-authority/peterborough,Peterborough City Council,Children's & Education Services - Education,Other School -related Education Functions,Supplies and Services - Transfer Payments,08/05/2013 00:00,541683,23063,REVENUE,Knossington Grange School Ltd,
Peterborough,http://opendatacommunities.org/id/unitary-authority/peterborough,Peterborough City Council,Children's & Education Services - Education,Other School -related Education Functions,Supplies and Services - Transfer Payments,08/05/2013 00:00,541685,18942,REVENUE,Knossington Grange School Ltd,
Peterborough,http://opendatacommunities.org/id/unitary-authority/peterborough,Peterborough City Council,Children's & Education Services - Education,Other School -related Education Functions,Supplies and Services - Transfer Payments,08/05/2013 00:00,541686,22790,REVENUE,Knossington Grange School Ltd,
Peterborough,http://opendatacommunities.org/id/unitary-authority/peterborough,Peterborough City Council,Children's & Education Services - Education,Other School -related Education Functions,Supplies and Services - Transfer Payments,08/05/2013 00:00,541688,22790,REVENUE,Knossington Grange School Ltd,
Peterborough,http://opendatacommunities.org/id/unitary-authority/peterborough,Peterborough City Council,Children's & Education Services - Children's Social Care,Children's Services - Commissioning and Social Work,Employees,08/05/2013 00:00,541733,950.4,REVENUE,SWP Consulting,
Peterborough,http://opendatacommunities.org/id/unitary-authority/peterborough,Peterborough City Council,Children's & Education Services - Education,Other School -related Education Functions,Supplies and Services - Transfer Payments,08/05/2013 00:00,541736,18750,REVENUE,Park House School,
Peterborough,http://opendatacommunities.org/id/unitary-authority/peterborough,Peterborough City Council,Support Services,Support Services,Supplies and Services,08/05/2013 00:00,541880,526.63,REVENUE,Northgate Information Solutions,
Peterborough,http://opendatacommunities.org/id/unitary-authority/peterborough,Peterborough City Council,Planning Services,Environmental Initiatives,Supplies and Services,08/05/2013 00:00,541910,2046,REVENUE,TR Control Solutions Ltd,
Peterborough,http://opendatacommunities.org/id/unitary-authority/peterborough,Peterborough City Council,Children's & Education Services - Children's Social Care,Other Children's & Families Services,Third Party Payments,08/05/2013 00:00,542034,40497.25,REVENUE,DRINKSENSE,
Peterborough,http://opendatacommunities.org/id/unitary-authority/peterborough,Peterborough City Council,Support Services,Support Services,Employees,08/05/2013 00:00,542059,1407,REVENUE,Venn Group Ltd,
Peterborough,http://opendatacommunities.org/id/unitary-authority/peterborough,Peterborough City Council,Adult Social Care,Support Services & Management Costs,Employees,08/05/2013 00:00,542078,1428,REVENUE,Venn Group Ltd,
Peterborough,http://opendatacommunities.org/id/unitary-authority/peterborough,Peterborough City Council,Children's & Education Services - Children's Social Care,Other Children's & Families Services,Employees,08/05/2013 00:00,542084,2227.09,REVENUE,Venn Group Ltd,
Peterborough,http://opendatacommunities.org/id/unitary-authority/peterborough,Peterborough City Council,Children's & Education Services - Children's Social Care,More than one Service Division,Supplies and Services,08/05/2013 00:00,542103,5400,REVENUE,M Caton Associates Ltd,
Peterborough,http://opendatacommunities.org/id/unitary-authority/peterborough,Peterborough City Council,Planning Services,Building Control,Employees,08/05/2013 00:00,542106,2591.92,REVENUE,District Surveyors Ltd t/a LABC,
Peterborough,http://opendatacommunities.org/id/unitary-authority/peterborough,Peterborough City Council,Children's & Education Services - Children's Social Care,Children's Services - Commissioning and Social Work,Third Party Payments,08/05/2013 00:00,542132,8700,REVENUE,Chunky Frog Design Ltd,
Peterborough,http://opendatacommunities.org/id/unitary-authority/peterborough,Peterborough City Council,Capital,Capital,Capital Pending Update to BS,08/05/2013 00:00,542234,37500,CAPITAL,Pinsent Masons,
Peterborough,http://opendatacommunities.org/id/unitary-authority/peterborough,Peterborough City Council,Capital,Capital,Capital Pending Update to BS,08/05/2013 00:00,542236,24000,CAPITAL,Pinsent Masons,
Peterborough,http://opendatacommunities.org/id/unitary-authority/peterborough,Peterborough City Council,Children's & Education Services - Children's Social Care,Children Looked After,Supplies and Services,08/05/2013 00:00,542255,503.31,REVENUE,Walter Clarke EFG,
Peterborough,http://opendatacommunities.org/id/unitary-authority/peterborough,Peterborough City Council,Children's & Education Services - Children's Social Care,Children's Services - Commissioning and Social Work,Supplies and Services,08/05/2013 00:00,542259,1617.8,REVENUE,Sue Bach Associates Ltd,
Peterborough,http://opendatacommunities.org/id/unitary-authority/peterborough,Peterborough City Council,Highways and Transport Services,Public Transport,Supplies and Services,08/05/2013 00:00,542458,3173,REVENUE,Stagecoach in Peterborough,
Peterborough,http://opendatacommunities.org/id/unitary-authority/peterborough,Peterborough City Council,Children's & Education Services - Children's Social Care,Service Strategy,Supplies and Services,08/05/2013 00:00,542643,3204,REVENUE,Hunterlodge Advertising,
Peterborough,http://opendatacommunities.org/id/unitary-authority/peterborough,Peterborough City Council,Capital,Capital,Capital Pending Update to BS,08/05/2013 00:00,542647,1761.6,CAPITAL,Diocese of Peterborough,
Peterborough,http://opendatacommunities.org/id/unitary-authority/peterborough,Peterborough City Council,Capital,Capital,Capital Pending Update to BS,08/05/2013 00:00,542649,131817,CAPITAL,Diocese of Peterborough,
Peterborough,http://opendatacommunities.org/id/unitary-authority/peterborough,Peterborough City Council,Capital,Capital,Capital Pending Update to BS,08/05/2013 00:00,542651,1200,CAPITAL,Diocese of Peterborough,
Peterborough,http://opendatacommunities.org/id/unitary-authority/peterborough,Peterborough City Council,Capital,Capital,Capital Pending Update to BS,08/05/2013 00:00,542661,9000,CAPITAL,Diocese of Peterborough,
Peterborough,http://opendatacommunities.org/id/unitary-authority/peterborough,Peterborough City Council,Children's & Education Services - Children's Social Care,Family Support Services,Employees,08/05/2013 00:00,542671,1728,REVENUE,SW Locums Ltd,
Peterborough,http://opendatacommunities.org/id/unitary-authority/peterborough,Peterborough City Council,Children's & Education Services - Children's Social Care,Children's Services - Commissioning and Social Work,Employees,08/05/2013 00:00,542675,1728,REVENUE,SW Locums Ltd,
Peterborough,http://opendatacommunities.org/id/unitary-authority/peterborough,Peterborough City Council,Highways and Transport Services,Street Lighting,Supplies and Services,08/05/2013 00:00,542676,1022.4,REVENUE,UK Power Networks (operations) Ltd,
Peterborough,http://opendatacommunities.org/id/unitary-authority/peterborough,Peterborough City Council,Children's & Education Services - Education,Secondary,Employees,08/05/2013 00:00,542682,882.77,REVENUE,IIC by Education (P'boro) Ltd,
Peterborough,http://opendatacommunities.org/id/unitary-authority/peterborough,Peterborough City Council,Capital,Capital,Capital Pending Update to BS,08/05/2013 00:00,542708,907.68,CAPITAL,Telent Technology Services Ltd,
Peterborough,http://opendatacommunities.org/id/unitary-authority/peterborough,Peterborough City Council,Support Services,Support Services,Supplies and Services,08/05/2013 00:00,542710,509.8,REVENUE,Phoenix Software Ltd,
Peterborough,http://opendatacommunities.org/id/unitary-authority/peterborough,Peterborough City Council,Highways and Transport Services,Traffic management & Road Safety,Supplies and Services,08/05/2013 00:00,542713,916.97,REVENUE,Telent Technology Services Ltd,
Peterborough,http://opendatacommunities.org/id/unitary-authority/peterborough,Peterborough City Council,Capital,Capital,Capital Pending Update to BS,08/05/2013 00:00,542717,1308.35,CAPITAL,Telent Technology Services Ltd,
Peterborough,http://opendatacommunities.org/id/unitary-authority/peterborough,Peterborough City Council,Support Services,Support Services,Supplies and Services,08/05/2013 00:00,542760,3600,REVENUE,Simply Services Ltd,
Peterborough,http://opendatacommunities.org/id/unitary-authority/peterborough,Peterborough City Council,Support Services,Support Services,Supplies and Services,08/05/2013 00:00,542786,684,REVENUE,Clear Channel UK Ltd,
Peterborough,http://opendatacommunities.org/id/unitary-authority/peterborough,Peterborough City Council,Capital,Capital,Capital Pending Update to BS,08/05/2013 00:00,543319,14058,CAPITAL,Quadrant Security Group Ltd,
Peterborough,http://opendatacommunities.org/id/unitary-authority/peterborough,Peterborough City Council,Capital,Capital,Capital Pending Update to BS,08/05/2013 00:00,543320,8733.6,CAPITAL,Quadrant Security Group Ltd,
Peterborough,http://opendatacommunities.org/id/unitary-authority/peterborough,Peterborough City Council,Corporate & Democratic Core,Democratic Representation & Managemetn,Supplies and Services,08/05/2013 00:00,543326,836.89,REVENUE,Drinkmaster Ltd,
Peterborough,http://opendatacommunities.org/id/unitary-authority/peterborough,Peterborough City Council,Adult Social Care,Service Strategy,Supplies and Services,08/05/2013 00:00,543382,13134,REVENUE,Veredus,
Peterborough,http://opendatacommunities.org/id/unitary-authority/peterborough,Peterborough City Council,Highways and Transport Services,Public Transport,Supplies and Services,08/05/2013 00:00,543413,15525,REVENUE,First Eastern Counties Buses Ltd,
Peterborough,http://opendatacommunities.org/id/unitary-authority/peterborough,Peterborough City Council,Children's & Education Services - Education,Other Children's & Families Services,Third Party Payments,08/05/2013 00:00,543418,90000,REVENUE,Cranfield University,
Peterborough,http://opendatacommunities.org/id/unitary-authority/peterborough,Peterborough City Council,Children's & Education Services - Education,Primary,Supplies and Services,08/05/2013 00:00,543431,5550,REVENUE,Edge Hill University,
Peterborough,http://opendatacommunities.org/id/unitary-authority/peterborough,Peterborough City Council,Children's & Education Services - Children's Social Care,Children Looked After,Supplies and Services - Transfer Payments,08/05/2013 00:00,543432,3509.45,REVENUE,PC Homes,
Peterborough,http://opendatacommunities.org/id/unitary-authority/peterborough,Peterborough City Council,Environmental and Regulatory Services,Regulatory services,Third Party Payments,08/05/2013 00:00,543434,8362.61,REVENUE,Midland Environmental Contracts Ltd,
Peterborough,http://opendatacommunities.org/id/unitary-authority/peterborough,Peterborough City Council,Environmental and Regulatory Services,Regulatory services,Supplies and Services,08/05/2013 00:00,543438,5100,REVENUE,EETSA Ltd,
Peterborough,http://opendatacommunities.org/id/unitary-authority/peterborough,Peterborough City Council,Cultural and Related Services,Support Services & Management Costs,Supplies and Services,08/05/2013 00:00,543461,5101.5,REVENUE,TNT Post London Ltd,
Peterborough,http://opendatacommunities.org/id/unitary-authority/peterborough,Peterborough City Council,Highways and Transport Services,Street Lighting,Premises,08/05/2013 00:00,543465,-5980.33,REVENUE,E.ON Energy,
Peterborough,http://opendatacommunities.org/id/unitary-authority/peterborough,Peterborough City Council,Highways and Transport Services,Street Lighting,Premises,08/05/2013 00:00,543466,6138.47,REVENUE,E.ON Energy,
Peterborough,http://opendatacommunities.org/id/unitary-authority/peterborough,Peterborough City Council,Children's & Education Services - Children's Social Care,Children's Services - Commissioning and Social Work,Supplies and Services,08/05/2013 00:00,543513,15672,REVENUE,Thomas Bain & Lesley Dahle Partnership,
Peterborough,http://opendatacommunities.org/id/unitary-authority/peterborough,Peterborough City Council,Environmental and Regulatory Services,Regulatory services,Supplies and Services,08/05/2013 00:00,543521,688.46,REVENUE,Gradko International Ltd,
Peterborough,http://opendatacommunities.org/id/unitary-authority/peterborough,Peterborough City Council,Adult Social Care,Older People,Transport,08/05/2013 00:00,543554,12675,REVENUE,Ensure UK Ltd,
Peterborough,http://opendatacommunities.org/id/unitary-authority/peterborough,Peterborough City Council,Children's & Education Services - Children's Social Care,Other Children's & Families Services,Supplies and Services,08/05/2013 00:00,543590,840,REVENUE,"Thind, Ms Anita",
Peterborough,http://opendatacommunities.org/id/unitary-authority/peterborough,Peterborough City Council,Children's & Education Services - Children's Social Care,Other Children's & Families Services,Supplies and Services,08/05/2013 00:00,543593,2100,REVENUE,Jane Bennington,
Peterborough,http://opendatacommunities.org/id/unitary-authority/peterborough,Peterborough City Council,Adult Social Care,Older People,Supplies and Services,08/05/2013 00:00,543953,640,REVENUE,Papworth Trust,
Peterborough,http://opendatacommunities.org/id/unitary-authority/peterborough,Peterborough City Council,Adult Social Care,Support Services & Management Costs,Employees,08/05/2013 00:00,543958,649.99,REVENUE,Service Care Solutions Ltd,
Peterborough,http://opendatacommunities.org/id/unitary-authority/peterborough,Peterborough City Council,Adult Social Care,Older People,Supplies and Services,08/05/2013 00:00,544003,1083.2,REVENUE,CEDARS HEALTH CARE LIMITED,
Peterborough,http://opendatacommunities.org/id/unitary-authority/peterborough,Peterborough City Council,Capital,Capital,Capital Pending Update to BS,08/05/2013 00:00,544074,21831.48,CAPITAL,Bull & Co Ltd,
Peterborough,http://opendatacommunities.org/id/unitary-authority/peterborough,Peterborough City Council,Capital,Capital,Capital Pending Update to BS,08/05/2013 00:00,544084,50007.12,CAPITAL,Bull & Co Ltd,
Peterborough,http://opendatacommunities.org/id/unitary-authority/peterborough,Peterborough City Council,Adult Social Care,Older People,Supplies and Services,08/05/2013 00:00,544117,1132.2,REVENUE,Maxey House Res Home,
Peterborough,http://opendatacommunities.org/id/unitary-authority/peterborough,Peterborough City Council,Adult Social Care,Older People,Supplies and Services,08/05/2013 00:00,544119,1064.42,REVENUE,Maxey House Res Home,
Peterborough,http://opendatacommunities.org/id/unitary-authority/peterborough,Peterborough City Council,Adult Social Care,Older People,Supplies and Services,08/05/2013 00:00,544165,2873.8,REVENUE,LESTER HALL APARTMENTS LTD,
Peterborough,http://opendatacommunities.org/id/unitary-authority/peterborough,Peterborough City Council,Children's & Education Services - Children's Social Care,Family Support Services,Supplies and Services,08/05/2013 00:00,544170,2308.8,REVENUE,Jenx Ltd,
Peterborough,http://opendatacommunities.org/id/unitary-authority/peterborough,Peterborough City Council,Adult Social Care,Adult Mental Health,Supplies and Services,08/05/2013 00:00,544182,1588.76,REVENUE,Barchester Healthcare (Werrington Lodge),
Peterborough,http://opendatacommunities.org/id/unitary-authority/peterborough,Peterborough City Council,Children's & Education Services - Children's Social Care,Family Support Services,Supplies and Services,08/05/2013 00:00,544323,630,REVENUE,Movement 2 - Prism Medical UK,
Peterborough,http://opendatacommunities.org/id/unitary-authority/peterborough,Peterborough City Council,Adult Social Care,Adult Learning Disabilities,Supplies and Services,08/05/2013 00:00,544422,824.88,REVENUE,Mencap,
Peterborough,http://opendatacommunities.org/id/unitary-authority/peterborough,Peterborough City Council,Adult Social Care,Adult Learning Disabilities,Supplies and Services,08/05/2013 00:00,544426,666.72,REVENUE,Mencap,
Peterborough,http://opendatacommunities.org/id/unitary-authority/peterborough,Peterborough City Council,Adult Social Care,Adult Learning Disabilities,Supplies and Services,08/05/2013 00:00,544431,712.08,REVENUE,Mencap,
Peterborough,http://opendatacommunities.org/id/unitary-authority/peterborough,Peterborough City Council,Adult Social Care,Adult Learning Disabilities,Supplies and Services,08/05/2013 00:00,544432,660.52,REVENUE,Mencap,
Peterborough,http://opendatacommunities.org/id/unitary-authority/peterborough,Peterborough City Council,Adult Social Care,Adult Learning Disabilities,Supplies and Services,08/05/2013 00:00,544433,5381.72,REVENUE,Mencap,
Peterborough,http://opendatacommunities.org/id/unitary-authority/peterborough,Peterborough City Council,Adult Social Care,Adult Learning Disabilities,Supplies and Services,08/05/2013 00:00,544438,783.4,REVENUE,Mencap,
Peterborough,http://opendatacommunities.org/id/unitary-authority/peterborough,Peterborough City Council,Adult Social Care,Adult Learning Disabilities,Supplies and Services,08/05/2013 00:00,544444,1323.88,REVENUE,Mencap,
Peterborough,http://opendatacommunities.org/id/unitary-authority/peterborough,Peterborough City Council,Adult Social Care,Adult Learning Disabilities,Supplies and Services,08/05/2013 00:00,544448,6265.4,REVENUE,Mencap,
Peterborough,http://opendatacommunities.org/id/unitary-authority/peterborough,Peterborough City Council,Adult Social Care,Older People,Supplies and Services,08/05/2013 00:00,544451,1854.58,REVENUE,Park Vista Care Home,
Peterborough,http://opendatacommunities.org/id/unitary-authority/peterborough,Peterborough City Council,Adult Social Care,Adult Learning Disabilities,Supplies and Services,08/05/2013 00:00,544454,737.84,REVENUE,Mencap,
Peterborough,http://opendatacommunities.org/id/unitary-authority/peterborough,Peterborough City Council,Adult Social Care,Adult Learning Disabilities,Supplies and Services,08/05/2013 00:00,544455,2291.4,REVENUE,Mencap,
Peterborough,http://opendatacommunities.org/id/unitary-authority/peterborough,Peterborough City Council,Adult Social Care,Adult Learning Disabilities,Supplies and Services,08/05/2013 00:00,544460,13338.52,REVENUE,Mencap,
Peterborough,http://opendatacommunities.org/id/unitary-authority/peterborough,Peterborough City Council,Adult Social Care,Adult Learning Disabilities,Supplies and Services,08/05/2013 00:00,544476,1027.44,REVENUE,Mencap,
Peterborough,http://opendatacommunities.org/id/unitary-authority/peterborough,Peterborough City Council,Adult Social Care,Adult Learning Disabilities,Supplies and Services,08/05/2013 00:00,544494,861.84,REVENUE,Mencap,
Peterborough,http://opendatacommunities.org/id/unitary-authority/peterborough,Peterborough City Council,Adult Social Care,Adult Learning Disabilities,Supplies and Services,08/05/2013 00:00,544499,6436.56,REVENUE,Mencap,
Peterborough,http://opendatacommunities.org/id/unitary-authority/peterborough,Peterborough City Council,Adult Social Care,Adult Learning Disabilities,Supplies and Services,08/05/2013 00:00,544503,737.84,REVENUE,Mencap,
Peterborough,http://opendatacommunities.org/id/unitary-authority/peterborough,Peterborough City Council,Adult Social Care,Adult Learning Disabilities,Supplies and Services,08/05/2013 00:00,544514,806.28,REVENUE,Mencap,
Peterborough,http://opendatacommunities.org/id/unitary-authority/peterborough,Peterborough City Council,Adult Social Care,Older People,Supplies and Services,08/05/2013 00:00,544567,834.49,REVENUE,BUPA CARE SERVICES,
Peterborough,http://opendatacommunities.org/id/unitary-authority/peterborough,Peterborough City Council,Adult Social Care,Adult Learning Disabilities,Supplies and Services,08/05/2013 00:00,544569,2801.64,REVENUE,LEONARD CHESHIRE DISABILITY,
Peterborough,http://opendatacommunities.org/id/unitary-authority/peterborough,Peterborough City Council,Adult Social Care,Older People,Supplies and Services,08/05/2013 00:00,544572,1050.51,REVENUE,Park Vista Care Home,
Peterborough,http://opendatacommunities.org/id/unitary-authority/peterborough,Peterborough City Council,Adult Social Care,Older People,Supplies and Services,08/05/2013 00:00,544581,1052.31,REVENUE,BUPA CARE SERVICES,
Peterborough,http://opendatacommunities.org/id/unitary-authority/peterborough,Peterborough City Council,Adult Social Care,Older People,Supplies and Services,08/05/2013 00:00,544583,811.47,REVENUE,BUPA CARE SERVICES,
Peterborough,http://opendatacommunities.org/id/unitary-authority/peterborough,Peterborough City Council,Adult Social Care,Adult Learning Disabilities,Supplies and Services,08/05/2013 00:00,544585,11344.44,REVENUE,Autism Care (UK) Ltd,
Peterborough,http://opendatacommunities.org/id/unitary-authority/peterborough,Peterborough City Council,Capital,Capital,Capital Pending Update to BS,08/05/2013 00:00,544631,15549.84,CAPITAL,IIC by Education (P'boro) Ltd,
Peterborough,http://opendatacommunities.org/id/unitary-authority/peterborough,Peterborough City Council,Support Services,Support Services,Supplies and Services,08/05/2013 00:00,544657,870.16,REVENUE,Rossendales C B Ltd,
Peterborough,http://opendatacommunities.org/id/unitary-authority/peterborough,Peterborough City Council,Children's & Education Services - Education,Secondary,Premises,08/05/2013 00:00,544670,717.41,REVENUE,Anglian Water,
Peterborough,http://opendatacommunities.org/id/unitary-authority/peterborough,Peterborough City Council,Adult Social Care,Adult Learning Disabilities,Supplies and Services,08/05/2013 00:00,544714,2136.64,REVENUE,LINK HOUSE,
Peterborough,http://opendatacommunities.org/id/unitary-authority/peterborough,Peterborough City Council,Adult Social Care,Adult Learning Disabilities,Supplies and Services,08/05/2013 00:00,544726,4503.76,REVENUE,Augusta Care Ltd,
Peterborough,http://opendatacommunities.org/id/unitary-authority/peterborough,Peterborough City Council,Support Services,Support Services,Premises,08/05/2013 00:00,544776,819.1,REVENUE,Capita Symonds Ltd,
Peterborough,http://opendatacommunities.org/id/unitary-authority/peterborough,Peterborough City Council,Support Services,Support Services,Premises,08/05/2013 00:00,544779,619.28,REVENUE,Capita Symonds Ltd,
Peterborough,http://opendatacommunities.org/id/unitary-authority/peterborough,Peterborough City Council,Support Services,Support Services,Premises,08/05/2013 00:00,544781,803,REVENUE,Capita Symonds Ltd,
Peterborough,http://opendatacommunities.org/id/unitary-authority/peterborough,Peterborough City Council,Highways and Transport Services,Public Transport,Supplies and Services,08/05/2013 00:00,544783,7920.44,REVENUE,Stagecoach in Peterborough,
Peterborough,http://opendatacommunities.org/id/unitary-authority/peterborough,Peterborough City Council,Adult Social Care,Older People,Supplies and Services,08/05/2013 00:00,544919,1071.32,REVENUE,Maxey House Res Home,
Peterborough,http://opendatacommunities.org/id/unitary-authority/peterborough,Peterborough City Council,Adult Social Care,Older People,Fees and Charges,08/05/2013 00:00,544933,1007.76,REVENUE,Maxey House Res Home,
Peterborough,http://opendatacommunities.org/id/unitary-authority/peterborough,Peterborough City Council,Adult Social Care,Older People,Supplies and Services,08/05/2013 00:00,544936,1035.36,REVENUE,Maxey House Res Home,
Peterborough,http://opendatacommunities.org/id/unitary-authority/peterborough,Peterborough City Council,Adult Social Care,Older People,Supplies and Services,08/05/2013 00:00,544939,927.16,REVENUE,Maxey House Res Home,
Peterborough,http://opendatacommunities.org/id/unitary-authority/peterborough,Peterborough City Council,Adult Social Care,Adult Learning Disabilities,Supplies and Services,08/05/2013 00:00,545157,785.5,REVENUE,THE ASSIST TRUST LTD,
Peterborough,http://opendatacommunities.org/id/unitary-authority/peterborough,Peterborough City Council,Children's & Education Services - Children's Social Care,Children's Services - Commissioning and Social Work,Employees,08/05/2013 00:00,545265,1657.02,REVENUE,Sanctuary Personnel Ltd,
Peterborough,http://opendatacommunities.org/id/unitary-authority/peterborough,Peterborough City Council,Adult Social Care,Older People,Supplies and Services,08/05/2013 00:00,545279,941.32,REVENUE,Maxey House Res Home,
Peterborough,http://opendatacommunities.org/id/unitary-authority/peterborough,Peterborough City Council,Adult Social Care,Older People,Supplies and Services,08/05/2013 00:00,545295,1062.12,REVENUE,Maxey House Res Home,
Peterborough,http://opendatacommunities.org/id/unitary-authority/peterborough,Peterborough City Council,Children's & Education Services - Children's Social Care,Children Looked After,Employees,08/05/2013 00:00,545376,1386,REVENUE,Randstad Care Ltd,
Peterborough,http://opendatacommunities.org/id/unitary-authority/peterborough,Peterborough City Council,Children's & Education Services - Children's Social Care,Children Looked After,Employees,08/05/2013 00:00,545377,744.29,REVENUE,Randstad Care Ltd,
Peterborough,http://opendatacommunities.org/id/unitary-authority/peterborough,Peterborough City Council,Children's & Education Services - Children's Social Care,Children's Services - Commissioning and Social Work,Employees,08/05/2013 00:00,545402,1530,REVENUE,Sanctuary Personnel Ltd,
Peterborough,http://opendatacommunities.org/id/unitary-authority/peterborough,Peterborough City Council,Children's & Education Services - Children's Social Care,Children's Services - Commissioning and Social Work,Employees,08/05/2013 00:00,545403,1273.5,REVENUE,Sanctuary Personnel Ltd,
Peterborough,http://opendatacommunities.org/id/unitary-authority/peterborough,Peterborough City Council,Children's & Education Services - Children's Social Care,Children's Services - Commissioning and Social Work,Employees,08/05/2013 00:00,545404,1576.62,REVENUE,Sanctuary Personnel Ltd,
Peterborough,http://opendatacommunities.org/id/unitary-authority/peterborough,Peterborough City Council,Children's & Education Services - Children's Social Care,Children's Services - Commissioning and Social Work,Employees,08/05/2013 00:00,545406,1575,REVENUE,Sanctuary Personnel Ltd,
Peterborough,http://opendatacommunities.org/id/unitary-authority/peterborough,Peterborough City Council,Children's & Education Services - Children's Social Care,Children Looked After,Employees,08/05/2013 00:00,545408,1529.14,REVENUE,Sanctuary Personnel Ltd,
Peterborough,http://opendatacommunities.org/id/unitary-authority/peterborough,Peterborough City Council,Children's & Education Services - Children's Social Care,Family Support Services,Employees,08/05/2013 00:00,545411,1530,REVENUE,Sanctuary Personnel Ltd,
Peterborough,http://opendatacommunities.org/id/unitary-authority/peterborough,Peterborough City Council,Children's & Education Services - Children's Social Care,Children Looked After,Employees,08/05/2013 00:00,545417,2125.86,REVENUE,Sanctuary Personnel Ltd,
Peterborough,http://opendatacommunities.org/id/unitary-authority/peterborough,Peterborough City Council,Adult Social Care,Older People,Supplies and Services,08/05/2013 00:00,545520,636.75,REVENUE,Axiom Crossroads Care,
Peterborough,http://opendatacommunities.org/id/unitary-authority/peterborough,Peterborough City Council,More than one Service Area Category,More than one Service Division,Supplies and Services,08/05/2013 00:00,546012,503.9,REVENUE,O2 (UK) Ltd,
Peterborough,http://opendatacommunities.org/id/unitary-authority/peterborough,Peterborough City Council,Highways and Transport Services,Public Transport,Supplies and Services,08/05/2013 00:00,546141,8300,REVENUE,Nottinghamshire County Council,
Peterborough,http://opendatacommunities.org/id/unitary-authority/peterborough,Peterborough City Council,More than one Service Area Category,More than one Service Division,More than one Expenses Type,08/05/2013 00:00,546160,204278.62,"Mixture of Capital, Revenue and/or Balance Sheet",Ringway Infrastructure Services,
Peterborough,http://opendatacommunities.org/id/unitary-authority/peterborough,Peterborough City Council,Adult Social Care,Adult Learning Disabilities,Employees,08/05/2013 00:00,546227,2313.3,REVENUE,Caritas Recruitment,
Peterborough,http://opendatacommunities.org/id/unitary-authority/peterborough,Peterborough City Council,Adult Social Care,Adult Learning Disabilities,Employees,08/05/2013 00:00,546228,630,REVENUE,Caritas Recruitment,
Peterborough,http://opendatacommunities.org/id/unitary-authority/peterborough,Peterborough City Council,Adult Social Care,Support Services & Management Costs,Employees,08/05/2013 00:00,546261,586.08,REVENUE,Reed Specialist Recruitment,
Peterborough,http://opendatacommunities.org/id/unitary-authority/peterborough,Peterborough City Council,Adult Social Care,Older People,Supplies and Services,08/05/2013 00:00,546264,1154.88,REVENUE,Nottingham Rehab Ltd,
Peterborough,http://opendatacommunities.org/id/unitary-authority/peterborough,Peterborough City Council,Children's & Education Services - Children's Social Care,Children Looked After,Employees,08/05/2013 00:00,546265,553.32,REVENUE,Blue Arrow Ltd,
Peterborough,http://opendatacommunities.org/id/unitary-authority/peterborough,Peterborough City Council,Adult Social Care,Older People,Supplies and Services,08/05/2013 00:00,546290,1439.64,REVENUE,Nottingham Rehab Ltd,
Peterborough,http://opendatacommunities.org/id/unitary-authority/peterborough,Peterborough City Council,Adult Social Care,Older People,Supplies and Services,08/05/2013 00:00,546291,1317.96,REVENUE,Nottingham Rehab Ltd,
Peterborough,http://opendatacommunities.org/id/unitary-authority/peterborough,Peterborough City Council,Adult Social Care,Older People,Supplies and Services,08/05/2013 00:00,546298,98384.51,REVENUE,Nottingham Rehab Ltd,
Peterborough,http://opendatacommunities.org/id/unitary-authority/peterborough,Peterborough City Council,Adult Social Care,Adult Learning Disabilities,Employees,08/05/2013 00:00,546343,1539.38,REVENUE,Caritas Recruitment,
Peterborough,http://opendatacommunities.org/id/unitary-authority/peterborough,Peterborough City Council,Adult Social Care,Older People,Employees,08/05/2013 00:00,546459,1554,REVENUE,Caritas Recruitment,
Peterborough,http://opendatacommunities.org/id/unitary-authority/peterborough,Peterborough City Council,Adult Social Care,Older People,Supplies and Services,08/05/2013 00:00,546570,2400,REVENUE,P F S Builders & Contractors,
Peterborough,http://opendatacommunities.org/id/unitary-authority/peterborough,Peterborough City Council,Adult Social Care,Older People,Supplies and Services,08/05/2013 00:00,546572,3590.4,REVENUE,P F S Builders & Contractors,
Peterborough,http://opendatacommunities.org/id/unitary-authority/peterborough,Peterborough City Council,Adult Social Care,Older People,Supplies and Services,08/05/2013 00:00,546861,1723.2,REVENUE,PRESTIGE NURSING LIMITED,
Peterborough,http://opendatacommunities.org/id/unitary-authority/peterborough,Peterborough City Council,Adult Social Care,Older People,Supplies and Services,08/05/2013 00:00,546878,678.45,REVENUE,Cozy Care,
Peterborough,http://opendatacommunities.org/id/unitary-authority/peterborough,Peterborough City Council,Adult Social Care,Older People,Supplies and Services,08/05/2013 00:00,546896,1126.52,REVENUE,PRESTIGE NURSING LIMITED,
Peterborough,http://opendatacommunities.org/id/unitary-authority/peterborough,Peterborough City Council,Adult Social Care,Older People,Supplies and Services,08/05/2013 00:00,546908,930.06,REVENUE,PRESTIGE NURSING LIMITED,
Peterborough,http://opendatacommunities.org/id/unitary-authority/peterborough,Peterborough City Council,Adult Social Care,Older People,Supplies and Services,08/05/2013 00:00,546909,2345.95,REVENUE,TOTAL HOME CARE SOLUTIONS,
Peterborough,http://opendatacommunities.org/id/unitary-authority/peterborough,Peterborough City Council,Adult Social Care,Older People,Supplies and Services,08/05/2013 00:00,546923,823.78,REVENUE,MEARS GROUP,
Peterborough,http://opendatacommunities.org/id/unitary-authority/peterborough,Peterborough City Council,Adult Social Care,Older People,Supplies and Services,08/05/2013 00:00,546942,-856.56,REVENUE,BUPA Care  Homes,
Peterborough,http://opendatacommunities.org/id/unitary-authority/peterborough,Peterborough City Council,Adult Social Care,Older People,Supplies and Services,08/05/2013 00:00,546948,-971.58,REVENUE,BUPA Care  Homes,
Peterborough,http://opendatacommunities.org/id/unitary-authority/peterborough,Peterborough City Council,Adult Social Care,More than one Service Division,Supplies and Services,08/05/2013 00:00,546964,1254.11,REVENUE,HC-ONE,
Peterborough,http://opendatacommunities.org/id/unitary-authority/peterborough,Peterborough City Council,Adult Social Care,Older People,Supplies and Services,08/05/2013 00:00,546974,2137.55,REVENUE,TOTAL HOME CARE SOLUTIONS,
Peterborough,http://opendatacommunities.org/id/unitary-authority/peterborough,Peterborough City Council,Adult Social Care,Older People,Supplies and Services,08/05/2013 00:00,546976,2559.32,REVENUE,TOTAL HOME CARE SOLUTIONS,
Peterborough,http://opendatacommunities.org/id/unitary-authority/peterborough,Peterborough City Council,Adult Social Care,Older People,Supplies and Services,08/05/2013 00:00,546982,1551.96,REVENUE,TOTAL HOME CARE SOLUTIONS,
Peterborough,http://opendatacommunities.org/id/unitary-authority/peterborough,Peterborough City Council,Adult Social Care,Older People,Supplies and Services,08/05/2013 00:00,546993,986.93,REVENUE,Peterborough Home Care (CAREWATCH)  (F.P.S.),
Peterborough,http://opendatacommunities.org/id/unitary-authority/peterborough,Peterborough City Council,Adult Social Care,Adult Learning Disabilities,Supplies and Services,08/05/2013 00:00,546995,980.65,REVENUE,Allied Healthcare (UK) Ltd,
Peterborough,http://opendatacommunities.org/id/unitary-authority/peterborough,Peterborough City Council,Adult Social Care,Older People,Supplies and Services,08/05/2013 00:00,547015,1052.6,REVENUE,The Orders of St John Care Trust,
Peterborough,http://opendatacommunities.org/id/unitary-authority/peterborough,Peterborough City Council,Adult Social Care,Older People,Supplies and Services,08/05/2013 00:00,547034,1408.23,REVENUE,Sahara Community Care Services,
Peterborough,http://opendatacommunities.org/id/unitary-authority/peterborough,Peterborough City Council,Adult Social Care,Older People,Supplies and Services,08/05/2013 00:00,547036,586.83,REVENUE,Sahara Community Care Services,
Peterborough,http://opendatacommunities.org/id/unitary-authority/peterborough,Peterborough City Council,Adult Social Care,Older People,Supplies and Services,08/05/2013 00:00,547037,863.35,REVENUE,Sahara Community Care Services,
Peterborough,http://opendatacommunities.org/id/unitary-authority/peterborough,Peterborough City Council,Adult Social Care,Older People,Supplies and Services,08/05/2013 00:00,547038,1155.77,REVENUE,Sahara Community Care Services,
Peterborough,http://opendatacommunities.org/id/unitary-authority/peterborough,Peterborough City Council,Adult Social Care,Older People,Supplies and Services,08/05/2013 00:00,547039,1665.3,REVENUE,Sahara Community Care Services,
Peterborough,http://opendatacommunities.org/id/unitary-authority/peterborough,Peterborough City Council,Adult Social Care,Older People,Supplies and Services,08/05/2013 00:00,547041,1192.2,REVENUE,MEARS GROUP,
Peterborough,http://opendatacommunities.org/id/unitary-authority/peterborough,Peterborough City Council,Adult Social Care,Older People,Supplies and Services,08/05/2013 00:00,547042,1108.24,REVENUE,Sahara Community Care Services,
Peterborough,http://opendatacommunities.org/id/unitary-authority/peterborough,Peterborough City Council,Adult Social Care,Older People,Supplies and Services,08/05/2013 00:00,547043,603.59,REVENUE,MEARS GROUP,
Peterborough,http://opendatacommunities.org/id/unitary-authority/peterborough,Peterborough City Council,Adult Social Care,Older People,Supplies and Services,08/05/2013 00:00,547044,593.41,REVENUE,TOTAL HOME CARE SOLUTIONS,
Peterborough,http://opendatacommunities.org/id/unitary-authority/peterborough,Peterborough City Council,Adult Social Care,Older People,Supplies and Services,08/05/2013 00:00,547055,-1254.09,REVENUE,BUPA CARE SERVICES,
Peterborough,http://opendatacommunities.org/id/unitary-authority/peterborough,Peterborough City Council,Adult Social Care,Older People,Supplies and Services,08/05/2013 00:00,547056,674.2,REVENUE,Allied Healthcare (UK) Ltd,
Peterborough,http://opendatacommunities.org/id/unitary-authority/peterborough,Peterborough City Council,Adult Social Care,Older People,Supplies and Services,08/05/2013 00:00,547071,768.54,REVENUE,TOTAL HOME CARE SOLUTIONS,
Peterborough,http://opendatacommunities.org/id/unitary-authority/peterborough,Peterborough City Council,Adult Social Care,Older People,Supplies and Services,08/05/2013 00:00,547096,713.09,REVENUE,TOTAL HOME CARE SOLUTIONS,
Peterborough,http://opendatacommunities.org/id/unitary-authority/peterborough,Peterborough City Council,Adult Social Care,Adult Learning Disabilities,Supplies and Services,08/05/2013 00:00,547120,767.88,REVENUE,THE HELPING HANDS GROUP,
Peterborough,http://opendatacommunities.org/id/unitary-authority/peterborough,Peterborough City Council,Adult Social Care,Adult Learning Disabilities,Supplies and Services,08/05/2013 00:00,547130,1472.52,REVENUE,THE HELPING HANDS GROUP,
Peterborough,http://opendatacommunities.org/id/unitary-authority/peterborough,Peterborough City Council,Adult Social Care,Adult Physical Disability & Sensory Impairment,Supplies and Services,08/05/2013 00:00,547276,615.88,REVENUE,Axiom Crossroads Care,
Peterborough,http://opendatacommunities.org/id/unitary-authority/peterborough,Peterborough City Council,Adult Social Care,Older People,Supplies and Services,08/05/2013 00:00,547354,3049.48,REVENUE,Sahara Community Care Services,
Peterborough,http://opendatacommunities.org/id/unitary-authority/peterborough,Peterborough City Council,Adult Social Care,Adult Mental Health,Supplies and Services,08/05/2013 00:00,547414,2045.88,REVENUE,Barchester Newton House Care Home,
Peterborough,http://opendatacommunities.org/id/unitary-authority/peterborough,Peterborough City Council,Adult Social Care,Older People,Supplies and Services,08/05/2013 00:00,547434,2344.38,REVENUE,Sahara Community Care Services,
Peterborough,http://opendatacommunities.org/id/unitary-authority/peterborough,Peterborough City Council,Adult Social Care,Older People,Supplies and Services,08/05/2013 00:00,547534,1299.24,REVENUE,THE HELPING HANDS GROUP,
Peterborough,http://opendatacommunities.org/id/unitary-authority/peterborough,Peterborough City Council,Adult Social Care,Older People,Supplies and Services,08/05/2013 00:00,547555,686.84,REVENUE,Sahara Community Care Services,
Peterborough,http://opendatacommunities.org/id/unitary-authority/peterborough,Peterborough City Council,Adult Social Care,Older People,Supplies and Services,08/05/2013 00:00,547561,1090.76,REVENUE,Sahara Community Care Services,
Peterborough,http://opendatacommunities.org/id/unitary-authority/peterborough,Peterborough City Council,Adult Social Care,Older People,Supplies and Services,08/05/2013 00:00,547562,624.97,REVENUE,Sahara Community Care Services,
Peterborough,http://opendatacommunities.org/id/unitary-authority/peterborough,Peterborough City Council,Adult Social Care,Older People,Supplies and Services,08/05/2013 00:00,547615,829.36,REVENUE,Sahara Community Care Services,
Peterborough,http://opendatacommunities.org/id/unitary-authority/peterborough,Peterborough City Council,Adult Social Care,Adult Mental Health,Supplies and Services,08/05/2013 00:00,547620,1573.5,REVENUE,THE TUDORS,
Peterborough,http://opendatacommunities.org/id/unitary-authority/peterborough,Peterborough City Council,Adult Social Care,Older People,Supplies and Services,08/05/2013 00:00,547621,940.56,REVENUE,Sahara Community Care Services,
Peterborough,http://opendatacommunities.org/id/unitary-authority/peterborough,Peterborough City Council,Adult Social Care,Adult Learning Disabilities,Supplies and Services,08/05/2013 00:00,547622,2556.26,REVENUE,THE HELPING HANDS GROUP,
Peterborough,http://opendatacommunities.org/id/unitary-authority/peterborough,Peterborough City Council,Adult Social Care,Older People,Supplies and Services,08/05/2013 00:00,547624,596.63,REVENUE,Sahara Community Care Services,
Peterborough,http://opendatacommunities.org/id/unitary-authority/peterborough,Peterborough City Council,Adult Social Care,Older People,Supplies and Services,08/05/2013 00:00,547626,1602.63,REVENUE,Sahara Community Care Services,
Peterborough,http://opendatacommunities.org/id/unitary-authority/peterborough,Peterborough City Council,Adult Social Care,Older People,Supplies and Services,08/05/2013 00:00,547627,1762.32,REVENUE,THE TUDORS,
Peterborough,http://opendatacommunities.org/id/unitary-authority/peterborough,Peterborough City Council,Adult Social Care,Older People,Supplies and Services,08/05/2013 00:00,547630,898.6,REVENUE,Sahara Community Care Services,
Peterborough,http://opendatacommunities.org/id/unitary-authority/peterborough,Peterborough City Council,Adult Social Care,Older People,Supplies and Services,08/05/2013 00:00,547636,1344.4,REVENUE,Sahara Community Care Services,
Peterborough,http://opendatacommunities.org/id/unitary-authority/peterborough,Peterborough City Council,Adult Social Care,Older People,Supplies and Services,08/05/2013 00:00,547644,531.54,REVENUE,Sahara Community Care Services,
Peterborough,http://opendatacommunities.org/id/unitary-authority/peterborough,Peterborough City Council,Adult Social Care,Adult Learning Disabilities,Employees,08/05/2013 00:00,547645,691.2,REVENUE,City Resource Ltd,
Peterborough,http://opendatacommunities.org/id/unitary-authority/peterborough,Peterborough City Council,Adult Social Care,Older People,Supplies and Services,08/05/2013 00:00,547650,1100.36,REVENUE,FIELD HOUSE (EYE) LTD,
Peterborough,http://opendatacommunities.org/id/unitary-authority/peterborough,Peterborough City Council,Adult Social Care,Older People,Supplies and Services,08/05/2013 00:00,547656,858.63,REVENUE,Allied Healthcare (UK) Ltd,
Peterborough,http://opendatacommunities.org/id/unitary-authority/peterborough,Peterborough City Council,Adult Social Care,Older People,Supplies and Services,08/05/2013 00:00,547658,639.97,REVENUE,Allied Healthcare (UK) Ltd,
Peterborough,http://opendatacommunities.org/id/unitary-authority/peterborough,Peterborough City Council,Adult Social Care,Older People,Supplies and Services,08/05/2013 00:00,547662,546.9,REVENUE,FIELD HOUSE (EYE) LTD,
Peterborough,http://opendatacommunities.org/id/unitary-authority/peterborough,Peterborough City Council,Adult Social Care,Older People,Supplies and Services,08/05/2013 00:00,547666,1278.06,REVENUE,Sahara Community Care Services,
Peterborough,http://opendatacommunities.org/id/unitary-authority/peterborough,Peterborough City Council,Adult Social Care,Older People,Supplies and Services,08/05/2013 00:00,547671,2451.89,REVENUE,Sahara Community Care Services,
Peterborough,http://opendatacommunities.org/id/unitary-authority/peterborough,Peterborough City Council,Housing Services,Private Sector Housing Renewal,Supplies and Services,08/05/2013 00:00,547673,1200,REVENUE,Burmor Construction,
Peterborough,http://opendatacommunities.org/id/unitary-authority/peterborough,Peterborough City Council,Adult Social Care,Older People,Supplies and Services,08/05/2013 00:00,547684,3075.09,REVENUE,Sahara Community Care Services,
Peterborough,http://opendatacommunities.org/id/unitary-authority/peterborough,Peterborough City Council,Adult Social Care,Older People,Supplies and Services,08/05/2013 00:00,547688,770.61,REVENUE,Sahara Community Care Services,
Peterborough,http://opendatacommunities.org/id/unitary-authority/peterborough,Peterborough City Council,Adult Social Care,Older People,Supplies and Services,08/05/2013 00:00,547692,1182.54,REVENUE,Sahara Community Care Services,
Peterborough,http://opendatacommunities.org/id/unitary-authority/peterborough,Peterborough City Council,Adult Social Care,Older People,Supplies and Services,08/05/2013 00:00,547694,988.84,REVENUE,Sahara Community Care Services,
Peterborough,http://opendatacommunities.org/id/unitary-authority/peterborough,Peterborough City Council,Adult Social Care,Older People,Supplies and Services,08/05/2013 00:00,547698,616.7,REVENUE,Sahara Community Care Services,
Peterborough,http://opendatacommunities.org/id/unitary-authority/peterborough,Peterborough City Council,Adult Social Care,Older People,Supplies and Services,08/05/2013 00:00,547704,1951.14,REVENUE,THE TUDORS,
Peterborough,http://opendatacommunities.org/id/unitary-authority/peterborough,Peterborough City Council,Adult Social Care,Older People,Supplies and Services,08/05/2013 00:00,547708,1384.68,REVENUE,THE TUDORS,
Peterborough,http://opendatacommunities.org/id/unitary-authority/peterborough,Peterborough City Council,Adult Social Care,Adult Mental Health,Supplies and Services,08/05/2013 00:00,547711,-1702.45,REVENUE,THE TUDORS,
Peterborough,http://opendatacommunities.org/id/unitary-authority/peterborough,Peterborough City Council,Adult Social Care,Adult Mental Health,Supplies and Services,08/05/2013 00:00,547721,646.6,REVENUE,Sahara Community Care Services,
Peterborough,http://opendatacommunities.org/id/unitary-authority/peterborough,Peterborough City Council,Adult Social Care,Adult Learning Disabilities,Supplies and Services,08/05/2013 00:00,547723,767.88,REVENUE,THE HELPING HANDS GROUP,
Peterborough,http://opendatacommunities.org/id/unitary-authority/peterborough,Peterborough City Council,Adult Social Care,Adult Mental Health,Supplies and Services,08/05/2013 00:00,547728,537.64,REVENUE,Sahara Community Care Services,
Peterborough,http://opendatacommunities.org/id/unitary-authority/peterborough,Peterborough City Council,Adult Social Care,Adult Mental Health,Supplies and Services,08/05/2013 00:00,547732,1951.14,REVENUE,THE TUDORS,
Peterborough,http://opendatacommunities.org/id/unitary-authority/peterborough,Peterborough City Council,Adult Social Care,Older People,Supplies and Services,08/05/2013 00:00,547734,1060.61,REVENUE,Sahara Community Care Services,
Peterborough,http://opendatacommunities.org/id/unitary-authority/peterborough,Peterborough City Council,Adult Social Care,Adult Learning Disabilities,Supplies and Services,08/05/2013 00:00,547737,767.88,REVENUE,THE HELPING HANDS GROUP,
Peterborough,http://opendatacommunities.org/id/unitary-authority/peterborough,Peterborough City Council,Adult Social Care,Older People,Supplies and Services,08/05/2013 00:00,547740,1888.2,REVENUE,THE TUDORS,
Peterborough,http://opendatacommunities.org/id/unitary-authority/peterborough,Peterborough City Council,Adult Social Care,Adult Mental Health,Supplies and Services,08/05/2013 00:00,547744,594.97,REVENUE,Sahara Community Care Services,
Peterborough,http://opendatacommunities.org/id/unitary-authority/peterborough,Peterborough City Council,Adult Social Care,Adult Physical Disability & Sensory Impairment,Supplies and Services,08/05/2013 00:00,547746,4681.48,REVENUE,RNID,
Peterborough,http://opendatacommunities.org/id/unitary-authority/peterborough,Peterborough City Council,Adult Social Care,Adult Mental Health,Supplies and Services,08/05/2013 00:00,547790,1713.99,REVENUE,THE TUDORS,
Peterborough,http://opendatacommunities.org/id/unitary-authority/peterborough,Peterborough City Council,Adult Social Care,Older People,Supplies and Services,08/05/2013 00:00,547793,2132.86,REVENUE,BRAIN INJURY REHABILITATION TRUST,
Peterborough,http://opendatacommunities.org/id/unitary-authority/peterborough,Peterborough City Council,Adult Social Care,Older People,Supplies and Services,08/05/2013 00:00,547798,1319.2,REVENUE,The Orders of St John Care Trust,
Peterborough,http://opendatacommunities.org/id/unitary-authority/peterborough,Peterborough City Council,Adult Social Care,Older People,Supplies and Services,08/05/2013 00:00,547803,1715.59,REVENUE,Care UK Homecare Ltd,
Peterborough,http://opendatacommunities.org/id/unitary-authority/peterborough,Peterborough City Council,Adult Social Care,Older People,Fees and Charges,08/05/2013 00:00,547804,4668.96,REVENUE,The Disabilities Trust,
Peterborough,http://opendatacommunities.org/id/unitary-authority/peterborough,Peterborough City Council,Adult Social Care,Older People,Supplies and Services,08/05/2013 00:00,547818,1788.13,REVENUE,Care UK Homecare Ltd,
Peterborough,http://opendatacommunities.org/id/unitary-authority/peterborough,Peterborough City Council,Adult Social Care,Older People,Fees and Charges,08/05/2013 00:00,547821,1167.24,REVENUE,The Disabilities Trust,
Peterborough,http://opendatacommunities.org/id/unitary-authority/peterborough,Peterborough City Council,Adult Social Care,Adult Learning Disabilities,Supplies and Services,08/05/2013 00:00,547823,1974.52,REVENUE,Cambridgeshire County Council,
Peterborough,http://opendatacommunities.org/id/unitary-authority/peterborough,Peterborough City Council,Adult Social Care,Older People,Supplies and Services,08/05/2013 00:00,547826,1658.7,REVENUE,THE TUDORS,
Peterborough,http://opendatacommunities.org/id/unitary-authority/peterborough,Peterborough City Council,Adult Social Care,Older People,Supplies and Services,08/05/2013 00:00,547840,893.44,REVENUE,THE TUDORS,
Peterborough,http://opendatacommunities.org/id/unitary-authority/peterborough,Peterborough City Council,Adult Social Care,Older People,Supplies and Services,08/05/2013 00:00,547845,6398.57,REVENUE,BRAIN INJURY REHABILITATION TRUST,
Peterborough,http://opendatacommunities.org/id/unitary-authority/peterborough,Peterborough City Council,Adult Social Care,Older People,Supplies and Services,08/05/2013 00:00,547849,1105.8,REVENUE,THE TUDORS,
Peterborough,http://opendatacommunities.org/id/unitary-authority/peterborough,Peterborough City Council,Adult Social Care,Adult Learning Disabilities,Supplies and Services,08/05/2013 00:00,547850,2368.22,REVENUE,Cambridgeshire County Council,
Peterborough,http://opendatacommunities.org/id/unitary-authority/peterborough,Peterborough City Council,Adult Social Care,Older People,Supplies and Services,08/05/2013 00:00,547854,1285.52,REVENUE,The Orders of St John Care Trust,
Peterborough,http://opendatacommunities.org/id/unitary-authority/peterborough,Peterborough City Council,Adult Social Care,Adult Learning Disabilities,Supplies and Services,08/05/2013 00:00,547855,769.6,REVENUE,Cambridgeshire County Council,
Peterborough,http://opendatacommunities.org/id/unitary-authority/peterborough,Peterborough City Council,Adult Social Care,Adult Learning Disabilities,Supplies and Services,08/05/2013 00:00,547857,715.61,REVENUE,Cambridgeshire County Council,
Peterborough,http://opendatacommunities.org/id/unitary-authority/peterborough,Peterborough City Council,Adult Social Care,Older People,Supplies and Services,08/05/2013 00:00,547860,1285.52,REVENUE,The Orders of St John Care Trust,
Peterborough,http://opendatacommunities.org/id/unitary-authority/peterborough,Peterborough City Council,Adult Social Care,Older People,Supplies and Services,08/05/2013 00:00,547863,6611.86,REVENUE,BRAIN INJURY REHABILITATION TRUST,
Peterborough,http://opendatacommunities.org/id/unitary-authority/peterborough,Peterborough City Council,Adult Social Care,Older People,Supplies and Services,08/05/2013 00:00,547866,739.32,REVENUE,Care UK Homecare Ltd,
Peterborough,http://opendatacommunities.org/id/unitary-authority/peterborough,Peterborough City Council,Adult Social Care,Older People,Supplies and Services,08/05/2013 00:00,547868,563,REVENUE,Beaumont Healthcare Limited,
Peterborough,http://opendatacommunities.org/id/unitary-authority/peterborough,Peterborough City Council,Adult Social Care,Older People,Supplies and Services,08/05/2013 00:00,547869,2969.1,REVENUE,FIELD HOUSE (EYE) LTD,
Peterborough,http://opendatacommunities.org/id/unitary-authority/peterborough,Peterborough City Council,Adult Social Care,Older People,Supplies and Services,08/05/2013 00:00,547872,541.78,REVENUE,FIELD HOUSE (EYE) LTD,
Peterborough,http://opendatacommunities.org/id/unitary-authority/peterborough,Peterborough City Council,Adult Social Care,Older People,Supplies and Services,08/05/2013 00:00,547873,747.25,REVENUE,FIELD HOUSE (EYE) LTD,
Peterborough,http://opendatacommunities.org/id/unitary-authority/peterborough,Peterborough City Council,Adult Social Care,Older People,Supplies and Services,08/05/2013 00:00,547879,928.92,REVENUE,Saga Homecare,
Peterborough,http://opendatacommunities.org/id/unitary-authority/peterborough,Peterborough City Council,Adult Social Care,Older People,Supplies and Services,08/05/2013 00:00,547898,611.91,REVENUE,Saga Homecare,
Peterborough,http://opendatacommunities.org/id/unitary-authority/peterborough,Peterborough City Council,Adult Social Care,Older People,Supplies and Services,08/05/2013 00:00,547900,563,REVENUE,Beaumont Healthcare Limited,
Peterborough,http://opendatacommunities.org/id/unitary-authority/peterborough,Peterborough City Council,Adult Social Care,Adult Learning Disabilities,Supplies and Services,08/05/2013 00:00,547902,2648.91,REVENUE,FIELD HOUSE (EYE) LTD,
Peterborough,http://opendatacommunities.org/id/unitary-authority/peterborough,Peterborough City Council,Adult Social Care,Older People,Supplies and Services,08/05/2013 00:00,547903,625.07,REVENUE,Saga Homecare,
Peterborough,http://opendatacommunities.org/id/unitary-authority/peterborough,Peterborough City Council,Adult Social Care,Older People,Supplies and Services,08/05/2013 00:00,547907,2000.12,REVENUE,FIELD HOUSE (EYE) LTD,
Peterborough,http://opendatacommunities.org/id/unitary-authority/peterborough,Peterborough City Council,Adult Social Care,Older People,Supplies and Services,08/05/2013 00:00,547911,5283.23,REVENUE,Housing 21,
Peterborough,http://opendatacommunities.org/id/unitary-authority/peterborough,Peterborough City Council,Adult Social Care,Older People,Supplies and Services,08/05/2013 00:00,547912,5283.23,REVENUE,Housing 21,
Peterborough,http://opendatacommunities.org/id/unitary-authority/peterborough,Peterborough City Council,Adult Social Care,Adult Learning Disabilities,Supplies and Services,08/05/2013 00:00,547913,746.95,REVENUE,Redacted Personal Data,
Peterborough,http://opendatacommunities.org/id/unitary-authority/peterborough,Peterborough City Council,Children's & Education Services - Children's Social Care,Children Looked After,Supplies and Services - Transfer Payments,08/05/2013 00:00,547952,3057.3,REVENUE,Fostering Options Ltd,
Peterborough,http://opendatacommunities.org/id/unitary-authority/peterborough,Peterborough City Council,Children's & Education Services - Children's Social Care,Children Looked After,Supplies and Services - Transfer Payments,08/05/2013 00:00,547974,3271.5,REVENUE,Fostering Options Ltd,
Peterborough,http://opendatacommunities.org/id/unitary-authority/peterborough,Peterborough City Council,Children's & Education Services - Children's Social Care,Children Looked After,Supplies and Services - Transfer Payments,08/05/2013 00:00,547978,3057.3,REVENUE,Fostering Options Ltd,
Peterborough,http://opendatacommunities.org/id/unitary-authority/peterborough,Peterborough City Council,Adult Social Care,Older People,Supplies and Services,08/05/2013 00:00,547990,698.33,REVENUE,Saga Homecare,
Peterborough,http://opendatacommunities.org/id/unitary-authority/peterborough,Peterborough City Council,Adult Social Care,Adult Learning Disabilities,Supplies and Services,08/05/2013 00:00,547991,7027.48,REVENUE,Saga Homecare,
Peterborough,http://opendatacommunities.org/id/unitary-authority/peterborough,Peterborough City Council,Adult Social Care,Older People,Supplies and Services,08/05/2013 00:00,547993,575.06,REVENUE,Allied Healthcare (UK) Ltd,
Peterborough,http://opendatacommunities.org/id/unitary-authority/peterborough,Peterborough City Council,Adult Social Care,Older People,Supplies and Services,08/05/2013 00:00,548005,835.7,REVENUE,Allied Healthcare (UK) Ltd,
Peterborough,http://opendatacommunities.org/id/unitary-authority/peterborough,Peterborough City Council,Adult Social Care,Older People,Supplies and Services,08/05/2013 00:00,548029,549.64,REVENUE,Hales Group Ltd,
Peterborough,http://opendatacommunities.org/id/unitary-authority/peterborough,Peterborough City Council,Adult Social Care,Older People,Supplies and Services,08/05/2013 00:00,548030,735.48,REVENUE,MEARS GROUP,
Peterborough,http://opendatacommunities.org/id/unitary-authority/peterborough,Peterborough City Council,Adult Social Care,Older People,Supplies and Services,08/05/2013 00:00,548033,1582.9,REVENUE,Hales Group Ltd,
Peterborough,http://opendatacommunities.org/id/unitary-authority/peterborough,Peterborough City Council,Adult Social Care,Older People,Supplies and Services,08/05/2013 00:00,548059,1456.52,REVENUE,Allied Healthcare (UK) Ltd,
Peterborough,http://opendatacommunities.org/id/unitary-authority/peterborough,Peterborough City Council,Adult Social Care,Older People,Supplies and Services,08/05/2013 00:00,548063,1315.82,REVENUE,Allied Healthcare (UK) Ltd,
Peterborough,http://opendatacommunities.org/id/unitary-authority/peterborough,Peterborough City Council,Adult Social Care,Adult Learning Disabilities,Supplies and Services,08/05/2013 00:00,548072,561.85,REVENUE,Sahara Community Care Services,
Peterborough,http://opendatacommunities.org/id/unitary-authority/peterborough,Peterborough City Council,Adult Social Care,Older People,Supplies and Services,08/05/2013 00:00,548079,1404.66,REVENUE,BUPA Care  Homes,
Peterborough,http://opendatacommunities.org/id/unitary-authority/peterborough,Peterborough City Council,Adult Social Care,Older People,Supplies and Services,08/05/2013 00:00,548083,8597.44,REVENUE,APEX CARE LIMITED,
Peterborough,http://opendatacommunities.org/id/unitary-authority/peterborough,Peterborough City Council,Adult Social Care,Older People,Supplies and Services,08/05/2013 00:00,548087,2313.56,REVENUE,BUPA Care  Homes,
Peterborough,http://opendatacommunities.org/id/unitary-authority/peterborough,Peterborough City Council,Adult Social Care,Older People,Supplies and Services,08/05/2013 00:00,548091,953.55,REVENUE,PHILIA LODGE REST HOME,
Peterborough,http://opendatacommunities.org/id/unitary-authority/peterborough,Peterborough City Council,Adult Social Care,Older People,Supplies and Services,08/05/2013 00:00,548095,7373.24,REVENUE,Housing 21,
Peterborough,http://opendatacommunities.org/id/unitary-authority/peterborough,Peterborough City Council,Adult Social Care,Older People,Supplies and Services,08/05/2013 00:00,548099,5283.23,REVENUE,Housing 21,
Peterborough,http://opendatacommunities.org/id/unitary-authority/peterborough,Peterborough City Council,Adult Social Care,Older People,Supplies and Services,08/05/2013 00:00,548102,576,REVENUE,Papworth Trust,
Peterborough,http://opendatacommunities.org/id/unitary-authority/peterborough,Peterborough City Council,Adult Social Care,Older People,Supplies and Services,08/05/2013 00:00,548103,576,REVENUE,Papworth Trust,
Peterborough,http://opendatacommunities.org/id/unitary-authority/peterborough,Peterborough City Council,Adult Social Care,Older People,Supplies and Services,08/05/2013 00:00,548105,1404.66,REVENUE,BUPA Care  Homes,
Peterborough,http://opendatacommunities.org/id/unitary-authority/peterborough,Peterborough City Council,Adult Social Care,Adult Learning Disabilities,Supplies and Services,08/05/2013 00:00,548106,570.28,REVENUE,Sahara Community Care Services,
Peterborough,http://opendatacommunities.org/id/unitary-authority/peterborough,Peterborough City Council,Adult Social Care,Older People,Supplies and Services,08/05/2013 00:00,548111,1450.8,REVENUE,Barchester Healthcare (Werrington Lodge),
Peterborough,http://opendatacommunities.org/id/unitary-authority/peterborough,Peterborough City Council,Adult Social Care,Adult Learning Disabilities,Supplies and Services,08/05/2013 00:00,548115,587.9,REVENUE,Sahara Community Care Services,
Peterborough,http://opendatacommunities.org/id/unitary-authority/peterborough,Peterborough City Council,Adult Social Care,Older People,Supplies and Services,08/05/2013 00:00,548119,2313.56,REVENUE,BUPA Care  Homes,
Peterborough,http://opendatacommunities.org/id/unitary-authority/peterborough,Peterborough City Council,Adult Social Care,Adult Learning Disabilities,Supplies and Services,08/05/2013 00:00,548121,3773.04,REVENUE,Mencap,
Peterborough,http://opendatacommunities.org/id/unitary-authority/peterborough,Peterborough City Council,Adult Social Care,Adult Mental Health,Supplies and Services,08/05/2013 00:00,548140,1771.92,REVENUE,GSE Residential Ltd (Kemps Place),
Peterborough,http://opendatacommunities.org/id/unitary-authority/peterborough,Peterborough City Council,Adult Social Care,Older People,Supplies and Services,08/05/2013 00:00,548141,625.52,REVENUE,Housing 21,
Peterborough,http://opendatacommunities.org/id/unitary-authority/peterborough,Peterborough City Council,Adult Social Care,Older People,Supplies and Services,08/05/2013 00:00,548149,1002.4,REVENUE,PARTNERSHIPS IN CARE - RISBY,
Peterborough,http://opendatacommunities.org/id/unitary-authority/peterborough,Peterborough City Council,Housing Services,Homelessness,Supplies and Services,08/05/2013 00:00,548152,800,REVENUE,Peterborough Citizens Advice Bureau,
Peterborough,http://opendatacommunities.org/id/unitary-authority/peterborough,Peterborough City Council,Adult Social Care,Older People,Supplies and Services,08/05/2013 00:00,548175,1504.63,REVENUE,Allied Healthcare (UK) Ltd,
Peterborough,http://opendatacommunities.org/id/unitary-authority/peterborough,Peterborough City Council,Adult Social Care,Older People,Supplies and Services,08/05/2013 00:00,548180,654.35,REVENUE,Allied Healthcare (UK) Ltd,
Peterborough,http://opendatacommunities.org/id/unitary-authority/peterborough,Peterborough City Council,Support Services,Support Services,Third Party Payments,08/05/2013 00:00,548191,987123.05,REVENUE,Serco Ltd,
Peterborough,http://opendatacommunities.org/id/unitary-authority/peterborough,Peterborough City Council,Capital,Capital,Capital Pending Update to BS,08/05/2013 00:00,548194,724882.31,CAPITAL,Kier Eastern,
Peterborough,http://opendatacommunities.org/id/unitary-authority/peterborough,Peterborough City Council,Highways and Transport Services,Street Lighting,Premises,08/05/2013 00:00,548260,674,REVENUE,British Gas Business,
Peterborough,http://opendatacommunities.org/id/unitary-authority/peterborough,Peterborough City Council,Highways and Transport Services,Public Transport,Supplies and Services,08/05/2013 00:00,548295,10618.91,REVENUE,National Express Ltd,
Peterborough,http://opendatacommunities.org/id/unitary-authority/peterborough,Peterborough City Council,Children's & Education Services - Education,Other School -related Education Functions,Supplies and Services - Transfer Payments,08/05/2013 00:00,548387,29243.33,REVENUE,Action For Children,
Peterborough,http://opendatacommunities.org/id/unitary-authority/peterborough,Peterborough City Council,Children's & Education Services - Children's Social Care,Children Looked After,Supplies and Services - Transfer Payments,08/05/2013 00:00,548391,5284.8,REVENUE,I S P,
Peterborough,http://opendatacommunities.org/id/unitary-authority/peterborough,Peterborough City Council,Children's & Education Services - Education,Other School -related Education Functions,Supplies and Services,08/05/2013 00:00,548397,2786,REVENUE,Warwickshire County Council,
Peterborough,http://opendatacommunities.org/id/unitary-authority/peterborough,Peterborough City Council,Children's & Education Services - Children's Social Care,Children Looked After,Supplies and Services - Transfer Payments,08/05/2013 00:00,548408,3214.2,REVENUE,I S P,
Peterborough,http://opendatacommunities.org/id/unitary-authority/peterborough,Peterborough City Council,Support Services,Support Services,Supplies and Services,08/05/2013 00:00,548414,3872,REVENUE,Disclosure and Barring Service,
Peterborough,http://opendatacommunities.org/id/unitary-authority/peterborough,Peterborough City Council,Sources of Finance,RSG,Third Party Payments,08/05/2013 00:00,548445,4889.91,REVENUE,Peakirk Village Hall Committee,
Peterborough,http://opendatacommunities.org/id/unitary-authority/peterborough,Peterborough City Council,Adult Social Care,Adult Learning Disabilities,Supplies and Services,08/05/2013 00:00,548449,1477.52,REVENUE,Redacted Personal Data,
Peterborough,http://opendatacommunities.org/id/unitary-authority/peterborough,Peterborough City Council,Adult Social Care,Older People,Supplies and Services,08/05/2013 00:00,548451,1211.07,REVENUE,PHILIA LODGE REST HOME,
Peterborough,http://opendatacommunities.org/id/unitary-authority/peterborough,Peterborough City Council,Adult Social Care,Older People,Supplies and Services,08/05/2013 00:00,548453,1286.67,REVENUE,PHILIA LODGE REST HOME,
Peterborough,http://opendatacommunities.org/id/unitary-authority/peterborough,Peterborough City Council,Children's & Education Services - Education,Early Years,Supplies and Services,08/05/2013 00:00,548477,1818,REVENUE,Bright Star's day Nursery,
Peterborough,http://opendatacommunities.org/id/unitary-authority/peterborough,Peterborough City Council,Children's & Education Services - Education,Early Years,Supplies and Services,08/05/2013 00:00,548478,1313,REVENUE,Braybrook Nursery,
Peterborough,http://opendatacommunities.org/id/unitary-authority/peterborough,Peterborough City Council,Children's & Education Services - Education,Early Years,Supplies and Services,08/05/2013 00:00,548480,5908.5,REVENUE,Busy Bunnies Nursery,
Peterborough,http://opendatacommunities.org/id/unitary-authority/peterborough,Peterborough City Council,Children's & Education Services - Education,Early Years,Supplies and Services,08/05/2013 00:00,548481,1893.75,REVENUE,The Voyager Nursery,
Peterborough,http://opendatacommunities.org/id/unitary-authority/peterborough,Peterborough City Council,Children's & Education Services - Education,Early Years,Supplies and Services,08/05/2013 00:00,548482,2146.25,REVENUE,Little Tigers Day Nursery,
Peterborough,http://opendatacommunities.org/id/unitary-authority/peterborough,Peterborough City Council,Children's & Education Services - Education,Early Years,Supplies and Services,08/05/2013 00:00,548483,1969.5,REVENUE,The Day Nursery Peterborough Ltd,
Peterborough,http://opendatacommunities.org/id/unitary-authority/peterborough,Peterborough City Council,Children's & Education Services - Education,Early Years,Supplies and Services,08/05/2013 00:00,548484,545.4,REVENUE,Stanground St Johns Pre-School,
Peterborough,http://opendatacommunities.org/id/unitary-authority/peterborough,Peterborough City Council,Children's & Education Services - Education,Early Years,Supplies and Services,08/05/2013 00:00,548485,1711.95,REVENUE,Brookside Playgroup,
Peterborough,http://opendatacommunities.org/id/unitary-authority/peterborough,Peterborough City Council,Children's & Education Services - Children's Social Care,Family Support Services,Employees,08/05/2013 00:00,548488,522,REVENUE,Service Care Solutions Ltd,
Peterborough,http://opendatacommunities.org/id/unitary-authority/peterborough,Peterborough City Council,Children's & Education Services - Children's Social Care,Family Support Services,Employees,08/05/2013 00:00,548489,2088,REVENUE,Service Care Solutions Ltd,
Peterborough,http://opendatacommunities.org/id/unitary-authority/peterborough,Peterborough City Council,Children's & Education Services - Children's Social Care,Family Support Services,Employees,08/05/2013 00:00,548490,2610,REVENUE,Service Care Solutions Ltd,
Peterborough,http://opendatacommunities.org/id/unitary-authority/peterborough,Peterborough City Council,Children's & Education Services - Children's Social Care,Children Looked After,Supplies and Services - Transfer Payments,08/05/2013 00:00,548492,5456.1,REVENUE,I S P,
Peterborough,http://opendatacommunities.org/id/unitary-authority/peterborough,Peterborough City Council,Cultural and Related Services,Open Spaces,Supplies and Services,08/05/2013 00:00,548499,6335.9,REVENUE,Belvedere Bowls Club,
Peterborough,http://opendatacommunities.org/id/unitary-authority/peterborough,Peterborough City Council,Cultural and Related Services,Open Spaces,Supplies and Services,08/05/2013 00:00,548500,4785.06,REVENUE,West Ward Bowls Club,
Peterborough,http://opendatacommunities.org/id/unitary-authority/peterborough,Peterborough City Council,Cultural and Related Services,Open Spaces,Supplies and Services,08/05/2013 00:00,548501,43786.88,REVENUE,Peterborough Rugby Club,
Peterborough,http://opendatacommunities.org/id/unitary-authority/peterborough,Peterborough City Council,Housing Services,Supporting People,Third Party Payments,08/05/2013 00:00,548503,1666.66,REVENUE,Cambridgeshire Community Services,
Peterborough,http://opendatacommunities.org/id/unitary-authority/peterborough,Peterborough City Council,Housing Services,Supporting People,Third Party Payments,08/05/2013 00:00,548504,1666.66,REVENUE,Cambridgeshire Community Services,
Peterborough,http://opendatacommunities.org/id/unitary-authority/peterborough,Peterborough City Council,Capital,Capital,Capital Pending Update to BS,08/05/2013 00:00,548506,525,CAPITAL,Savills,
Peterborough,http://opendatacommunities.org/id/unitary-authority/peterborough,Peterborough City Council,Support Services,Support Services,Supplies and Services,08/05/2013 00:00,548507,20758.54,REVENUE,Edenred,
Peterborough,http://opendatacommunities.org/id/unitary-authority/peterborough,Peterborough City Council,Children's & Education Services - Children's Social Care,Other Children's & Families Services,Supplies and Services,08/05/2013 00:00,548509,542.8,REVENUE,Redacted Personal Data,
Peterborough,http://opendatacommunities.org/id/unitary-authority/peterborough,Peterborough City Council,Children's & Education Services - Education,Early Years,Supplies and Services,08/05/2013 00:00,548573,3282.5,REVENUE,Rainbow Day Nursery,
Peterborough,http://opendatacommunities.org/id/unitary-authority/peterborough,Peterborough City Council,Children's & Education Services - Education,Early Years,Supplies and Services,08/05/2013 00:00,548575,2853.25,REVENUE,Sunflower Seed Pre-School,
Peterborough,http://opendatacommunities.org/id/unitary-authority/peterborough,Peterborough City Council,Children's & Education Services - Education,Early Years,Supplies and Services,08/05/2013 00:00,548581,5125.75,REVENUE,St Johns C of E Pre-School,
Peterborough,http://opendatacommunities.org/id/unitary-authority/peterborough,Peterborough City Council,Children's & Education Services - Education,Early Years,Supplies and Services,08/05/2013 00:00,548584,13241.1,REVENUE,PSLA,
Peterborough,http://opendatacommunities.org/id/unitary-authority/peterborough,Peterborough City Council,Children's & Education Services - Education,Early Years,Supplies and Services,08/05/2013 00:00,548585,656.5,REVENUE,Busy Bunnies Nursery,
Peterborough,http://opendatacommunities.org/id/unitary-authority/peterborough,Peterborough City Council,Adult Social Care,Adult Learning Disabilities,Supplies and Services,08/05/2013 00:00,548586,685.26,REVENUE,Redacted Personal Data,
Peterborough,http://opendatacommunities.org/id/unitary-authority/peterborough,Peterborough City Council,Adult Social Care,Adult Learning Disabilities,Supplies and Services,08/05/2013 00:00,548588,3501.44,REVENUE,Redacted Personal Data,
Peterborough,http://opendatacommunities.org/id/unitary-authority/peterborough,Peterborough City Council,Adult Social Care,Adult Learning Disabilities,Supplies and Services,08/05/2013 00:00,548589,2033.8,REVENUE,Redacted Personal Data,
Peterborough,http://opendatacommunities.org/id/unitary-authority/peterborough,Peterborough City Council,Adult Social Care,Adult Learning Disabilities,Supplies and Services,08/05/2013 00:00,548590,1642.92,REVENUE,Redacted Personal Data,
Peterborough,http://opendatacommunities.org/id/unitary-authority/peterborough,Peterborough City Council,Adult Social Care,Adult Learning Disabilities,Supplies and Services,08/05/2013 00:00,548591,1860.72,REVENUE,Redacted Personal Data,
Peterborough,http://opendatacommunities.org/id/unitary-authority/peterborough,Peterborough City Council,Adult Social Care,Adult Learning Disabilities,Supplies and Services,08/05/2013 00:00,548592,2071.48,REVENUE,Redacted Personal Data,
Peterborough,http://opendatacommunities.org/id/unitary-authority/peterborough,Peterborough City Council,Adult Social Care,Adult Learning Disabilities,Supplies and Services,08/05/2013 00:00,548593,2754.2,REVENUE,Redacted Personal Data,
Peterborough,http://opendatacommunities.org/id/unitary-authority/peterborough,Peterborough City Council,Adult Social Care,Adult Learning Disabilities,Supplies and Services,08/05/2013 00:00,548595,3132.28,REVENUE,Redacted Personal Data,
Peterborough,http://opendatacommunities.org/id/unitary-authority/peterborough,Peterborough City Council,Adult Social Care,Adult Learning Disabilities,Supplies and Services,08/05/2013 00:00,548597,1642.92,REVENUE,Redacted Personal Data,
Peterborough,http://opendatacommunities.org/id/unitary-authority/peterborough,Peterborough City Council,Adult Social Care,Adult Learning Disabilities,Supplies and Services,08/05/2013 00:00,548598,4080.08,REVENUE,Redacted Personal Data,
Peterborough,http://opendatacommunities.org/id/unitary-authority/peterborough,Peterborough City Council,Adult Social Care,Adult Learning Disabilities,Supplies and Services,08/05/2013 00:00,548599,4923.12,REVENUE,Redacted Personal Data,
Peterborough,http://opendatacommunities.org/id/unitary-authority/peterborough,Peterborough City Council,Adult Social Care,Older People,Supplies and Services,08/05/2013 00:00,548600,1696.71,REVENUE,STAR RESIDENTIAL HOME LTD,
Peterborough,http://opendatacommunities.org/id/unitary-authority/peterborough,Peterborough City Council,Adult Social Care,Adult Learning Disabilities,Supplies and Services,08/05/2013 00:00,548601,2775.56,REVENUE,Redacted Personal Data,
Peterborough,http://opendatacommunities.org/id/unitary-authority/peterborough,Peterborough City Council,Adult Social Care,Adult Learning Disabilities,Supplies and Services,08/05/2013 00:00,548602,4836.6,REVENUE,Community Care Solutions Ltd,
Peterborough,http://opendatacommunities.org/id/unitary-authority/peterborough,Peterborough City Council,Adult Social Care,Older People,Supplies and Services,08/05/2013 00:00,548603,1001.56,REVENUE,STAR RESIDENTIAL HOME LTD,
Peterborough,http://opendatacommunities.org/id/unitary-authority/peterborough,Peterborough City Council,Adult Social Care,Adult Learning Disabilities,Supplies and Services,08/05/2013 00:00,548655,8328.12,REVENUE,Home From Home Care,
Peterborough,http://opendatacommunities.org/id/unitary-authority/peterborough,Peterborough City Council,Adult Social Care,Older People,Supplies and Services,08/05/2013 00:00,548664,1109.27,REVENUE,Park Vista Care Home,
Peterborough,http://opendatacommunities.org/id/unitary-authority/peterborough,Peterborough City Council,Children's & Education Services - Children's Social Care,More than one Service Division,Supplies and Services,08/05/2013 00:00,548709,3365.93,REVENUE,BAAF Adoption & Fostering,
Peterborough,http://opendatacommunities.org/id/unitary-authority/peterborough,Peterborough City Council,Children's & Education Services - Education,Other School -related Education Functions,Transport,08/05/2013 00:00,548755,642,REVENUE,Goldstar Cabs Ltd,
Peterborough,http://opendatacommunities.org/id/unitary-authority/peterborough,Peterborough City Council,Children's & Education Services - Education,Other School -related Education Functions,Transport,08/05/2013 00:00,548758,1042.8,REVENUE,Goldstar Cabs Ltd,
Peterborough,http://opendatacommunities.org/id/unitary-authority/peterborough,Peterborough City Council,Children's & Education Services - Education,Other School -related Education Functions,Transport,08/05/2013 00:00,548759,1042.8,REVENUE,Goldstar Cabs Ltd,
Peterborough,http://opendatacommunities.org/id/unitary-authority/peterborough,Peterborough City Council,Children's & Education Services - Education,Other School -related Education Functions,Transport,08/05/2013 00:00,548760,913.44,REVENUE,Goldstar Cabs Ltd,
Peterborough,http://opendatacommunities.org/id/unitary-authority/peterborough,Peterborough City Council,Children's & Education Services - Education,Other School -related Education Functions,Transport,08/05/2013 00:00,548761,665.28,REVENUE,Goldstar Cabs Ltd,
Peterborough,http://opendatacommunities.org/id/unitary-authority/peterborough,Peterborough City Council,Children's & Education Services - Education,Other School -related Education Functions,Transport,08/05/2013 00:00,548762,686.4,REVENUE,Goldstar Cabs Ltd,
Peterborough,http://opendatacommunities.org/id/unitary-authority/peterborough,Peterborough City Council,Children's & Education Services - Education,Other School -related Education Functions,Transport,08/05/2013 00:00,548763,792,REVENUE,Goldstar Cabs Ltd,
Peterborough,http://opendatacommunities.org/id/unitary-authority/peterborough,Peterborough City Council,Children's & Education Services - Education,Other School -related Education Functions,Transport,08/05/2013 00:00,548764,792,REVENUE,Goldstar Cabs Ltd,
Peterborough,http://opendatacommunities.org/id/unitary-authority/peterborough,Peterborough City Council,Children's & Education Services - Education,Other School -related Education Functions,Transport,08/05/2013 00:00,548765,691.2,REVENUE,Goldstar Cabs Ltd,
Peterborough,http://opendatacommunities.org/id/unitary-authority/peterborough,Peterborough City Council,Children's & Education Services - Education,Other School -related Education Functions,Transport,08/05/2013 00:00,548766,937.2,REVENUE,Goldstar Cabs Ltd,
Peterborough,http://opendatacommunities.org/id/unitary-authority/peterborough,Peterborough City Council,Children's & Education Services - Education,Other School -related Education Functions,Transport,08/05/2013 00:00,548769,748.8,REVENUE,Redacted Personal Data,
Peterborough,http://opendatacommunities.org/id/unitary-authority/peterborough,Peterborough City Council,Children's & Education Services - Education,Other School -related Education Functions,Transport,08/05/2013 00:00,548772,607.2,REVENUE,Goldstar Cabs Ltd,
Peterborough,http://opendatacommunities.org/id/unitary-authority/peterborough,Peterborough City Council,Children's & Education Services - Education,Other School -related Education Functions,Transport,08/05/2013 00:00,548773,1161.6,REVENUE,Goldstar Cabs Ltd,
Peterborough,http://opendatacommunities.org/id/unitary-authority/peterborough,Peterborough City Council,More than one Service Area Category,More than one Service Division,Transport,08/05/2013 00:00,548774,720,REVENUE,Goldstar Cabs Ltd,
Peterborough,http://opendatacommunities.org/id/unitary-authority/peterborough,Peterborough City Council,Children's & Education Services - Education,Other School -related Education Functions,Transport,08/05/2013 00:00,548775,1234.2,REVENUE,Goldstar Cabs Ltd,
Peterborough,http://opendatacommunities.org/id/unitary-authority/peterborough,Peterborough City Council,Children's & Education Services - Education,Other School -related Education Functions,Transport,08/05/2013 00:00,548776,1254,REVENUE,Goldstar Cabs Ltd,
Peterborough,http://opendatacommunities.org/id/unitary-authority/peterborough,Peterborough City Council,Children's & Education Services - Education,Other School -related Education Functions,Transport,08/05/2013 00:00,548777,1174.8,REVENUE,Goldstar Cabs Ltd,
Peterborough,http://opendatacommunities.org/id/unitary-authority/peterborough,Peterborough City Council,Children's & Education Services - Education,Other School -related Education Functions,Transport,08/05/2013 00:00,548778,1188,REVENUE,Goldstar Cabs Ltd,
Peterborough,http://opendatacommunities.org/id/unitary-authority/peterborough,Peterborough City Council,Adult Social Care,Adult Mental Health,Supplies and Services,08/05/2013 00:00,548808,1266.76,REVENUE,Barchester Healthcare (Werrington Lodge),
Peterborough,http://opendatacommunities.org/id/unitary-authority/peterborough,Peterborough City Council,Adult Social Care,Older People,Supplies and Services,08/05/2013 00:00,548811,3507.48,REVENUE,Barchester Healthcare Homes Ltd,
Peterborough,http://opendatacommunities.org/id/unitary-authority/peterborough,Peterborough City Council,Adult Social Care,Older People,Supplies and Services,08/05/2013 00:00,548814,821,REVENUE,Beaumont Healthcare Limited,
Peterborough,http://opendatacommunities.org/id/unitary-authority/peterborough,Peterborough City Council,Adult Social Care,Older People,Supplies and Services,08/05/2013 00:00,548820,792.5,REVENUE,Beaumont Healthcare Limited,
Peterborough,http://opendatacommunities.org/id/unitary-authority/peterborough,Peterborough City Council,Capital,Capital,Capital Pending Update to BS,08/05/2013 00:00,548821,3586.79,CAPITAL,VIX ACIS Ltd,
Peterborough,http://opendatacommunities.org/id/unitary-authority/peterborough,Peterborough City Council,Children's & Education Services - Children's Social Care,Children Looked After,Supplies and Services - Transfer Payments,08/05/2013 00:00,548822,1550,REVENUE,Sixteen Plus Limited,
Peterborough,http://opendatacommunities.org/id/unitary-authority/peterborough,Peterborough City Council,Children's & Education Services - Children's Social Care,Children's Services - Commissioning and Social Work,Employees,08/05/2013 00:00,548829,1188,REVENUE,SWP Consulting,
Peterborough,http://opendatacommunities.org/id/unitary-authority/peterborough,Peterborough City Council,Environmental and Regulatory Services,Flood Defence & Land Drainage,Supplies and Services,08/05/2013 00:00,548835,4540.84,REVENUE,Micro Drainage Limited,
Peterborough,http://opendatacommunities.org/id/unitary-authority/peterborough,Peterborough City Council,Adult Social Care,Older People,Transport,08/05/2013 00:00,548849,1030.21,REVENUE,Automotive Leasing Ltd,
Peterborough,http://opendatacommunities.org/id/unitary-authority/peterborough,Peterborough City Council,Adult Social Care,Adult Learning Disabilities,Transport,08/05/2013 00:00,548852,1030.2,REVENUE,Automotive Leasing Ltd,
Peterborough,http://opendatacommunities.org/id/unitary-authority/peterborough,Peterborough City Council,Adult Social Care,Older People,Transport,08/05/2013 00:00,548853,1038.77,REVENUE,Automotive Leasing Ltd,
Peterborough,http://opendatacommunities.org/id/unitary-authority/peterborough,Peterborough City Council,Adult Social Care,Adult Learning Disabilities,Transport,08/05/2013 00:00,548854,1038.6,REVENUE,Automotive Leasing Ltd,
Peterborough,http://opendatacommunities.org/id/unitary-authority/peterborough,Peterborough City Council,Adult Social Care,Adult Learning Disabilities,Transport,08/05/2013 00:00,548856,1041,REVENUE,Automotive Leasing Ltd,
Peterborough,http://opendatacommunities.org/id/unitary-authority/peterborough,Peterborough City Council,Adult Social Care,Older People,Transport,08/05/2013 00:00,548858,1050.68,REVENUE,Automotive Leasing Ltd,
Peterborough,http://opendatacommunities.org/id/unitary-authority/peterborough,Peterborough City Council,Adult Social Care,Adult Learning Disabilities,Transport,08/05/2013 00:00,548861,1038.66,REVENUE,Automotive Leasing Ltd,
Peterborough,http://opendatacommunities.org/id/unitary-authority/peterborough,Peterborough City Council,Adult Social Care,Older People,Transport,08/05/2013 00:00,548863,1074.9,REVENUE,Automotive Leasing Ltd,
Peterborough,http://opendatacommunities.org/id/unitary-authority/peterborough,Peterborough City Council,Adult Social Care,Older People,Transport,08/05/2013 00:00,548866,1059.83,REVENUE,Automotive Leasing Ltd,
Peterborough,http://opendatacommunities.org/id/unitary-authority/peterborough,Peterborough City Council,Adult Social Care,Older People,Supplies and Services,08/05/2013 00:00,548868,523.06,REVENUE,MEARS GROUP,
Peterborough,http://opendatacommunities.org/id/unitary-authority/peterborough,Peterborough City Council,Children's & Education Services - Children's Social Care,Other Children's & Families Services,Supplies and Services - Transfer Payments,08/05/2013 00:00,548898,600,REVENUE,Redacted Personal Data,
Peterborough,http://opendatacommunities.org/id/unitary-authority/peterborough,Peterborough City Council,Children's & Education Services - Children's Social Care,Other Children's & Families Services,Supplies and Services - Transfer Payments,08/05/2013 00:00,548899,613.6,REVENUE,Redacted Personal Data,
Peterborough,http://opendatacommunities.org/id/unitary-authority/peterborough,Peterborough City Council,Children's & Education Services - Children's Social Care,Children Looked After,Supplies and Services - Transfer Payments,08/05/2013 00:00,548998,602.7,REVENUE,Redacted Personal Data,
Peterborough,http://opendatacommunities.org/id/unitary-authority/peterborough,Peterborough City Council,Children's & Education Services - Children's Social Care,Children Looked After,Supplies and Services - Transfer Payments,08/05/2013 00:00,548999,563.92,REVENUE,Redacted Personal Data,
Peterborough,http://opendatacommunities.org/id/unitary-authority/peterborough,Peterborough City Council,Children's & Education Services - Children's Social Care,Children Looked After,Supplies and Services - Transfer Payments,08/05/2013 00:00,549000,602.7,REVENUE,Redacted Personal Data,
Peterborough,http://opendatacommunities.org/id/unitary-authority/peterborough,Peterborough City Council,Children's & Education Services - Children's Social Care,Children Looked After,Supplies and Services - Transfer Payments,08/05/2013 00:00,549001,563.92,REVENUE,Redacted Personal Data,
Peterborough,http://opendatacommunities.org/id/unitary-authority/peterborough,Peterborough City Council,Children's & Education Services - Children's Social Care,Children Looked After,Supplies and Services - Transfer Payments,08/05/2013 00:00,549002,563.92,REVENUE,Redacted Personal Data,
Peterborough,http://opendatacommunities.org/id/unitary-authority/peterborough,Peterborough City Council,Children's & Education Services - Children's Social Care,Children Looked After,Supplies and Services - Transfer Payments,08/05/2013 00:00,549003,602.7,REVENUE,Redacted Personal Data,
Peterborough,http://opendatacommunities.org/id/unitary-authority/peterborough,Peterborough City Council,Children's & Education Services - Children's Social Care,Children Looked After,Supplies and Services - Transfer Payments,08/05/2013 00:00,549004,563.92,REVENUE,Redacted Personal Data,
Peterborough,http://opendatacommunities.org/id/unitary-authority/peterborough,Peterborough City Council,Children's & Education Services - Children's Social Care,Children Looked After,Supplies and Services - Transfer Payments,08/05/2013 00:00,549006,563.92,REVENUE,Redacted Personal Data,
Peterborough,http://opendatacommunities.org/id/unitary-authority/peterborough,Peterborough City Council,Children's & Education Services - Children's Social Care,Children Looked After,Supplies and Services - Transfer Payments,08/05/2013 00:00,549007,563.92,REVENUE,Redacted Personal Data,
Peterborough,http://opendatacommunities.org/id/unitary-authority/peterborough,Peterborough City Council,Children's & Education Services - Children's Social Care,Children Looked After,Supplies and Services - Transfer Payments,08/05/2013 00:00,549008,511.7,REVENUE,Redacted Personal Data,
Peterborough,http://opendatacommunities.org/id/unitary-authority/peterborough,Peterborough City Council,Children's & Education Services - Children's Social Care,Children Looked After,Supplies and Services - Transfer Payments,08/05/2013 00:00,549009,602.7,REVENUE,Redacted Personal Data,
Peterborough,http://opendatacommunities.org/id/unitary-authority/peterborough,Peterborough City Council,Children's & Education Services - Children's Social Care,Children Looked After,Supplies and Services - Transfer Payments,08/05/2013 00:00,549010,563.92,REVENUE,Redacted Personal Data,
Peterborough,http://opendatacommunities.org/id/unitary-authority/peterborough,Peterborough City Council,Children's & Education Services - Children's Social Care,Children Looked After,Supplies and Services - Transfer Payments,08/05/2013 00:00,549011,563.92,REVENUE,Redacted Personal Data,
Peterborough,http://opendatacommunities.org/id/unitary-authority/peterborough,Peterborough City Council,Children's & Education Services - Children's Social Care,Children Looked After,Supplies and Services - Transfer Payments,08/05/2013 00:00,549012,511.7,REVENUE,Redacted Personal Data,
Peterborough,http://opendatacommunities.org/id/unitary-authority/peterborough,Peterborough City Council,Children's & Education Services - Children's Social Care,Children Looked After,Supplies and Services - Transfer Payments,08/05/2013 00:00,549013,563.92,REVENUE,Redacted Personal Data,
Peterborough,http://opendatacommunities.org/id/unitary-authority/peterborough,Peterborough City Council,Children's & Education Services - Children's Social Care,Children Looked After,Supplies and Services - Transfer Payments,08/05/2013 00:00,549014,602.7,REVENUE,Redacted Personal Data,
Peterborough,http://opendatacommunities.org/id/unitary-authority/peterborough,Peterborough City Council,Children's & Education Services - Children's Social Care,Children Looked After,Supplies and Services - Transfer Payments,08/05/2013 00:00,549015,758.45,REVENUE,Redacted Personal Data,
Peterborough,http://opendatacommunities.org/id/unitary-authority/peterborough,Peterborough City Council,Children's & Education Services - Children's Social Care,Children Looked After,Supplies and Services - Transfer Payments,08/05/2013 00:00,549017,511.7,REVENUE,Redacted Personal Data,
Peterborough,http://opendatacommunities.org/id/unitary-authority/peterborough,Peterborough City Council,Children's & Education Services - Children's Social Care,Children Looked After,Supplies and Services - Transfer Payments,08/05/2013 00:00,549018,511.7,REVENUE,Redacted Personal Data,
Peterborough,http://opendatacommunities.org/id/unitary-authority/peterborough,Peterborough City Council,Children's & Education Services - Children's Social Care,Children Looked After,Supplies and Services - Transfer Payments,08/05/2013 00:00,549021,511.7,REVENUE,Redacted Personal Data,
Peterborough,http://opendatacommunities.org/id/unitary-authority/peterborough,Peterborough City Council,Children's & Education Services - Children's Social Care,Children Looked After,Supplies and Services - Transfer Payments,08/05/2013 00:00,549022,511.7,REVENUE,Redacted Personal Data,
Peterborough,http://opendatacommunities.org/id/unitary-authority/peterborough,Peterborough City Council,Children's & Education Services - Children's Social Care,Children Looked After,Supplies and Services - Transfer Payments,08/05/2013 00:00,549023,563.92,REVENUE,Redacted Personal Data,
Peterborough,http://opendatacommunities.org/id/unitary-authority/peterborough,Peterborough City Council,Children's & Education Services - Children's Social Care,Children Looked After,Supplies and Services - Transfer Payments,08/05/2013 00:00,549024,511.7,REVENUE,Redacted Personal Data,
Peterborough,http://opendatacommunities.org/id/unitary-authority/peterborough,Peterborough City Council,Children's & Education Services - Children's Social Care,Children Looked After,Supplies and Services - Transfer Payments,08/05/2013 00:00,549025,885.08,REVENUE,Redacted Personal Data,
Peterborough,http://opendatacommunities.org/id/unitary-authority/peterborough,Peterborough City Council,Children's & Education Services - Children's Social Care,Children Looked After,Supplies and Services - Transfer Payments,08/05/2013 00:00,549027,602.7,REVENUE,Redacted Personal Data,
Peterborough,http://opendatacommunities.org/id/unitary-authority/peterborough,Peterborough City Council,Children's & Education Services - Children's Social Care,Children Looked After,Supplies and Services - Transfer Payments,08/05/2013 00:00,549029,563.92,REVENUE,Redacted Personal Data,
Peterborough,http://opendatacommunities.org/id/unitary-authority/peterborough,Peterborough City Council,Children's & Education Services - Children's Social Care,Children Looked After,Supplies and Services - Transfer Payments,08/05/2013 00:00,549035,511.7,REVENUE,Redacted Personal Data,
Peterborough,http://opendatacommunities.org/id/unitary-authority/peterborough,Peterborough City Council,Children's & Education Services - Children's Social Care,Children Looked After,Supplies and Services - Transfer Payments,08/05/2013 00:00,549036,563.92,REVENUE,Redacted Personal Data,
Peterborough,http://opendatacommunities.org/id/unitary-authority/peterborough,Peterborough City Council,Children's & Education Services - Children's Social Care,Children Looked After,Supplies and Services - Transfer Payments,08/05/2013 00:00,549037,511.7,REVENUE,Redacted Personal Data,
Peterborough,http://opendatacommunities.org/id/unitary-authority/peterborough,Peterborough City Council,Children's & Education Services - Children's Social Care,Family Support Services,Supplies and Services,08/05/2013 00:00,549041,1148.22,REVENUE,Redacted Personal Data,
Peterborough,http://opendatacommunities.org/id/unitary-authority/peterborough,Peterborough City Council,Children's & Education Services - Children's Social Care,Children Looked After,Supplies and Services - Transfer Payments,08/05/2013 00:00,549052,885.08,REVENUE,Redacted Personal Data,
Peterborough,http://opendatacommunities.org/id/unitary-authority/peterborough,Peterborough City Council,Children's & Education Services - Children's Social Care,Children Looked After,Supplies and Services - Transfer Payments,08/05/2013 00:00,549054,885.08,REVENUE,Redacted Personal Data,
Peterborough,http://opendatacommunities.org/id/unitary-authority/peterborough,Peterborough City Council,Children's & Education Services - Children's Social Care,Children Looked After,Supplies and Services - Transfer Payments,08/05/2013 00:00,549055,885.08,REVENUE,Redacted Personal Data,
Peterborough,http://opendatacommunities.org/id/unitary-authority/peterborough,Peterborough City Council,Children's & Education Services - Children's Social Care,Children Looked After,Supplies and Services - Transfer Payments,08/05/2013 00:00,549059,602.7,REVENUE,Redacted Personal Data,
Peterborough,http://opendatacommunities.org/id/unitary-authority/peterborough,Peterborough City Council,Children's & Education Services - Children's Social Care,Children Looked After,Supplies and Services - Transfer Payments,08/05/2013 00:00,549067,602.7,REVENUE,Redacted Personal Data,
Peterborough,http://opendatacommunities.org/id/unitary-authority/peterborough,Peterborough City Council,Children's & Education Services - Children's Social Care,Children Looked After,Supplies and Services - Transfer Payments,08/05/2013 00:00,549068,563.92,REVENUE,Redacted Personal Data,
Peterborough,http://opendatacommunities.org/id/unitary-authority/peterborough,Peterborough City Council,Children's & Education Services - Children's Social Care,Children Looked After,Supplies and Services - Transfer Payments,08/05/2013 00:00,549082,885.08,REVENUE,Redacted Personal Data,
Peterborough,http://opendatacommunities.org/id/unitary-authority/peterborough,Peterborough City Council,Children's & Education Services - Children's Social Care,Children Looked After,Supplies and Services - Transfer Payments,08/05/2013 00:00,549088,563.92,REVENUE,Redacted Personal Data,
Peterborough,http://opendatacommunities.org/id/unitary-authority/peterborough,Peterborough City Council,Children's & Education Services - Children's Social Care,Children Looked After,Supplies and Services - Transfer Payments,08/05/2013 00:00,549093,563.92,REVENUE,Redacted Personal Data,
Peterborough,http://opendatacommunities.org/id/unitary-authority/peterborough,Peterborough City Council,Children's & Education Services - Children's Social Care,Children Looked After,Supplies and Services - Transfer Payments,08/05/2013 00:00,549096,583.59,REVENUE,Redacted Personal Data,
Peterborough,http://opendatacommunities.org/id/unitary-authority/peterborough,Peterborough City Council,Children's & Education Services - Children's Social Care,Children Looked After,Supplies and Services - Transfer Payments,08/05/2013 00:00,549098,511.7,REVENUE,Redacted Personal Data,
Peterborough,http://opendatacommunities.org/id/unitary-authority/peterborough,Peterborough City Council,Children's & Education Services - Children's Social Care,Children Looked After,Supplies and Services - Transfer Payments,08/05/2013 00:00,549102,563.92,REVENUE,Redacted Personal Data,
Peterborough,http://opendatacommunities.org/id/unitary-authority/peterborough,Peterborough City Council,Children's & Education Services - Children's Social Care,Children Looked After,Supplies and Services - Transfer Payments,08/05/2013 00:00,549112,607.67,REVENUE,Redacted Personal Data,
Peterborough,http://opendatacommunities.org/id/unitary-authority/peterborough,Peterborough City Council,Children's & Education Services - Children's Social Care,Children Looked After,Supplies and Services - Transfer Payments,08/05/2013 00:00,549113,563.92,REVENUE,Redacted Personal Data,
Peterborough,http://opendatacommunities.org/id/unitary-authority/peterborough,Peterborough City Council,Children's & Education Services - Children's Social Care,Children Looked After,Supplies and Services - Transfer Payments,08/05/2013 00:00,549126,885.08,REVENUE,Redacted Personal Data,
Peterborough,http://opendatacommunities.org/id/unitary-authority/peterborough,Peterborough City Council,Children's & Education Services - Children's Social Care,Children Looked After,Supplies and Services - Transfer Payments,08/05/2013 00:00,549129,563.92,REVENUE,Redacted Personal Data,
Peterborough,http://opendatacommunities.org/id/unitary-authority/peterborough,Peterborough City Council,Children's & Education Services - Children's Social Care,Children Looked After,Supplies and Services - Transfer Payments,08/05/2013 00:00,549130,563.92,REVENUE,Redacted Personal Data,
Peterborough,http://opendatacommunities.org/id/unitary-authority/peterborough,Peterborough City Council,Children's & Education Services - Children's Social Care,Children Looked After,Supplies and Services - Transfer Payments,08/05/2013 00:00,549131,511.7,REVENUE,Redacted Personal Data,
Peterborough,http://opendatacommunities.org/id/unitary-authority/peterborough,Peterborough City Council,Children's & Education Services - Children's Social Care,Children Looked After,Supplies and Services - Transfer Payments,08/05/2013 00:00,549132,511.7,REVENUE,Redacted Personal Data,
Peterborough,http://opendatacommunities.org/id/unitary-authority/peterborough,Peterborough City Council,Children's & Education Services - Children's Social Care,Children Looked After,Supplies and Services - Transfer Payments,08/05/2013 00:00,549133,511.7,REVENUE,Redacted Personal Data,
Peterborough,http://opendatacommunities.org/id/unitary-authority/peterborough,Peterborough City Council,Children's & Education Services - Children's Social Care,Children Looked After,Supplies and Services - Transfer Payments,08/05/2013 00:00,549143,602.7,REVENUE,Redacted Personal Data,
Peterborough,http://opendatacommunities.org/id/unitary-authority/peterborough,Peterborough City Council,Children's & Education Services - Children's Social Care,Children Looked After,Supplies and Services - Transfer Payments,08/05/2013 00:00,549144,511.7,REVENUE,Redacted Personal Data,
Peterborough,http://opendatacommunities.org/id/unitary-authority/peterborough,Peterborough City Council,Children's & Education Services - Children's Social Care,Children Looked After,Supplies and Services - Transfer Payments,08/05/2013 00:00,549146,602.7,REVENUE,Redacted Personal Data,
Peterborough,http://opendatacommunities.org/id/unitary-authority/peterborough,Peterborough City Council,Children's & Education Services - Children's Social Care,Children Looked After,Supplies and Services - Transfer Payments,08/05/2013 00:00,549147,602.7,REVENUE,Redacted Personal Data,
Peterborough,http://opendatacommunities.org/id/unitary-authority/peterborough,Peterborough City Council,Children's & Education Services - Children's Social Care,Children Looked After,Supplies and Services - Transfer Payments,08/05/2013 00:00,549152,563.92,REVENUE,Redacted Personal Data,
Peterborough,http://opendatacommunities.org/id/unitary-authority/peterborough,Peterborough City Council,Children's & Education Services - Children's Social Care,Children Looked After,Supplies and Services - Transfer Payments,08/05/2013 00:00,549153,511.7,REVENUE,Redacted Personal Data,
Peterborough,http://opendatacommunities.org/id/unitary-authority/peterborough,Peterborough City Council,Children's & Education Services - Children's Social Care,Children Looked After,Supplies and Services - Transfer Payments,08/05/2013 00:00,549154,602.7,REVENUE,Redacted Personal Data,
Peterborough,http://opendatacommunities.org/id/unitary-authority/peterborough,Peterborough City Council,Children's & Education Services - Children's Social Care,Children Looked After,Supplies and Services - Transfer Payments,08/05/2013 00:00,549170,602.7,REVENUE,Redacted Personal Data,
Peterborough,http://opendatacommunities.org/id/unitary-authority/peterborough,Peterborough City Council,Children's & Education Services - Children's Social Care,Children Looked After,Supplies and Services - Transfer Payments,08/05/2013 00:00,549179,563.92,REVENUE,Redacted Personal Data,
Peterborough,http://opendatacommunities.org/id/unitary-authority/peterborough,Peterborough City Council,Children's & Education Services - Children's Social Care,Children Looked After,Supplies and Services - Transfer Payments,08/05/2013 00:00,549180,563.92,REVENUE,Redacted Personal Data,
Peterborough,http://opendatacommunities.org/id/unitary-authority/peterborough,Peterborough City Council,Children's & Education Services - Children's Social Care,Children Looked After,Supplies and Services - Transfer Payments,08/05/2013 00:00,549181,826,REVENUE,Redacted Personal Data,
Peterborough,http://opendatacommunities.org/id/unitary-authority/peterborough,Peterborough City Council,Children's & Education Services - Children's Social Care,Children Looked After,Supplies and Services - Transfer Payments,08/05/2013 00:00,549182,885.08,REVENUE,Redacted Personal Data,
Peterborough,http://opendatacommunities.org/id/unitary-authority/peterborough,Peterborough City Council,Children's & Education Services - Children's Social Care,Children Looked After,Supplies and Services - Transfer Payments,08/05/2013 00:00,549184,563.92,REVENUE,Redacted Personal Data,
Peterborough,http://opendatacommunities.org/id/unitary-authority/peterborough,Peterborough City Council,Children's & Education Services - Children's Social Care,Children Looked After,Supplies and Services - Transfer Payments,08/05/2013 00:00,549186,602.7,REVENUE,Redacted Personal Data,
Peterborough,http://opendatacommunities.org/id/unitary-authority/peterborough,Peterborough City Council,Children's & Education Services - Children's Social Care,Family Support Services,Supplies and Services,08/05/2013 00:00,549187,518.54,REVENUE,Redacted Personal Data,
Peterborough,http://opendatacommunities.org/id/unitary-authority/peterborough,Peterborough City Council,Children's & Education Services - Children's Social Care,Children Looked After,Supplies and Services - Transfer Payments,08/05/2013 00:00,549198,607.67,REVENUE,Redacted Personal Data,
Peterborough,http://opendatacommunities.org/id/unitary-authority/peterborough,Peterborough City Council,Children's & Education Services - Children's Social Care,Children Looked After,Supplies and Services - Transfer Payments,08/05/2013 00:00,549200,800.59,REVENUE,Redacted Personal Data,
Peterborough,http://opendatacommunities.org/id/unitary-authority/peterborough,Peterborough City Council,Children's & Education Services - Children's Social Care,Children Looked After,Supplies and Services - Transfer Payments,08/05/2013 00:00,549204,581.18,REVENUE,Redacted Personal Data,
Peterborough,http://opendatacommunities.org/id/unitary-authority/peterborough,Peterborough City Council,Children's & Education Services - Children's Social Care,Children Looked After,Supplies and Services - Transfer Payments,08/05/2013 00:00,549207,602.7,REVENUE,Redacted Personal Data,
Peterborough,http://opendatacommunities.org/id/unitary-authority/peterborough,Peterborough City Council,Children's & Education Services - Children's Social Care,Children Looked After,Supplies and Services - Transfer Payments,08/05/2013 00:00,549208,563.92,REVENUE,Redacted Personal Data,
Peterborough,http://opendatacommunities.org/id/unitary-authority/peterborough,Peterborough City Council,Children's & Education Services - Children's Social Care,Family Support Services,Supplies and Services,08/05/2013 00:00,549209,782.64,REVENUE,Redacted Personal Data,
Peterborough,http://opendatacommunities.org/id/unitary-authority/peterborough,Peterborough City Council,Children's & Education Services - Children's Social Care,Children Looked After,Supplies and Services - Transfer Payments,08/05/2013 00:00,549229,563.92,REVENUE,Redacted Personal Data,
Peterborough,http://opendatacommunities.org/id/unitary-authority/peterborough,Peterborough City Council,Children's & Education Services - Children's Social Care,Family Support Services,Supplies and Services,08/05/2013 00:00,549230,2883.44,REVENUE,Redacted Personal Data,
Peterborough,http://opendatacommunities.org/id/unitary-authority/peterborough,Peterborough City Council,Children's & Education Services - Children's Social Care,Children Looked After,Supplies and Services - Transfer Payments,08/05/2013 00:00,549239,1414.98,REVENUE,Redacted Personal Data,
Peterborough,http://opendatacommunities.org/id/unitary-authority/peterborough,Peterborough City Council,Children's & Education Services - Children's Social Care,Children Looked After,Supplies and Services - Transfer Payments,08/05/2013 00:00,549248,602.7,REVENUE,Redacted Personal Data,
Peterborough,http://opendatacommunities.org/id/unitary-authority/peterborough,Peterborough City Council,Children's & Education Services - Children's Social Care,Children Looked After,Supplies and Services - Transfer Payments,08/05/2013 00:00,549249,1331.68,REVENUE,Redacted Personal Data,
Peterborough,http://opendatacommunities.org/id/unitary-authority/peterborough,Peterborough City Council,Children's & Education Services - Children's Social Care,Children Looked After,Supplies and Services - Transfer Payments,08/05/2013 00:00,549250,602.7,REVENUE,Redacted Personal Data,
Peterborough,http://opendatacommunities.org/id/unitary-authority/peterborough,Peterborough City Council,Children's & Education Services - Children's Social Care,Children Looked After,Supplies and Services - Transfer Payments,08/05/2013 00:00,549264,602.7,REVENUE,Redacted Personal Data,
Peterborough,http://opendatacommunities.org/id/unitary-authority/peterborough,Peterborough City Council,Children's & Education Services - Children's Social Care,Children Looked After,Supplies and Services - Transfer Payments,08/05/2013 00:00,549265,590.03,REVENUE,Redacted Personal Data,
Peterborough,http://opendatacommunities.org/id/unitary-authority/peterborough,Peterborough City Council,Children's & Education Services - Children's Social Care,Children Looked After,Supplies and Services - Transfer Payments,08/05/2013 00:00,549266,511.7,REVENUE,Redacted Personal Data,
Peterborough,http://opendatacommunities.org/id/unitary-authority/peterborough,Peterborough City Council,Children's & Education Services - Children's Social Care,Children Looked After,Supplies and Services - Transfer Payments,08/05/2013 00:00,549276,885.08,REVENUE,Redacted Personal Data,
Peterborough,http://opendatacommunities.org/id/unitary-authority/peterborough,Peterborough City Council,Children's & Education Services - Children's Social Care,Children Looked After,Supplies and Services - Transfer Payments,08/05/2013 00:00,549279,563.92,REVENUE,Redacted Personal Data,
Peterborough,http://opendatacommunities.org/id/unitary-authority/peterborough,Peterborough City Council,Children's & Education Services - Children's Social Care,Children Looked After,Supplies and Services - Transfer Payments,08/05/2013 00:00,549285,1183.35,REVENUE,Redacted Personal Data,
Peterborough,http://opendatacommunities.org/id/unitary-authority/peterborough,Peterborough City Council,Adult Social Care,Adult Learning Disabilities,Supplies and Services,08/05/2013 00:00,549352,3106.3,REVENUE,Redacted Personal Data,
Peterborough,http://opendatacommunities.org/id/unitary-authority/peterborough,Peterborough City Council,Children's & Education Services - Education,Other School -related Education Functions,Transport,08/05/2013 00:00,549371,976.8,REVENUE,Goldstar Cabs Ltd,
Peterborough,http://opendatacommunities.org/id/unitary-authority/peterborough,Peterborough City Council,Children's & Education Services - Education,Other School -related Education Functions,Transport,08/05/2013 00:00,549373,924,REVENUE,Goldstar Cabs Ltd,
Peterborough,http://opendatacommunities.org/id/unitary-authority/peterborough,Peterborough City Council,Children's & Education Services - Education,Other School -related Education Functions,Transport,08/05/2013 00:00,549376,676.76,REVENUE,Goldstar Cabs Ltd,
Peterborough,http://opendatacommunities.org/id/unitary-authority/peterborough,Peterborough City Council,Children's & Education Services - Education,Other School -related Education Functions,Transport,08/05/2013 00:00,549377,864.6,REVENUE,Goldstar Cabs Ltd,
Peterborough,http://opendatacommunities.org/id/unitary-authority/peterborough,Peterborough City Council,Children's & Education Services - Education,Other School -related Education Functions,Transport,08/05/2013 00:00,549378,528,REVENUE,Goldstar Cabs Ltd,
Peterborough,http://opendatacommunities.org/id/unitary-authority/peterborough,Peterborough City Council,Children's & Education Services - Education,Other School -related Education Functions,Transport,08/05/2013 00:00,549379,1283.7,REVENUE,Goldstar Cabs Ltd,
Peterborough,http://opendatacommunities.org/id/unitary-authority/peterborough,Peterborough City Council,Children's & Education Services - Education,Other School -related Education Functions,Transport,08/05/2013 00:00,549380,979.44,REVENUE,Goldstar Cabs Ltd,
Peterborough,http://opendatacommunities.org/id/unitary-authority/peterborough,Peterborough City Council,Children's & Education Services - Education,Other School -related Education Functions,Transport,08/05/2013 00:00,549381,1269.6,REVENUE,Goldstar Cabs Ltd,
Peterborough,http://opendatacommunities.org/id/unitary-authority/peterborough,Peterborough City Council,Children's & Education Services - Education,Other School -related Education Functions,Transport,08/05/2013 00:00,549382,1082.4,REVENUE,Goldstar Cabs Ltd,
Peterborough,http://opendatacommunities.org/id/unitary-authority/peterborough,Peterborough City Council,Children's & Education Services - Education,Other School -related Education Functions,Transport,08/05/2013 00:00,549383,1608,REVENUE,Goldstar Cabs Ltd,
Peterborough,http://opendatacommunities.org/id/unitary-authority/peterborough,Peterborough City Council,Children's & Education Services - Education,Other School -related Education Functions,Transport,08/05/2013 00:00,549385,1002.6,REVENUE,Goldstar Cabs Ltd,
Peterborough,http://opendatacommunities.org/id/unitary-authority/peterborough,Peterborough City Council,More than one Service Area Category,More than one Service Division,Transport,08/05/2013 00:00,549397,1297.2,REVENUE,Goldstar Cabs Ltd,
Peterborough,http://opendatacommunities.org/id/unitary-authority/peterborough,Peterborough City Council,Adult Social Care,Older People,Supplies and Services,08/05/2013 00:00,549399,1548.12,REVENUE,Park Road Baptist Housing Association Ltd,
Peterborough,http://opendatacommunities.org/id/unitary-authority/peterborough,Peterborough City Council,Adult Social Care,Older People,Supplies and Services,08/05/2013 00:00,549400,1453.93,REVENUE,Park Road Baptist Housing Association Ltd,
Peterborough,http://opendatacommunities.org/id/unitary-authority/peterborough,Peterborough City Council,Adult Social Care,Older People,Supplies and Services,08/05/2013 00:00,549402,1138.32,REVENUE,Park Road Baptist Housing Association Ltd,
Peterborough,http://opendatacommunities.org/id/unitary-authority/peterborough,Peterborough City Council,Adult Social Care,Older People,Supplies and Services,08/05/2013 00:00,549403,1513.05,REVENUE,Park Road Baptist Housing Association Ltd,
Peterborough,http://opendatacommunities.org/id/unitary-authority/peterborough,Peterborough City Council,Adult Social Care,Older People,Third Party Payments,08/05/2013 00:00,549436,9345,REVENUE,Dial Peterborough,
Peterborough,http://opendatacommunities.org/id/unitary-authority/peterborough,Peterborough City Council,Children's & Education Services - Children's Social Care,Children Looked After,Supplies and Services - Transfer Payments,08/05/2013 00:00,549452,9814.28,REVENUE,Sixteen Plus Limited,
Peterborough,http://opendatacommunities.org/id/unitary-authority/peterborough,Peterborough City Council,Adult Social Care,Support Services & Management Costs,Transport,08/05/2013 00:00,549465,1984.92,REVENUE,Allstar Business Solutions Ltd,
Peterborough,http://opendatacommunities.org/id/unitary-authority/peterborough,Peterborough City Council,Adult Social Care,Support Services & Management Costs,Transport,08/05/2013 00:00,549471,3320.52,REVENUE,Monarch Automotive,
Peterborough,http://opendatacommunities.org/id/unitary-authority/peterborough,Peterborough City Council,More than one Service Area Category,More than one Service Division,Supplies and Services,10/05/2013 00:00,512416,1021.2,REVENUE,Applied Language Solutions,
Peterborough,http://opendatacommunities.org/id/unitary-authority/peterborough,Peterborough City Council,Children's & Education Services - Children's Social Care,Other Children's & Families Services,Supplies and Services,10/05/2013 00:00,521291,543.91,REVENUE,Applied Language Solutions,
Peterborough,http://opendatacommunities.org/id/unitary-authority/peterborough,Peterborough City Council,Children's & Education Services - Children's Social Care,Other Children's & Families Services,Supplies and Services,10/05/2013 00:00,521299,526.03,REVENUE,Applied Language Solutions,
Peterborough,http://opendatacommunities.org/id/unitary-authority/peterborough,Peterborough City Council,Children's & Education Services - Children's Social Care,More than one Service Division,Supplies and Services,10/05/2013 00:00,522792,544.45,REVENUE,Applied Language Solutions,
Peterborough,http://opendatacommunities.org/id/unitary-authority/peterborough,Peterborough City Council,Children's & Education Services - Children's Social Care,More than one Service Division,Supplies and Services,10/05/2013 00:00,526015,624.3,REVENUE,CAPITA Translation and Interpreting,
Peterborough,http://opendatacommunities.org/id/unitary-authority/peterborough,Peterborough City Council,Children's & Education Services - Children's Social Care,More than one Service Division,Supplies and Services,10/05/2013 00:00,526018,733.2,REVENUE,CAPITA Translation and Interpreting,
Peterborough,http://opendatacommunities.org/id/unitary-authority/peterborough,Peterborough City Council,Children's & Education Services - Children's Social Care,Other Children's & Families Services,Supplies and Services,10/05/2013 00:00,526028,690.6,REVENUE,CAPITA Translation and Interpreting,
Peterborough,http://opendatacommunities.org/id/unitary-authority/peterborough,Peterborough City Council,Children's & Education Services - Children's Social Care,Children's Services - Commissioning and Social Work,Supplies and Services,10/05/2013 00:00,526031,502.8,REVENUE,CAPITA Translation and Interpreting,
Peterborough,http://opendatacommunities.org/id/unitary-authority/peterborough,Peterborough City Council,Children's & Education Services - Children's Social Care,More than one Service Division,Supplies and Services,10/05/2013 00:00,526034,554.1,REVENUE,CAPITA Translation and Interpreting,
Peterborough,http://opendatacommunities.org/id/unitary-authority/peterborough,Peterborough City Council,Children's & Education Services - Children's Social Care,More than one Service Division,Supplies and Services,10/05/2013 00:00,526035,512.7,REVENUE,CAPITA Translation and Interpreting,
Peterborough,http://opendatacommunities.org/id/unitary-authority/peterborough,Peterborough City Council,Support Services,Support Services,Supplies and Services,10/05/2013 00:00,529171,7522.18,REVENUE,CAPITA Translation and Interpreting,
Peterborough,http://opendatacommunities.org/id/unitary-authority/peterborough,Peterborough City Council,Children's & Education Services - Children's Social Care,Other Children's & Families Services,Supplies and Services,10/05/2013 00:00,529300,555,REVENUE,CAPITA Translation and Interpreting,
Peterborough,http://opendatacommunities.org/id/unitary-authority/peterborough,Peterborough City Council,Children's & Education Services - Children's Social Care,Children's Services - Commissioning and Social Work,Supplies and Services,10/05/2013 00:00,529306,548.1,REVENUE,CAPITA Translation and Interpreting,
Peterborough,http://opendatacommunities.org/id/unitary-authority/peterborough,Peterborough City Council,Children's & Education Services - Children's Social Care,Other Children's & Families Services,Supplies and Services,10/05/2013 00:00,529311,685.61,REVENUE,CAPITA Translation and Interpreting,
Peterborough,http://opendatacommunities.org/id/unitary-authority/peterborough,Peterborough City Council,Children's & Education Services - Children's Social Care,Other Children's & Families Services,Supplies and Services,10/05/2013 00:00,529823,4524.2,REVENUE,R S P LTD,
Peterborough,http://opendatacommunities.org/id/unitary-authority/peterborough,Peterborough City Council,Support Services,Support Services,Supplies and Services,10/05/2013 00:00,530377,29926.67,REVENUE,Danwood Group Limited,
Peterborough,http://opendatacommunities.org/id/unitary-authority/peterborough,Peterborough City Council,Children's & Education Services - Children's Social Care,Children Looked After,Supplies and Services - Transfer Payments,10/05/2013 00:00,530682,3454.33,REVENUE,Synergy Fostering Ltd,
Peterborough,http://opendatacommunities.org/id/unitary-authority/peterborough,Peterborough City Council,Children's & Education Services - Children's Social Care,Children Looked After,Supplies and Services - Transfer Payments,10/05/2013 00:00,537184,-1219.14,REVENUE,Core Assets Fostering Ltd,
Peterborough,http://opendatacommunities.org/id/unitary-authority/peterborough,Peterborough City Council,Children's & Education Services - Children's Social Care,Children Looked After,Supplies and Services - Transfer Payments,10/05/2013 00:00,537188,-1491.23,REVENUE,Core Assets Fostering Ltd,
Peterborough,http://opendatacommunities.org/id/unitary-authority/peterborough,Peterborough City Council,Capital,Capital,Capital Pending Update to BS,10/05/2013 00:00,538724,900,CAPITAL,Barnack Parish Council,
Peterborough,http://opendatacommunities.org/id/unitary-authority/peterborough,Peterborough City Council,Children's & Education Services - Children's Social Care,Other Children's & Families Services,Supplies and Services,10/05/2013 00:00,539126,3559.85,REVENUE,R S P LTD,
Peterborough,http://opendatacommunities.org/id/unitary-authority/peterborough,Peterborough City Council,Children's & Education Services - Children's Social Care,Children Looked After,Supplies and Services - Transfer Payments,10/05/2013 00:00,539437,-2366.7,REVENUE,Core Assets Fostering Ltd,
Peterborough,http://opendatacommunities.org/id/unitary-authority/peterborough,Peterborough City Council,Children's & Education Services - Children's Social Care,Children Looked After,Supplies and Services - Transfer Payments,10/05/2013 00:00,539836,9912.5,REVENUE,Lincolns Care Ltd,
Peterborough,http://opendatacommunities.org/id/unitary-authority/peterborough,Peterborough City Council,Children's & Education Services - Children's Social Care,Children Looked After,Supplies and Services - Transfer Payments,10/05/2013 00:00,539840,3016,REVENUE,Lincolns Care Ltd,
Peterborough,http://opendatacommunities.org/id/unitary-authority/peterborough,Peterborough City Council,Children's & Education Services - Children's Social Care,Children Looked After,Supplies and Services - Transfer Payments,10/05/2013 00:00,539842,3484,REVENUE,Lincolns Care Ltd,
Peterborough,http://opendatacommunities.org/id/unitary-authority/peterborough,Peterborough City Council,Children's & Education Services - Children's Social Care,Children Looked After,Supplies and Services - Transfer Payments,10/05/2013 00:00,540223,3342.9,REVENUE,Synergy Fostering Ltd,
Peterborough,http://opendatacommunities.org/id/unitary-authority/peterborough,Peterborough City Council,Children's & Education Services - Children's Social Care,Children Looked After,Supplies and Services - Transfer Payments,10/05/2013 00:00,540227,3342.9,REVENUE,Synergy Fostering Ltd,
Peterborough,http://opendatacommunities.org/id/unitary-authority/peterborough,Peterborough City Council,Children's & Education Services - Children's Social Care,Children Looked After,Supplies and Services - Transfer Payments,10/05/2013 00:00,540231,3342.9,REVENUE,Synergy Fostering Ltd,
Peterborough,http://opendatacommunities.org/id/unitary-authority/peterborough,Peterborough City Council,Children's & Education Services - Children's Social Care,Children Looked After,Supplies and Services - Transfer Payments,10/05/2013 00:00,540232,1714.5,REVENUE,Synergy Fostering Ltd,
Peterborough,http://opendatacommunities.org/id/unitary-authority/peterborough,Peterborough City Council,Children's & Education Services - Children's Social Care,More than one Service Division,Employees,10/05/2013 00:00,540943,1953.96,REVENUE,Capita Resourcing Ltd,
Peterborough,http://opendatacommunities.org/id/unitary-authority/peterborough,Peterborough City Council,Support Services,Support Services,Supplies and Services,10/05/2013 00:00,542299,13882.49,REVENUE,Danwood Group Limited,
Peterborough,http://opendatacommunities.org/id/unitary-authority/peterborough,Peterborough City Council,Children's & Education Services - Children's Social Care,Family Support Services,Employees,10/05/2013 00:00,542684,1746.18,REVENUE,Sanctuary Personnel Ltd,
Peterborough,http://opendatacommunities.org/id/unitary-authority/peterborough,Peterborough City Council,Children's & Education Services - Children's Social Care,Children Looked After,Employees,10/05/2013 00:00,542687,1529.14,REVENUE,Sanctuary Personnel Ltd,
Peterborough,http://opendatacommunities.org/id/unitary-authority/peterborough,Peterborough City Council,Children's & Education Services - Children's Social Care,Children Looked After,Employees,10/05/2013 00:00,542695,2125.87,REVENUE,Sanctuary Personnel Ltd,
Peterborough,http://opendatacommunities.org/id/unitary-authority/peterborough,Peterborough City Council,Children's & Education Services - Children's Social Care,Family Support Services,Employees,10/05/2013 00:00,542699,1746.18,REVENUE,Sanctuary Personnel Ltd,
Peterborough,http://opendatacommunities.org/id/unitary-authority/peterborough,Peterborough City Council,Capital,Capital,Capital Pending Update to BS,10/05/2013 00:00,542732,1080,CAPITAL,Danwood Group Limited,
Peterborough,http://opendatacommunities.org/id/unitary-authority/peterborough,Peterborough City Council,Children's & Education Services - Children's Social Care,Family Support Services,Employees,10/05/2013 00:00,543397,1746.18,REVENUE,Sanctuary Personnel Ltd,
Peterborough,http://opendatacommunities.org/id/unitary-authority/peterborough,Peterborough City Council,Adult Social Care,Support Services & Management Costs,Third Party Payments,10/05/2013 00:00,543455,2337.43,REVENUE,Flick Schofield Ltd,
Peterborough,http://opendatacommunities.org/id/unitary-authority/peterborough,Peterborough City Council,Adult Social Care,Support Services & Management Costs,Third Party Payments,10/05/2013 00:00,543459,2143.44,REVENUE,Flick Schofield Ltd,
Peterborough,http://opendatacommunities.org/id/unitary-authority/peterborough,Peterborough City Council,Planning Services,Environmental Initiatives,Supplies and Services,10/05/2013 00:00,544314,2700,REVENUE,Zetha Ltd,
Peterborough,http://opendatacommunities.org/id/unitary-authority/peterborough,Peterborough City Council,Children's & Education Services - Children's Social Care,Other Children's & Families Services,Supplies and Services,10/05/2013 00:00,544937,868,REVENUE,Restover Lodge Hotel,
Peterborough,http://opendatacommunities.org/id/unitary-authority/peterborough,Peterborough City Council,Children's & Education Services - Children's Social Care,Other Children's & Families Services,Supplies and Services,10/05/2013 00:00,544942,868,REVENUE,Restover Lodge Hotel,
Peterborough,http://opendatacommunities.org/id/unitary-authority/peterborough,Peterborough City Council,Children's & Education Services - Children's Social Care,Family Support Services,Employees,10/05/2013 00:00,545415,1746.18,REVENUE,Sanctuary Personnel Ltd,
Peterborough,http://opendatacommunities.org/id/unitary-authority/peterborough,Peterborough City Council,Children's & Education Services - Children's Social Care,Children Looked After,Employees,10/05/2013 00:00,546254,553.63,REVENUE,Reed Specialist Recruitment,
Peterborough,http://opendatacommunities.org/id/unitary-authority/peterborough,Peterborough City Council,Housing Services,Homelessness,Supplies and Services,10/05/2013 00:00,546719,532,REVENUE,Restover Lodge Hotel,
Peterborough,http://opendatacommunities.org/id/unitary-authority/peterborough,Peterborough City Council,Adult Social Care,Older People,Supplies and Services,10/05/2013 00:00,546855,823.41,REVENUE,PRESTIGE NURSING LIMITED,
Peterborough,http://opendatacommunities.org/id/unitary-authority/peterborough,Peterborough City Council,Adult Social Care,Older People,Supplies and Services,10/05/2013 00:00,546868,541.98,REVENUE,PRESTIGE NURSING LIMITED,
Peterborough,http://opendatacommunities.org/id/unitary-authority/peterborough,Peterborough City Council,Housing Services,Homelessness,Supplies and Services,10/05/2013 00:00,546957,504,REVENUE,Restover Lodge Hotel,
Peterborough,http://opendatacommunities.org/id/unitary-authority/peterborough,Peterborough City Council,Adult Social Care,Older People,Supplies and Services,10/05/2013 00:00,546977,649.06,REVENUE,TOTAL HOME CARE SOLUTIONS,
Peterborough,http://opendatacommunities.org/id/unitary-authority/peterborough,Peterborough City Council,Adult Social Care,Older People,Supplies and Services,10/05/2013 00:00,546981,521.78,REVENUE,TOTAL HOME CARE SOLUTIONS,
Peterborough,http://opendatacommunities.org/id/unitary-authority/peterborough,Peterborough City Council,Adult Social Care,Older People,Supplies and Services,10/05/2013 00:00,547629,835.7,REVENUE,Konica Minolta Bus.Sol. East Ltd,
Peterborough,http://opendatacommunities.org/id/unitary-authority/peterborough,Peterborough City Council,Capital,Capital,Capital Pending Update to BS,10/05/2013 00:00,548657,481456.06,CAPITAL,Carillion Building,
Peterborough,http://opendatacommunities.org/id/unitary-authority/peterborough,Peterborough City Council,Adult Social Care,Support Services & Management Costs,Third Party Payments,10/05/2013 00:00,548855,6334,REVENUE,Dial Peterborough,
Peterborough,http://opendatacommunities.org/id/unitary-authority/peterborough,Peterborough City Council,Children's & Education Services - Children's Social Care,Other Children's & Families Services,Supplies and Services,10/05/2013 00:00,549449,861.38,REVENUE,CAPITA Translation and Interpreting,
Peterborough,http://opendatacommunities.org/id/unitary-authority/peterborough,Peterborough City Council,Children's & Education Services - Children's Social Care,Family Support Services,Employees,10/05/2013 00:00,549489,-1746.18,REVENUE,Sanctuary Personnel Ltd,
Peterborough,http://opendatacommunities.org/id/unitary-authority/peterborough,Peterborough City Council,Children's & Education Services - Children's Social Care,Children Looked After,Employees,10/05/2013 00:00,549503,-2125.87,REVENUE,Sanctuary Personnel Ltd,
Peterborough,http://opendatacommunities.org/id/unitary-authority/peterborough,Peterborough City Council,More than one Service Area Category,More than one Service Division,Premises,10/05/2013 00:00,549504,9307.7,REVENUE,Anglian Water,
Peterborough,http://opendatacommunities.org/id/unitary-authority/peterborough,Peterborough City Council,Children's & Education Services - Children's Social Care,Family Support Services,Employees,10/05/2013 00:00,549505,-1746.18,REVENUE,Sanctuary Personnel Ltd,
Peterborough,http://opendatacommunities.org/id/unitary-authority/peterborough,Peterborough City Council,Children's & Education Services - Children's Social Care,Children Looked After,Employees,10/05/2013 00:00,549506,-1529.14,REVENUE,Sanctuary Personnel Ltd,
Peterborough,http://opendatacommunities.org/id/unitary-authority/peterborough,Peterborough City Council,More than one Service Area Category,More than one Service Division,Premises,10/05/2013 00:00,549507,987.03,REVENUE,E.ON Energy,
Peterborough,http://opendatacommunities.org/id/unitary-authority/peterborough,Peterborough City Council,Deficit/(Surplus) on Trading Undertakings,Trading Account Surpluses & Deficits,Premises,10/05/2013 00:00,549509,1245.28,REVENUE,Npower Ltd,
Peterborough,http://opendatacommunities.org/id/unitary-authority/peterborough,Peterborough City Council,Central Services to the Public,Registrar,Premises,10/05/2013 00:00,549511,562.44,REVENUE,E.ON Energy,
Peterborough,http://opendatacommunities.org/id/unitary-authority/peterborough,Peterborough City Council,More than one Service Area Category,More than one Service Division,Premises,10/05/2013 00:00,549512,3807.34,REVENUE,British Gas Business,
Peterborough,http://opendatacommunities.org/id/unitary-authority/peterborough,Peterborough City Council,Adult Social Care,Older People,Supplies and Services,10/05/2013 00:00,549536,1194.94,REVENUE,K2 CARE LTD,
Peterborough,http://opendatacommunities.org/id/unitary-authority/peterborough,Peterborough City Council,Adult Social Care,Older People,Supplies and Services,10/05/2013 00:00,549537,2029.67,REVENUE,K2 CARE LTD,
Peterborough,http://opendatacommunities.org/id/unitary-authority/peterborough,Peterborough City Council,Adult Social Care,Older People,Supplies and Services,10/05/2013 00:00,549538,679.16,REVENUE,K2 CARE LTD,
Peterborough,http://opendatacommunities.org/id/unitary-authority/peterborough,Peterborough City Council,Adult Social Care,Older People,Supplies and Services,10/05/2013 00:00,549541,987.75,REVENUE,K2 CARE LTD,
Peterborough,http://opendatacommunities.org/id/unitary-authority/peterborough,Peterborough City Council,Adult Social Care,Older People,Supplies and Services,10/05/2013 00:00,549543,633.96,REVENUE,K2 CARE LTD,
Peterborough,http://opendatacommunities.org/id/unitary-authority/peterborough,Peterborough City Council,Adult Social Care,Older People,Supplies and Services,10/05/2013 00:00,549544,731.58,REVENUE,K2 CARE LTD,
Peterborough,http://opendatacommunities.org/id/unitary-authority/peterborough,Peterborough City Council,Adult Social Care,Adult Learning Disabilities,Supplies and Services,10/05/2013 00:00,549545,939.89,REVENUE,K2 CARE LTD,
Peterborough,http://opendatacommunities.org/id/unitary-authority/peterborough,Peterborough City Council,Adult Social Care,Older People,Supplies and Services,10/05/2013 00:00,549546,729.22,REVENUE,K2 CARE LTD,
Peterborough,http://opendatacommunities.org/id/unitary-authority/peterborough,Peterborough City Council,Adult Social Care,Older People,Supplies and Services,10/05/2013 00:00,549547,748.44,REVENUE,K2 CARE LTD,
Peterborough,http://opendatacommunities.org/id/unitary-authority/peterborough,Peterborough City Council,Adult Social Care,Adult Learning Disabilities,Supplies and Services,10/05/2013 00:00,549548,1872,REVENUE,K2 CARE LTD,
Peterborough,http://opendatacommunities.org/id/unitary-authority/peterborough,Peterborough City Council,Adult Social Care,Adult Learning Disabilities,Supplies and Services,10/05/2013 00:00,549549,3075.44,REVENUE,Voyage,
Peterborough,http://opendatacommunities.org/id/unitary-authority/peterborough,Peterborough City Council,Adult Social Care,Older People,Supplies and Services,10/05/2013 00:00,549550,3322.76,REVENUE,K2 CARE LTD,
Peterborough,http://opendatacommunities.org/id/unitary-authority/peterborough,Peterborough City Council,Adult Social Care,Older People,Supplies and Services,10/05/2013 00:00,549551,2475.84,REVENUE,K2 CARE LTD,
Peterborough,http://opendatacommunities.org/id/unitary-authority/peterborough,Peterborough City Council,Adult Social Care,Older People,Supplies and Services,10/05/2013 00:00,549552,2494.92,REVENUE,K2 CARE LTD,
Peterborough,http://opendatacommunities.org/id/unitary-authority/peterborough,Peterborough City Council,Adult Social Care,Older People,Supplies and Services,10/05/2013 00:00,549555,1714.24,REVENUE,K2 CARE LTD,
Peterborough,http://opendatacommunities.org/id/unitary-authority/peterborough,Peterborough City Council,More than one Service Area Category,More than one Service Division,Balance Sheet,10/05/2013 00:00,549556,6344.64,Balance Sheet,The Prudential Assurance Company Ltd,
Peterborough,http://opendatacommunities.org/id/unitary-authority/peterborough,Peterborough City Council,Adult Social Care,Older People,Supplies and Services,10/05/2013 00:00,549557,1822.43,REVENUE,K2 CARE LTD,
Peterborough,http://opendatacommunities.org/id/unitary-authority/peterborough,Peterborough City Council,Adult Social Care,Older People,Supplies and Services,10/05/2013 00:00,549558,1142.8,REVENUE,K2 CARE LTD,
Peterborough,http://opendatacommunities.org/id/unitary-authority/peterborough,Peterborough City Council,Adult Social Care,Adult Learning Disabilities,Supplies and Services,10/05/2013 00:00,549559,6094.1,REVENUE,K2 CARE LTD,
Peterborough,http://opendatacommunities.org/id/unitary-authority/peterborough,Peterborough City Council,Adult Social Care,Older People,Supplies and Services,10/05/2013 00:00,549560,1521.2,REVENUE,K2 CARE LTD,
Peterborough,http://opendatacommunities.org/id/unitary-authority/peterborough,Peterborough City Council,More than one Service Area Category,More than one Service Division,Balance Sheet,10/05/2013 00:00,549561,5067.36,Balance Sheet,The Prudential Assurance Company Ltd,
Peterborough,http://opendatacommunities.org/id/unitary-authority/peterborough,Peterborough City Council,Adult Social Care,Older People,Supplies and Services,10/05/2013 00:00,549562,1110.02,REVENUE,K2 CARE LTD,
Peterborough,http://opendatacommunities.org/id/unitary-authority/peterborough,Peterborough City Council,Adult Social Care,Older People,Supplies and Services,10/05/2013 00:00,549563,508.11,REVENUE,K2 CARE LTD,
Peterborough,http://opendatacommunities.org/id/unitary-authority/peterborough,Peterborough City Council,Adult Social Care,Older People,Supplies and Services,10/05/2013 00:00,549566,782.24,REVENUE,K2 CARE LTD,
